Capital or Revenue,Directorate,Transaction Number,Date,Service Area,Expenses Type,Amount,Supplier Name
Revenue,Head of Economy & Tourism,5105606483,24.12.2014,Cemeteries-Northwood,Prop Svs only - Day to day mtce,75.00,REDACTED PERSONAL DATA
Revenue,Managing Director & Head of Paid Service,5105603716,12.12.2014,Public Health Core,Professional Services,"5,600.00",REDACTED PERSONAL DATA
Revenue,Head of ASC & Community Wellbeing,5105606218,24.12.2014,REDACTED PERSONAL DATA,Order Settlement to Bal Sht GL,"4,800.00",BEN VERNON DESIGNS
Revenue,Head of ASC & Community Wellbeing,5105603947,12.12.2014,Advocacy Services (IMCA & IMHA),Charges from Independent Providers,200.00,REDACTED PERSONAL DATA
Revenue,Head of Economy & Tourism,5105604798,19.12.2014,Shared Ownership,Security of Buildings,100.00,REDACTED PERSONAL DATA
Revenue,Head of HR & Organisational Change,5105604798,19.12.2014,Somerton Industrial Park,Security of Buildings,100.00,REDACTED PERSONAL DATA
Revenue,Head of HR & Organisational Change,5105604798,19.12.2014,"Westridge, Ryde",Security of Buildings,25.00,REDACTED PERSONAL DATA
Revenue,Head of Economy & Tourism,5105604798,19.12.2014,Non-operational buildings,Security of Buildings,100.00,REDACTED PERSONAL DATA
Revenue,Head of Economy & Tourism,5105604798,19.12.2014,Non-operational buildings,Security of Buildings,100.00,REDACTED PERSONAL DATA
Revenue,Head of Economy & Tourism,5105604798,19.12.2014,York Centre E Cowes,Security of Buildings,100.00,REDACTED PERSONAL DATA
Revenue,Head of Economy & Tourism,5105604798,19.12.2014,York Centre E Cowes,Security of Buildings,25.00,REDACTED PERSONAL DATA
Revenue,Head of Economy & Tourism,5105604798,19.12.2014,Medina Adult Training Centre Empty Costs,Security of Buildings,100.00,REDACTED PERSONAL DATA
Revenue,Head of Economy & Tourism,5105604798,19.12.2014,Church View Ventnor,Security of Buildings,100.00,REDACTED PERSONAL DATA
Revenue,Director of Childrens Services,5105603720,17.12.2014,Clatterford Pupil Referral Unit (PRU),Security of Buildings,40.00,REDACTED PERSONAL DATA
Revenue,Head of Economy & Tourism,5105604798,19.12.2014,Carisbrooke Contact Centre,Security of Buildings,100.00,REDACTED PERSONAL DATA
Revenue,Director of Childrens Services,5105604798,19.12.2014,Youth- Cowes,Security of Buildings,100.00,REDACTED PERSONAL DATA
Revenue,Director of Childrens Services,5105604798,19.12.2014,Youth- Ryde  (Well St),Security of Buildings,100.00,REDACTED PERSONAL DATA
Revenue,Director of Childrens Services,5105604798,19.12.2014,Youth- Sandown/Lake,Security of Buildings,100.00,REDACTED PERSONAL DATA
Revenue,Director of Childrens Services,5105604798,19.12.2014,Youth- Shorwell,Security of Buildings,100.00,REDACTED PERSONAL DATA
Revenue,Head of Economy & Tourism,5105604798,19.12.2014,"Atkinson Drive, Newport",Security of Buildings,100.00,REDACTED PERSONAL DATA
Revenue,Director of Childrens Services,5105603720,17.12.2014,Old Cowes Enterprise College,Security of Buildings,"1,200.00",REDACTED PERSONAL DATA
Revenue,Director of Childrens Services,5105604798,19.12.2014,Old Cowes Enterprise College,Security of Buildings,300.00,REDACTED PERSONAL DATA
Revenue,Director of Childrens Services,5105604798,19.12.2014,Old Cowes Enterprise College,Security of Buildings,25.00,REDACTED PERSONAL DATA
Revenue,Director of Childrens Services,5105604798,19.12.2014,Gatten & Lake Primary School Disposal,Security of Buildings,300.00,REDACTED PERSONAL DATA
Revenue,Director of Childrens Services,5105603720,17.12.2014,Hunnyhill Primary School Disposal,Security of Buildings,300.00,REDACTED PERSONAL DATA
Revenue,Director of Childrens Services,5105603720,17.12.2014,Sandham Middle School Disposal,Security of Buildings,120.00,REDACTED PERSONAL DATA
Revenue,Director of Childrens Services,5105603720,17.12.2014,Sandham Middle School Disposal,Minor Works,25.00,REDACTED PERSONAL DATA
Revenue,Head of Economy & Tourism,5105604798,19.12.2014,Ryde Depot,Security of Buildings,100.00,REDACTED PERSONAL DATA
Revenue,Head of ASC & Community Wellbeing,5105606149,24.12.2014,31 Carter Avenue,Maintenance of Operational Equipment,125.99,CHRIS' DOMESTIC SERVICES
Revenue,Head of Corp Gov & Monitoring Officer,5105602498,03.12.2014,Media,Training,200.00,REDACTED PERSONAL DATA
Revenue,Director of Childrens Services,5105602651,03.12.2014,Thompson House Tuition Centre (PRU),Medical Fees and Staff Welfare,100.00,REDACTED PERSONAL DATA
Revenue,Director of Childrens Services,5105602651,03.12.2014,Clatterford Pupil Referral Unit (PRU),Medical Fees and Staff Welfare,100.00,REDACTED PERSONAL DATA
Revenue,Director of Childrens Services,5105603226,10.12.2014,Accreditation Centre,Training,546.00,REDACTED PERSONAL DATA
Capital,Head of Economy & Tourism,5105603717,12.12.2014,Rights Of Way Capital Programme,Payment to Contractors - Capital,"2,200.00",FAITHFULL QUALITY TIMBER WORK
Revenue,Director of Childrens Services,5105605650,19.12.2014,Clatterford Pupil Referral Unit (PRU),Professional Services,135.00,REDACTED PERSONAL DATA
Revenue,Managing Director & Head of Paid Service,5105603561,12.12.2014,Drug Misuse - Adults,Payment to Private Contractors,210.00,REDACTED PERSONAL DATA
Revenue,Managing Director & Head of Paid Service,5105604903,17.12.2014,Drug Misuse - Adults,Payment to Private Contractors,210.00,REDACTED PERSONAL DATA
Revenue,Head of Economy & Tourism,5105606279,24.12.2014,Arts Projects,Professional Services,90.00,REDACTED PERSONAL DATA
Revenue,Head of Economy & Tourism,5105605230,17.12.2014,WL Training & Recruitment/Personnel,Training,790.00,REDACTED PERSONAL DATA
Revenue,Director of Childrens Services,5105603419,10.12.2014,Complaints (Children & Families),Professional Services,345.12,REDACTED PERSONAL DATA
Revenue,Director of Childrens Services,5105603187,19.12.2014,Accreditation Centre,Training,320.00,REDACTED PERSONAL DATA
Revenue,Director of Childrens Services,5105603187,19.12.2014,Accreditation Centre,Training,"1,000.00",REDACTED PERSONAL DATA
Revenue,Managing Director & Head of Paid Service,5105605732,19.12.2014,Strengthening Families,Payments to Voluntary and Other Associations,300.00,REDACTED PERSONAL DATA
Revenue,Managing Director & Head of Paid Service,5105605661,19.12.2014,Strengthening Families,Payments to Voluntary and Other Associations,150.00,REDACTED PERSONAL DATA
Revenue,Managing Director & Head of Paid Service,5105606604,24.12.2014,Strengthening Families,Payments to Voluntary and Other Associations,50.00,REDACTED PERSONAL DATA
Revenue,Director of Childrens Services,5105603502,10.12.2014,Thompson House Tuition Centre (PRU),Professional Services,225.00,ISLAND EQUUS
Revenue,Director of Childrens Services,5105603501,10.12.2014,Thompson House Tuition Centre (PRU),Professional Services,300.00,ISLAND EQUUS
Revenue,Director of Childrens Services,5105603504,10.12.2014,Clatterford Pupil Referral Unit (PRU),Professional Services,880.00,ISLAND EQUUS
Revenue,Director of Childrens Services,5105603500,10.12.2014,Clatterford Pupil Referral Unit (PRU),Professional Services,"1,630.00",ISLAND EQUUS
Revenue,Director of Childrens Services,5105605327,19.12.2014,Adult Social Care ASYE,Training,498.33,REDACTED PERSONAL DATA
Revenue,Director of Childrens Services,5105603629,12.12.2014,Adult Social Care ASYE,Training,498.34,REDACTED PERSONAL DATA
Revenue,Director of Childrens Services,5105606509,24.12.2014,Short Breaks,Charges from Independent Providers,529.04,REDACTED PERSONAL DATA
Capital,Head of Economy & Tourism,5105604877,17.12.2014,Rights Of Way Capital Programme,Payment to Contractors - Capital,280.00,REDACTED PERSONAL DATA
Revenue,Head of Economy & Tourism,5105604009,12.12.2014,Newport Library,Professional Services,195.00,REDACTED PERSONAL DATA
Revenue,Head of ASC & Community Wellbeing,5105606021,24.12.2014,Leaseholds by LA,Accommodation Costs - Leaseholder Payments,695.89,REDACTED PERSONAL DATA
Revenue,Head of ASC & Community Wellbeing,5105606021,24.12.2014,Leaseholds by LA,Accommodation Costs - Leaseholder Payments,695.89,REDACTED PERSONAL DATA
Revenue,Head of ASC & Community Wellbeing,5105606021,24.12.2014,Leaseholds by LA,Accommodation Costs - Leaseholder Payments,695.89,REDACTED PERSONAL DATA
Revenue,Head of ASC & Community Wellbeing,5105606021,24.12.2014,Leaseholds by LA,Accommodation Costs - Leaseholder Payments,695.89,REDACTED PERSONAL DATA
Revenue,Head of ASC & Community Wellbeing,5105606021,24.12.2014,Leaseholds by LA,Accommodation Costs - Leaseholder Payments,695.89,REDACTED PERSONAL DATA
Revenue,Head of Economy & Tourism,5105605030,19.12.2014,"St Thomas Church, Ryde",Minor Works,100.00,"PETER A ATTRILL, GARDENING SERVICES"
Revenue,Head of Economy & Tourism,5105606513,24.12.2014,Archaeology,Operational Equipment,21.75,REDACTED PERSONAL DATA
Revenue,Managing Director & Head of Paid Service,5105605025,17.12.2014,Strengthening Families,Payments to Voluntary and Other Associations,50.00,REDACTED PERSONAL DATA
Revenue,Managing Director & Head of Paid Service,5105605053,17.12.2014,Strengthening Families,Payments to Voluntary and Other Associations,50.00,REDACTED PERSONAL DATA
Revenue,Head of ASC & Community Wellbeing,5105606476,24.12.2014,Homelessness,Client Expenses,100.00,REDACTED PERSONAL DATA
Revenue,Director of Childrens Services,5105606564,24.12.2014,Children in Care Team,Transport of Clients,285.00,REDACTED PERSONAL DATA
Revenue,Director of Childrens Services,5105605090,17.12.2014,Hearing Impaired Service,Training,850.00,SIGN FOR THOUGHTS
Revenue,Head of Economy & Tourism,5105602484,03.12.2014,Medina Theatre,Payment to Private Contractors,50.00,REDACTED PERSONAL DATA
Revenue,Director of Childrens Services,5105606258,24.12.2014,LSCB (Local Safeguarding Childrens Board),Training,500.00,REDACTED PERSONAL DATA
Revenue,Director of Childrens Services,5105606258,24.12.2014,LSCB (Local Safeguarding Childrens Board),Training,269.18,REDACTED PERSONAL DATA
Revenue,Director of Childrens Services,5105603655,10.12.2014,Complaints (Children & Families),Professional Services,"1,495.90",REDACTED PERSONAL DATA
Revenue,Head of ASC & Community Wellbeing,5105606041,24.12.2014,Leaseholds by LA,Accommodation Costs - Leaseholder Payments,866.67,2K PROPERTY
Revenue,Head of ASC & Community Wellbeing,5105600668,03.12.2014,Adelaide Resource Centre,Catering Purchases,14.14,3663 (BFS GROUP LTD)
Revenue,Head of ASC & Community Wellbeing,5105602644,03.12.2014,Adelaide Resource Centre,Catering Purchases,357.90,3663 (BFS GROUP LTD)
Revenue,Head of ASC & Community Wellbeing,5105602487,03.12.2014,Adelaide Resource Centre,Catering Purchases,-14.14,3663 (BFS GROUP LTD)
Revenue,Head of ASC & Community Wellbeing,5105602644,03.12.2014,Adelaide Resource Centre,Catering Purchases,16.48,3663 (BFS GROUP LTD)
Revenue,Head of ASC & Community Wellbeing,5105602801,05.12.2014,Adelaide Resource Centre,Catering Purchases,56.54,3663 (BFS GROUP LTD)
Revenue,Head of ASC & Community Wellbeing,5105602801,05.12.2014,Adelaide Resource Centre,Catering Purchases,17.51,3663 (BFS GROUP LTD)
Revenue,Head of ASC & Community Wellbeing,5105603638,24.12.2014,Adelaide Resource Centre,Catering Purchases,307.08,3663 (BFS GROUP LTD)
Revenue,Head of ASC & Community Wellbeing,5105603638,24.12.2014,Adelaide Resource Centre,Catering Purchases,0.01,3663 (BFS GROUP LTD)
Revenue,Head of ASC & Community Wellbeing,5105603244,10.12.2014,Adelaide Resource Centre,Catering Purchases,184.00,3663 (BFS GROUP LTD)
Revenue,Head of ASC & Community Wellbeing,5105603244,10.12.2014,Adelaide Resource Centre,Catering Purchases,2.57,3663 (BFS GROUP LTD)
Revenue,Head of ASC & Community Wellbeing,5105606451,24.12.2014,Adelaide Resource Centre,Catering Purchases,-21.80,3663 (BFS GROUP LTD)
Revenue,Head of ASC & Community Wellbeing,5105605286,17.12.2014,Adelaide Resource Centre,Catering Purchases,12.50,3663 (BFS GROUP LTD)
Revenue,Head of ASC & Community Wellbeing,5105605287,17.12.2014,Adelaide Resource Centre,Catering Purchases,251.03,3663 (BFS GROUP LTD)
Revenue,Head of ASC & Community Wellbeing,5105605284,17.12.2014,Adelaide Resource Centre,Catering Purchases,153.01,3663 (BFS GROUP LTD)
Revenue,Head of ASC & Community Wellbeing,5105605290,17.12.2014,Adelaide Resource Centre,Catering Purchases,338.08,3663 (BFS GROUP LTD)
Revenue,Head of ASC & Community Wellbeing,5105605306,19.12.2014,Adelaide Resource Centre,Catering Purchases,118.90,3663 (BFS GROUP LTD)
Revenue,Head of ASC & Community Wellbeing,5105605306,19.12.2014,Adelaide Resource Centre,Catering Purchases,11.84,3663 (BFS GROUP LTD)
Revenue,Head of ASC & Community Wellbeing,5105605290,17.12.2014,Adelaide Resource Centre,Catering Purchases,44.22,3663 (BFS GROUP LTD)
Revenue,Head of ASC & Community Wellbeing,5105605287,17.12.2014,Adelaide Resource Centre,Catering Purchases,9.44,3663 (BFS GROUP LTD)
Revenue,Head of ASC & Community Wellbeing,5105605284,17.12.2014,Adelaide Resource Centre,Catering Purchases,5.14,3663 (BFS GROUP LTD)
Revenue,Head of ASC & Community Wellbeing,5105605228,17.12.2014,Gouldings Resource Centre,Catering Purchases,209.45,3663 (BFS GROUP LTD)
Revenue,Head of ASC & Community Wellbeing,5105605229,17.12.2014,Gouldings Resource Centre,Catering Purchases,83.80,3663 (BFS GROUP LTD)
Revenue,Head of ASC & Community Wellbeing,5105605231,17.12.2014,Gouldings Resource Centre,Catering Purchases,690.05,3663 (BFS GROUP LTD)
Revenue,Head of ASC & Community Wellbeing,5105605231,17.12.2014,Gouldings Resource Centre,Catering Purchases,4.89,3663 (BFS GROUP LTD)
Revenue,Head of ASC & Community Wellbeing,5105606474,24.12.2014,Gouldings Resource Centre,Catering Purchases,-18.95,3663 (BFS GROUP LTD)
Revenue,Head of ASC & Community Wellbeing,5105605675,19.12.2014,Gouldings Resource Centre,Catering Purchases,639.98,3663 (BFS GROUP LTD)
Revenue,Head of ASC & Community Wellbeing,5105605675,19.12.2014,Gouldings Resource Centre,Catering Purchases,30.48,3663 (BFS GROUP LTD)
Revenue,Head of ASC & Community Wellbeing,5105605685,19.12.2014,Gouldings Resource Centre,Catering Purchases,77.96,3663 (BFS GROUP LTD)
Revenue,Head of ASC & Community Wellbeing,5105603168,10.12.2014,Gouldings Resource Centre,Catering Purchases,718.10,3663 (BFS GROUP LTD)
Revenue,Head of ASC & Community Wellbeing,5105603168,10.12.2014,Gouldings Resource Centre,Catering Purchases,55.96,3663 (BFS GROUP LTD)
Revenue,Head of ASC & Community Wellbeing,5105603597,10.12.2014,Gouldings Resource Centre,Catering Purchases,458.08,3663 (BFS GROUP LTD)
Revenue,Head of ASC & Community Wellbeing,5105603597,10.12.2014,Gouldings Resource Centre,Catering Purchases,8.77,3663 (BFS GROUP LTD)
Revenue,Head of ASC & Community Wellbeing,5105602485,03.12.2014,Gouldings Resource Centre,Catering Purchases,193.01,3663 (BFS GROUP LTD)
Revenue,Head of ASC & Community Wellbeing,5105600626,10.12.2014,Westminster House,Catering Purchases,157.27,3663 (BFS GROUP LTD)
Revenue,Head of ASC & Community Wellbeing,5105602676,03.12.2014,Westminster House,Catering Purchases,183.21,3663 (BFS GROUP LTD)
Revenue,Head of ASC & Community Wellbeing,5105602816,05.12.2014,Westminster House,Catering Purchases,38.59,3663 (BFS GROUP LTD)
Revenue,Head of ASC & Community Wellbeing,5105602770,03.12.2014,Westminster House,Catering Purchases,36.11,3663 (BFS GROUP LTD)
Revenue,Head of ASC & Community Wellbeing,5105604032,12.12.2014,Westminster House,Catering Purchases,170.05,3663 (BFS GROUP LTD)
Revenue,Head of ASC & Community Wellbeing,5105604020,12.12.2014,Westminster House,Catering Purchases,106.81,3663 (BFS GROUP LTD)
Revenue,Head of ASC & Community Wellbeing,5105603915,17.12.2014,Westminster House,Catering Purchases,27.09,3663 (BFS GROUP LTD)
Revenue,Head of ASC & Community Wellbeing,5105603272,10.12.2014,Westminster House,Catering Purchases,-14.71,3663 (BFS GROUP LTD)
Revenue,Head of ASC & Community Wellbeing,5105606116,24.12.2014,Westminster House,Catering Purchases,156.02,3663 (BFS GROUP LTD)
Revenue,Head of ASC & Community Wellbeing,5105606388,24.12.2014,Westminster House,Catering Purchases,8.70,3663 (BFS GROUP LTD)
Revenue,Head of ASC & Community Wellbeing,5105606341,24.12.2014,Westminster House,Catering Purchases,22.81,3663 (BFS GROUP LTD)
Revenue,Head of ASC & Community Wellbeing,5105606340,24.12.2014,Westminster House,Catering Purchases,170.77,3663 (BFS GROUP LTD)
Revenue,Head of ASC & Community Wellbeing,5105605260,17.12.2014,Westminster House,Catering Purchases,36.11,3663 (BFS GROUP LTD)
Revenue,Head of ASC & Community Wellbeing,5105605258,17.12.2014,Westminster House,Catering Purchases,-36.11,3663 (BFS GROUP LTD)
Revenue,Head of Economy & Tourism,5105603563,10.12.2014,Ryde Sports Centre,Stock Purchases,227.61,3663 (BFS GROUP LTD)
Revenue,Head of Economy & Tourism,5105602584,03.12.2014,Fairway Sports Complex,Stock Purchases,431.85,3663 (BFS GROUP LTD)
Revenue,Head of Economy & Tourism,5105606400,24.12.2014,The Heights,Stock Purchases,54.32,3663 (BFS GROUP LTD)
Revenue,Head of Economy & Tourism,5105606251,24.12.2014,The Heights,Stock Purchases,33.54,3663 (BFS GROUP LTD)
Revenue,Head of Economy & Tourism,5105606251,24.12.2014,The Heights,Stock Purchases,37.08,3663 (BFS GROUP LTD)
Revenue,Head of Economy & Tourism,5105606266,24.12.2014,The Heights,Stock Purchases,142.53,3663 (BFS GROUP LTD)
Revenue,Head of Economy & Tourism,5105606515,24.12.2014,The Heights,Stock Purchases,121.42,3663 (BFS GROUP LTD)
Revenue,Head of Economy & Tourism,5105605727,19.12.2014,The Heights,Stock Purchases,260.93,3663 (BFS GROUP LTD)
Revenue,Head of Economy & Tourism,5105605728,19.12.2014,The Heights,Stock Purchases,51.67,3663 (BFS GROUP LTD)
Revenue,Head of Economy & Tourism,5105605728,19.12.2014,The Heights,Stock Purchases,69.71,3663 (BFS GROUP LTD)
Revenue,Head of Economy & Tourism,5105603180,10.12.2014,The Heights,Stock Purchases,188.82,3663 (BFS GROUP LTD)
Revenue,Head of Economy & Tourism,5105603158,10.12.2014,The Heights,Stock Purchases,35.86,3663 (BFS GROUP LTD)
Revenue,Head of Economy & Tourism,5105603158,10.12.2014,The Heights,Stock Purchases,14.29,3663 (BFS GROUP LTD)
Revenue,Head of Economy & Tourism,5105602611,03.12.2014,The Heights,Stock Purchases,52.90,3663 (BFS GROUP LTD)
Revenue,Head of Economy & Tourism,5105602610,03.12.2014,The Heights,Stock Purchases,63.62,3663 (BFS GROUP LTD)
Revenue,Head of Economy & Tourism,5105602611,03.12.2014,The Heights,Stock Purchases,66.54,3663 (BFS GROUP LTD)
Revenue,Head of Economy & Tourism,5105602610,03.12.2014,The Heights,Stock Purchases,35.76,3663 (BFS GROUP LTD)
Revenue,Head of Economy & Tourism,5105602597,03.12.2014,The Heights,Stock Purchases,179.79,3663 (BFS GROUP LTD)
Revenue,Head of Economy & Tourism,5105602608,03.12.2014,The Heights,Stock Purchases,229.19,3663 (BFS GROUP LTD)
Revenue,Head of Economy & Tourism,5105602603,03.12.2014,Medina Leisure Centre,Stock Purchases,6.39,3663 (BFS GROUP LTD)
Revenue,Head of Economy & Tourism,5105602595,03.12.2014,Medina Leisure Centre,Stock Purchases,5.00,3663 (BFS GROUP LTD)
Revenue,Head of Economy & Tourism,5105602595,03.12.2014,Medina Leisure Centre,Stock Purchases,52.64,3663 (BFS GROUP LTD)
Revenue,Head of Economy & Tourism,5105606139,24.12.2014,Medina Leisure Centre,Stock Purchases,13.08,3663 (BFS GROUP LTD)
Revenue,Head of Economy & Tourism,5105606139,24.12.2014,Medina Leisure Centre,Stock Purchases,42.32,3663 (BFS GROUP LTD)
Revenue,Head of Economy & Tourism,5105606333,24.12.2014,Medina Leisure Centre,Stock Purchases,36.80,3663 (BFS GROUP LTD)
Revenue,Head of Economy & Tourism,5105602583,03.12.2014,Medina Leisure Centre,Stock Purchases,569.76,3663 (BFS GROUP LTD)
Revenue,Head of Economy & Tourism,5105602583,03.12.2014,Medina Leisure Centre,Stock Purchases,17.61,3663 (BFS GROUP LTD)
Revenue,Head of Economy & Tourism,5105605711,19.12.2014,Medina Leisure Centre,Stock Purchases,798.83,3663 (BFS GROUP LTD)
Revenue,Head of Economy & Tourism,5105603227,10.12.2014,Westridge Squash Courts,Stock Purchases,194.68,3663 (BFS GROUP LTD)
Revenue,Head of Finance & S151 Officer,5105602648,03.12.2014,Project Manager Waste Strategy,Computer Software & Consumables,461.25,4 PROJECTS LIMITED
Revenue,Head of ASC & Community Wellbeing,5105606106,24.12.2014,Adelaide Resource Centre,Consumable Cleaning Materials,216.00,A & M APPLIANCE CARE
Revenue,Head of ASC & Community Wellbeing,5105606152,24.12.2014,Gouldings Resource Centre,Consumable Cleaning Materials,186.00,A & M APPLIANCE CARE
Revenue,Head of ASC & Community Wellbeing,5105603444,10.12.2014,Gouldings Resource Centre,Consumable Cleaning Materials,105.00,A & M APPLIANCE CARE
Revenue,Head of ASC & Community Wellbeing,5105603322,12.12.2014,Gouldings Resource Centre,Maintenance of Operational Equipment,258.64,A & M APPLIANCE CARE
Revenue,Head of ASC & Community Wellbeing,5105604326,17.12.2014,Gouldings Resource Centre,Maintenance of Operational Equipment,55.00,A & M APPLIANCE CARE
Revenue,Director of Childrens Services,5105603405,10.12.2014,Beaulieu House,Minor Works,75.40,A & M APPLIANCE CARE
Revenue,Chief Fire Officer,5105606602,24.12.2014,Diversity & Workforce,Training,59.00,REDACTED PERSONAL DATA
Revenue,Head of Economy & Tourism,5105606459,24.12.2014,October Walking Festival,Advertising & Publicity,-840.00,A & N MEDIA FINANCE SERVICES LTD
Revenue,Head of Economy & Tourism,5105606457,24.12.2014,October Walking Festival,Advertising & Publicity,840.00,A & N MEDIA FINANCE SERVICES LTD
Revenue,Director of Childrens Services,5105605733,19.12.2014,Core Programmes,Training,"1,100.00",REDACTED PERSONAL DATA
Revenue,Director of Childrens Services,5105603215,10.12.2014,Core Programmes,Training,725.00,REDACTED PERSONAL DATA
Revenue,Head of Economy & Tourism,5105605697,19.12.2014,Dinosaur Isle Museum (Sandown Geology),Operational Equipment,"1,750.00",REDACTED PERSONAL DATA
Revenue,Head of ASC & Community Wellbeing,5105606027,24.12.2014,Leaseholds by LA,Accommodation Costs - Leaseholder Payments,780.00,REDACTED PERSONAL DATA
Revenue,Director of Childrens Services,5105605407,19.12.2014,Special Guardianship Order Costs,Support Children,336.78,REDACTED PERSONAL DATA
Revenue,Director of Childrens Services,5105605407,19.12.2014,Special Guardianship Order Costs,Support Children,415.46,REDACTED PERSONAL DATA
Revenue,Director of Childrens Services,5105602873,05.12.2014,Special Guardianship Order Costs,Support Children,168.39,REDACTED PERSONAL DATA
Revenue,Director of Childrens Services,5105602873,05.12.2014,Special Guardianship Order Costs,Support Children,207.73,REDACTED PERSONAL DATA
Revenue,Director of Childrens Services,5105603774,12.12.2014,Special Guardianship Order Costs,Support Children,168.39,REDACTED PERSONAL DATA
Revenue,Director of Childrens Services,5105603774,12.12.2014,Special Guardianship Order Costs,Support Children,207.73,REDACTED PERSONAL DATA
Revenue,Director of Childrens Services,5105602943,05.12.2014,Leaving Care Costs,Support Children,120.89,REDACTED PERSONAL DATA
Revenue,Director of Childrens Services,5105602943,05.12.2014,Leaving Care Costs,Support Children,120.89,REDACTED PERSONAL DATA
Revenue,Director of Childrens Services,5105603845,12.12.2014,Leaving Care Costs,Support Children,120.89,REDACTED PERSONAL DATA
Revenue,Director of Childrens Services,5105603845,12.12.2014,Leaving Care Costs,Support Children,120.89,REDACTED PERSONAL DATA
Revenue,Director of Childrens Services,5105605477,19.12.2014,Leaving Care Costs,Support Children,241.78,REDACTED PERSONAL DATA
Revenue,Director of Childrens Services,5105605477,19.12.2014,Leaving Care Costs,Support Children,241.78,REDACTED PERSONAL DATA
Revenue,Director of Childrens Services,5105602943,05.12.2014,Leaving Care Costs,Accommodation Costs - Service Users,57.50,REDACTED PERSONAL DATA
Revenue,Director of Childrens Services,5105602943,05.12.2014,Leaving Care Costs,Accommodation Costs - Service Users,57.50,REDACTED PERSONAL DATA
Revenue,Director of Childrens Services,5105603845,12.12.2014,Leaving Care Costs,Accommodation Costs - Service Users,57.50,REDACTED PERSONAL DATA
Revenue,Director of Childrens Services,5105603845,12.12.2014,Leaving Care Costs,Accommodation Costs - Service Users,57.50,REDACTED PERSONAL DATA
Revenue,Director of Childrens Services,5105605477,19.12.2014,Leaving Care Costs,Accommodation Costs - Service Users,115.00,REDACTED PERSONAL DATA
Revenue,Director of Childrens Services,5105605477,19.12.2014,Leaving Care Costs,Accommodation Costs - Service Users,115.00,REDACTED PERSONAL DATA
Revenue,Head of ASC & Community Wellbeing,5105606036,24.12.2014,Leaseholds by LA,Accommodation Costs - Leaseholder Payments,510.25,REDACTED PERSONAL DATA
Revenue,Head of ASC & Community Wellbeing,5105606036,24.12.2014,Leaseholds by LA,Accommodation Costs - Leaseholder Payments,510.25,REDACTED PERSONAL DATA
Revenue,Head of ASC & Community Wellbeing,5105606036,24.12.2014,Leaseholds by LA,Accommodation Costs - Leaseholder Payments,510.25,REDACTED PERSONAL DATA
Revenue,Head of ASC & Community Wellbeing,5105606036,24.12.2014,Leaseholds by LA,Accommodation Costs - Leaseholder Payments,510.25,REDACTED PERSONAL DATA
Revenue,Head of ASC & Community Wellbeing,5105606036,24.12.2014,Leaseholds by LA,Accommodation Costs - Leaseholder Payments,510.25,REDACTED PERSONAL DATA
Revenue,Head of ASC & Community Wellbeing,5105606036,24.12.2014,Leaseholds by LA,Accommodation Costs - Leaseholder Payments,510.25,REDACTED PERSONAL DATA
Revenue,Director of Childrens Services,5105602851,05.12.2014,Adoption Costs,Support Children,186.49,REDACTED PERSONAL DATA
Revenue,Director of Childrens Services,5105603752,12.12.2014,Adoption Costs,Support Children,186.49,REDACTED PERSONAL DATA
Revenue,Director of Childrens Services,5105605385,19.12.2014,Adoption Costs,Support Children,372.98,REDACTED PERSONAL DATA
Revenue,Head of ASC & Community Wellbeing,5105606038,24.12.2014,Leaseholds by LA,Accommodation Costs - Leaseholder Payments,780.00,REDACTED PERSONAL DATA
Revenue,Head of ASC & Community Wellbeing,5105606025,24.12.2014,Leaseholds by LA,Accommodation Costs - Leaseholder Payments,649.83,REDACTED PERSONAL DATA
Revenue,Head of ASC & Community Wellbeing,5105606025,24.12.2014,Leaseholds by LA,Accommodation Costs - Leaseholder Payments,789.01,REDACTED PERSONAL DATA
Revenue,Head of ASC & Community Wellbeing,5105606025,24.12.2014,Leaseholds by LA,Accommodation Costs - Leaseholder Payments,835.08,REDACTED PERSONAL DATA
Revenue,Director of Childrens Services,5105602847,05.12.2014,Adoption Costs,Support Children,87.15,REDACTED PERSONAL DATA
Revenue,Director of Childrens Services,5105603748,12.12.2014,Adoption Costs,Support Children,87.15,REDACTED PERSONAL DATA
Revenue,Director of Childrens Services,5105605381,19.12.2014,Adoption Costs,Support Children,174.30,REDACTED PERSONAL DATA
Revenue,Director of Childrens Services,5105602971,05.12.2014,In-house Fostering,Boarding Out Allowances,242.08,REDACTED PERSONAL DATA
Revenue,Director of Childrens Services,5105602971,05.12.2014,In-house Fostering,Boarding Out Allowances,150.00,REDACTED PERSONAL DATA
Revenue,Director of Childrens Services,5105603872,12.12.2014,In-house Fostering,Boarding Out Allowances,150.00,REDACTED PERSONAL DATA
Revenue,Director of Childrens Services,5105603872,12.12.2014,In-house Fostering,Boarding Out Allowances,242.08,REDACTED PERSONAL DATA
Revenue,Director of Childrens Services,5105605504,19.12.2014,In-house Fostering,Boarding Out Allowances,300.00,REDACTED PERSONAL DATA
Revenue,Director of Childrens Services,5105605504,19.12.2014,In-house Fostering,Boarding Out Allowances,484.16,REDACTED PERSONAL DATA
Revenue,Head of ASC & Community Wellbeing,5105605798,19.12.2014,Supporting People Older Persons,Payment to Private Contractors,736.80,ABBEYFIELD WEST WIGHT SOCIETY
Revenue,Head of HR & Organisational Change,5105606538,24.12.2014,ICT Refresh Programme,Computer Maintenance,"8,400.00",ABSOFT LIMITED
Revenue,Head of ASC & Community Wellbeing,5105601909,03.12.2014,Elderly Frail Residential Care,Charges from Independent Providers,"1,700.44",ACACIA CARE HOME
Revenue,Head of ASC & Community Wellbeing,5105601909,03.12.2014,Elderly Frail Residential Care,Charges from Independent Providers,"1,700.44",ACACIA CARE HOME
Revenue,Head of ASC & Community Wellbeing,5105601909,03.12.2014,Elderly Frail Residential Care,Charges from Independent Providers,"1,700.44",ACACIA CARE HOME
Revenue,Head of ASC & Community Wellbeing,5105606638,24.12.2014,Elderly Frail Residential Care,Charges from Independent Providers,"1,457.52",ACACIA CARE HOME
Revenue,Head of ASC & Community Wellbeing,5105606771,24.12.2014,Elderly Frail Residential Care,Charges from Independent Providers,"1,700.44",ACACIA CARE HOME
Revenue,Head of ASC & Community Wellbeing,5105606771,24.12.2014,Elderly Frail Residential Care,Charges from Independent Providers,"1,700.44",ACACIA CARE HOME
Revenue,Head of ASC & Community Wellbeing,5105602837,05.12.2014,Elderly Mentally Ill Residential Care,Charges from Independent Providers,381.72,ACACIA CARE HOME
Revenue,Head of ASC & Community Wellbeing,5105602837,05.12.2014,Elderly Mentally Ill Residential Care,Charges from Independent Providers,"1,781.36",ACACIA CARE HOME
Revenue,Head of ASC & Community Wellbeing,5105606771,24.12.2014,Elderly Mentally Ill Residential Care,Charges from Independent Providers,"1,781.36",ACACIA CARE HOME
Revenue,Head of ASC & Community Wellbeing,5105603647,12.12.2014,S75 Integrated Community Equipment Store,Interview & recruitment expenses,26.00,ACCESS PERSONAL CHECKING SERVICES LTD
Revenue,Head of ASC & Community Wellbeing,5105603647,12.12.2014,S75 Integrated Community Equipment Store,Interview & recruitment expenses,6.00,ACCESS PERSONAL CHECKING SERVICES LTD
Revenue,Head of ASC & Community Wellbeing,5105603647,12.12.2014,31 Carter Avenue,Interview & recruitment expenses,44.00,ACCESS PERSONAL CHECKING SERVICES LTD
Revenue,Head of ASC & Community Wellbeing,5105603647,12.12.2014,31 Carter Avenue,Interview & recruitment expenses,6.00,ACCESS PERSONAL CHECKING SERVICES LTD
Revenue,Head of ASC & Community Wellbeing,5105603647,12.12.2014,Saxonbury,Interview & recruitment expenses,44.00,ACCESS PERSONAL CHECKING SERVICES LTD
Revenue,Head of ASC & Community Wellbeing,5105603647,12.12.2014,Saxonbury,Interview & recruitment expenses,6.00,ACCESS PERSONAL CHECKING SERVICES LTD
Revenue,Head of ASC & Community Wellbeing,5105603647,12.12.2014,40 Venner Avenue,Interview & recruitment expenses,36.00,ACCESS PERSONAL CHECKING SERVICES LTD
Revenue,Head of ASC & Community Wellbeing,5105603647,12.12.2014,40 Venner Avenue,Interview & recruitment expenses,264.00,ACCESS PERSONAL CHECKING SERVICES LTD
Revenue,Head of ASC & Community Wellbeing,5105603647,12.12.2014,Highmead,Interview & recruitment expenses,6.00,ACCESS PERSONAL CHECKING SERVICES LTD
Revenue,Head of ASC & Community Wellbeing,5105603647,12.12.2014,Highmead,Interview & recruitment expenses,44.00,ACCESS PERSONAL CHECKING SERVICES LTD
Revenue,Head of ASC & Community Wellbeing,5105603647,12.12.2014,Wightcare,Interview & recruitment expenses,6.00,ACCESS PERSONAL CHECKING SERVICES LTD
Revenue,Head of ASC & Community Wellbeing,5105603647,12.12.2014,Wightcare,Interview & recruitment expenses,44.00,ACCESS PERSONAL CHECKING SERVICES LTD
Revenue,Head of ASC & Community Wellbeing,5105603647,12.12.2014,Community Outreach,Interview & recruitment expenses,12.00,ACCESS PERSONAL CHECKING SERVICES LTD
Revenue,Head of ASC & Community Wellbeing,5105603647,12.12.2014,Community Outreach,Interview & recruitment expenses,88.00,ACCESS PERSONAL CHECKING SERVICES LTD
Revenue,Head of ASC & Community Wellbeing,5105603647,12.12.2014,Gouldings Resource Centre,Interview & recruitment expenses,44.00,ACCESS PERSONAL CHECKING SERVICES LTD
Revenue,Head of ASC & Community Wellbeing,5105603647,12.12.2014,Gouldings Resource Centre,Interview & recruitment expenses,6.00,ACCESS PERSONAL CHECKING SERVICES LTD
Revenue,Head of Economy & Tourism,5105603647,12.12.2014,Medina Leisure Centre,Interview & recruitment expenses,88.00,ACCESS PERSONAL CHECKING SERVICES LTD
Revenue,Head of Economy & Tourism,5105603647,12.12.2014,Medina Leisure Centre,Interview & recruitment expenses,6.00,ACCESS PERSONAL CHECKING SERVICES LTD
Revenue,Director of Childrens Services,5105603647,12.12.2014,Clatterford Pupil Referral Unit (PRU),Interview & recruitment expenses,6.00,ACCESS PERSONAL CHECKING SERVICES LTD
Revenue,Director of Childrens Services,5105603647,12.12.2014,Youth Offending Team,Interview & recruitment expenses,6.00,ACCESS PERSONAL CHECKING SERVICES LTD
Revenue,Director of Childrens Services,5105603647,12.12.2014,Youth Offending Team,Interview & recruitment expenses,44.00,ACCESS PERSONAL CHECKING SERVICES LTD
Revenue,Director of Childrens Services,5105603647,12.12.2014,Children In Need 1,Interview & recruitment expenses,12.00,ACCESS PERSONAL CHECKING SERVICES LTD
Revenue,Director of Childrens Services,5105603647,12.12.2014,Children In Need 1,Interview & recruitment expenses,88.00,ACCESS PERSONAL CHECKING SERVICES LTD
Revenue,Director of Childrens Services,5105603647,12.12.2014,Direct Payments Children & Families,Interview & recruitment expenses,6.00,ACCESS PERSONAL CHECKING SERVICES LTD
Revenue,Director of Childrens Services,5105603647,12.12.2014,Direct Payments Children & Families,Interview & recruitment expenses,44.00,ACCESS PERSONAL CHECKING SERVICES LTD
Revenue,Director of Childrens Services,5105603647,12.12.2014,In-house Fostering,Interview & recruitment expenses,484.00,ACCESS PERSONAL CHECKING SERVICES LTD
Revenue,Director of Childrens Services,5105603647,12.12.2014,In-house Fostering,Interview & recruitment expenses,78.00,ACCESS PERSONAL CHECKING SERVICES LTD
Revenue,Director of Childrens Services,5105603647,12.12.2014,Adoption Team,Interview & recruitment expenses,132.00,ACCESS PERSONAL CHECKING SERVICES LTD
Revenue,Director of Childrens Services,5105603647,12.12.2014,Adoption Team,Interview & recruitment expenses,18.00,ACCESS PERSONAL CHECKING SERVICES LTD
Revenue,Director of Childrens Services,5105603647,12.12.2014,Beaulieu House,Interview & recruitment expenses,88.00,ACCESS PERSONAL CHECKING SERVICES LTD
Revenue,Director of Childrens Services,5105603647,12.12.2014,Beaulieu House,Interview & recruitment expenses,12.00,ACCESS PERSONAL CHECKING SERVICES LTD
Revenue,Head of Finance & S151 Officer,5105603647,12.12.2014,Community Bus Service,Interview & recruitment expenses,6.00,ACCESS PERSONAL CHECKING SERVICES LTD
Revenue,Head of Finance & S151 Officer,5105603647,12.12.2014,Community Bus Service,Interview & recruitment expenses,44.00,ACCESS PERSONAL CHECKING SERVICES LTD
Revenue,Head of Planning & Regulatory Services,5105603645,10.12.2014,Licensing Services,Interview & recruitment expenses,440.00,ACCESS PERSONAL CHECKING SERVICES LTD
Revenue,Head of Planning & Regulatory Services,5105603645,10.12.2014,Licensing Services,Professional Services,60.00,ACCESS PERSONAL CHECKING SERVICES LTD
Revenue,Head of ASC & Community Wellbeing,5105605786,19.12.2014,Elderly Frail Homecare,Charges from Independent Providers,760.55,ACORN CARE SERVICE LTD
Revenue,Head of ASC & Community Wellbeing,5105604523,17.12.2014,Elderly Frail Homecare,Charges from Independent Providers,415.52,ACORN CARE SERVICE LTD
Revenue,Head of ASC & Community Wellbeing,5105604524,17.12.2014,Elderly Frail Homecare,Charges from Independent Providers,641.83,ACORN CARE SERVICE LTD
Revenue,Head of ASC & Community Wellbeing,5105604521,17.12.2014,Elderly Frail Homecare,Charges from Independent Providers,508.27,ACORN CARE SERVICE LTD
Revenue,Head of ASC & Community Wellbeing,5105604525,17.12.2014,Elderly Frail Homecare,Charges from Independent Providers,59.36,ACORN CARE SERVICE LTD
Revenue,Head of ASC & Community Wellbeing,5105604529,17.12.2014,Elderly Frail Homecare,Charges from Independent Providers,415.52,ACORN CARE SERVICE LTD
Revenue,Head of ASC & Community Wellbeing,5105604514,17.12.2014,Elderly Frail Homecare,Charges from Independent Providers,419.23,ACORN CARE SERVICE LTD
Revenue,Head of ASC & Community Wellbeing,5105604515,17.12.2014,Elderly Frail Homecare,Charges from Independent Providers,682.64,ACORN CARE SERVICE LTD
Revenue,Head of ASC & Community Wellbeing,5105604526,17.12.2014,Elderly Frail Homecare,Charges from Independent Providers,511.98,ACORN CARE SERVICE LTD
Revenue,Head of ASC & Community Wellbeing,5105605540,19.12.2014,Elderly Frail Homecare,Charges from Independent Providers,489.72,ACORN CARE SERVICE LTD
Revenue,Head of ASC & Community Wellbeing,5105604532,17.12.2014,Elderly Frail Homecare,Charges from Independent Providers,356.16,ACORN CARE SERVICE LTD
Revenue,Head of ASC & Community Wellbeing,5105604527,17.12.2014,Elderly Frail Homecare,Regular Respite Care,111.30,ACORN CARE SERVICE LTD
Revenue,Head of ASC & Community Wellbeing,5105604513,17.12.2014,Elderly Frail Homecare,Regular Respite Care,207.76,ACORN CARE SERVICE LTD
Revenue,Head of ASC & Community Wellbeing,5105604511,17.12.2014,Elderly Frail Homecare,Regular Respite Care,89.04,ACORN CARE SERVICE LTD
Revenue,Head of ASC & Community Wellbeing,5105604522,17.12.2014,Elderly Frail Homecare,Regular Respite Care,771.68,ACORN CARE SERVICE LTD
Revenue,Head of ASC & Community Wellbeing,5105604520,17.12.2014,Elderly Frail Homecare,Regular Respite Care,118.72,ACORN CARE SERVICE LTD
Revenue,Head of ASC & Community Wellbeing,5105604518,17.12.2014,Elderly Frail Homecare,Regular Respite Care,118.72,ACORN CARE SERVICE LTD
Revenue,Head of ASC & Community Wellbeing,5105604533,17.12.2014,Elderly Frail Homecare,Charges from Independent Providers,"2,292.78",ACORN CARE SERVICE LTD
Revenue,Head of ASC & Community Wellbeing,5105604516,17.12.2014,Elderly Frail Homecare,Charges from Independent Providers,118.72,ACORN CARE SERVICE LTD
Revenue,Head of ASC & Community Wellbeing,5105604530,17.12.2014,Elderly Frail Homecare,Charges from Independent Providers,296.80,ACORN CARE SERVICE LTD
Revenue,Head of ASC & Community Wellbeing,5105604531,17.12.2014,Elderly Frail Homecare,Charges from Independent Providers,511.98,ACORN CARE SERVICE LTD
Revenue,Head of ASC & Community Wellbeing,5105604519,17.12.2014,Elderly Frail Homecare,Charges from Independent Providers,712.32,ACORN CARE SERVICE LTD
Revenue,Head of ASC & Community Wellbeing,5105604517,17.12.2014,Elderly Frail Homecare,Charges from Independent Providers,"2,693.46",ACORN CARE SERVICE LTD
Revenue,Head of ASC & Community Wellbeing,5105604510,17.12.2014,Elderly Frail Homecare,Charges from Independent Providers,211.47,ACORN CARE SERVICE LTD
Revenue,Head of ASC & Community Wellbeing,5105604512,17.12.2014,Elderly Frail Homecare,Charges from Independent Providers,623.28,ACORN CARE SERVICE LTD
Revenue,Head of ASC & Community Wellbeing,5105604494,17.12.2014,Elderly Frail Homecare,Charges from Independent Providers,"2,062.76",ACORN CARE SERVICE LTD
Revenue,Head of ASC & Community Wellbeing,5105604495,17.12.2014,Elderly Frail Homecare,Charges from Independent Providers,"2,329.88",ACORN CARE SERVICE LTD
Revenue,Head of ASC & Community Wellbeing,5105604503,17.12.2014,Elderly Frail Homecare,Charges from Independent Providers,504.56,ACORN CARE SERVICE LTD
Revenue,Head of ASC & Community Wellbeing,5105604504,17.12.2014,Elderly Frail Homecare,Charges from Independent Providers,471.17,ACORN CARE SERVICE LTD
Revenue,Head of ASC & Community Wellbeing,5105604497,17.12.2014,Elderly Frail Homecare,Charges from Independent Providers,"1,558.20",ACORN CARE SERVICE LTD
Revenue,Head of ASC & Community Wellbeing,5105604505,17.12.2014,Elderly Frail Homecare,Charges from Independent Providers,96.46,ACORN CARE SERVICE LTD
Revenue,Head of ASC & Community Wellbeing,5105604498,17.12.2014,Elderly Frail Homecare,Charges from Independent Providers,"1,417.22",ACORN CARE SERVICE LTD
Revenue,Head of ASC & Community Wellbeing,5105604499,17.12.2014,Elderly Frail Homecare,Charges from Independent Providers,385.84,ACORN CARE SERVICE LTD
Revenue,Head of ASC & Community Wellbeing,5105604500,17.12.2014,Elderly Frail Homecare,Charges from Independent Providers,"1,157.52",ACORN CARE SERVICE LTD
Revenue,Head of ASC & Community Wellbeing,5105604501,17.12.2014,Elderly Frail Homecare,Charges from Independent Providers,845.88,ACORN CARE SERVICE LTD
Revenue,Head of ASC & Community Wellbeing,5105604502,17.12.2014,Elderly Frail Homecare,Charges from Independent Providers,207.76,ACORN CARE SERVICE LTD
Revenue,Head of ASC & Community Wellbeing,5105604506,17.12.2014,Elderly Frail Homecare,Charges from Independent Providers,59.36,ACORN CARE SERVICE LTD
Revenue,Head of ASC & Community Wellbeing,5105604507,17.12.2014,Elderly Frail Homecare,Charges from Independent Providers,118.72,ACORN CARE SERVICE LTD
Revenue,Head of ASC & Community Wellbeing,5105604508,17.12.2014,Elderly Frail Homecare,Charges from Independent Providers,222.60,ACORN CARE SERVICE LTD
Revenue,Head of ASC & Community Wellbeing,5105604509,17.12.2014,Elderly Frail Homecare,Charges from Independent Providers,823.62,ACORN CARE SERVICE LTD
Revenue,Head of ASC & Community Wellbeing,5105604496,17.12.2014,Elderly Frail Homecare,Charges from Independent Providers,296.80,ACORN CARE SERVICE LTD
Revenue,Head of ASC & Community Wellbeing,5105604528,17.12.2014,Elderly Frail Homecare,Charges from Independent Providers,207.76,ACORN CARE SERVICE LTD
Revenue,Head of ASC & Community Wellbeing,5105604534,17.12.2014,Elderly Frail Homecare,Charges from Independent Providers,118.72,ACORN CARE SERVICE LTD
Revenue,Head of ASC & Community Wellbeing,5105604109,12.12.2014,Elderly Frail Homecare,Charges from Independent Providers,77.91,ACORN CARE SERVICE LTD
Revenue,Head of ASC & Community Wellbeing,5105604535,17.12.2014,Elderly Frail Homecare,Charges from Independent Providers,727.16,ACORN CARE SERVICE LTD
Revenue,Head of ASC & Community Wellbeing,5105604536,17.12.2014,Elderly Frail Homecare,Charges from Independent Providers,831.04,ACORN CARE SERVICE LTD
Revenue,Chief Fire Officer,5105602654,03.12.2014,Diversity & Workforce,Training,"4,050.00",ACTIVE LEARNING AND DEVELOPMENT LTD
Revenue,Chief Fire Officer,5105602511,03.12.2014,Fire Technical Support,Vehicle Maintenance Costs,49.00,ADAMS MOREY LTD
Revenue,Chief Fire Officer,5105603110,10.12.2014,Fire Technical Support,Vehicle Maintenance Costs,36.66,ADAMS MOREY LTD
Revenue,Chief Fire Officer,5105603110,10.12.2014,Fire Technical Support,Vehicle Maintenance Costs,36.66,ADAMS MOREY LTD
Revenue,Chief Fire Officer,5105603110,10.12.2014,Fire Technical Support,Vehicle Maintenance Costs,16.65,ADAMS MOREY LTD
Revenue,Chief Fire Officer,5105603110,10.12.2014,Fire Technical Support,Vehicle Maintenance Costs,16.65,ADAMS MOREY LTD
Revenue,Chief Fire Officer,5105603590,10.12.2014,Fire Technical Support,Vehicle Maintenance Costs,14.50,ADAMS MOREY LTD
Revenue,Chief Fire Officer,5105603595,10.12.2014,Fire Technical Support,Vehicle Maintenance Costs,14.50,ADAMS MOREY LTD
Revenue,Chief Fire Officer,5105604826,17.12.2014,Fire Technical Support,Vehicle Maintenance Costs,21.75,ADAMS MOREY LTD
Revenue,Chief Fire Officer,5105604836,17.12.2014,Fire Technical Support,Vehicle Maintenance Costs,40.00,ADAMS MOREY LTD
Revenue,Chief Fire Officer,5105605731,19.12.2014,Fire Technical Support,Vehicle Maintenance Costs,-36.66,ADAMS MOREY LTD
Revenue,Chief Fire Officer,5105605731,19.12.2014,Fire Technical Support,Vehicle Maintenance Costs,-36.66,ADAMS MOREY LTD
Revenue,Chief Fire Officer,5105605731,19.12.2014,Fire Technical Support,Vehicle Maintenance Costs,-16.65,ADAMS MOREY LTD
Revenue,Chief Fire Officer,5105605731,19.12.2014,Fire Technical Support,Vehicle Maintenance Costs,-16.65,ADAMS MOREY LTD
Revenue,Chief Fire Officer,5105605892,19.12.2014,Fire Technical Support,Vehicle Maintenance Costs,37.22,ADAMS MOREY LTD
Revenue,Chief Fire Officer,5105605892,19.12.2014,Fire Technical Support,Vehicle Maintenance Costs,25.65,ADAMS MOREY LTD
Revenue,Chief Fire Officer,5105605892,19.12.2014,Fire Technical Support,Vehicle Maintenance Costs,17.04,ADAMS MOREY LTD
Revenue,Chief Fire Officer,5105605892,19.12.2014,Fire Technical Support,Vehicle Maintenance Costs,22.50,ADAMS MOREY LTD
Revenue,Chief Fire Officer,5105605892,19.12.2014,Fire Technical Support,Vehicle Maintenance Costs,11.00,ADAMS MOREY LTD
Revenue,Chief Fire Officer,5105605892,19.12.2014,Fire Technical Support,Vehicle Maintenance Costs,12.50,ADAMS MOREY LTD
Capital,Chief Fire Officer,5105605944,24.12.2014,Fire Capital Projects,Vehicle Leasing and Acquisition,220.00,ADAMS MOREY LTD
Capital,Chief Fire Officer,5105605944,24.12.2014,Fire Capital Projects,Vehicle Leasing and Acquisition,220.00,ADAMS MOREY LTD
Revenue,Managing Director & Head of Paid Service,5105604012,17.12.2014,Drug Misuse - Adults,Payment to Private Contractors,"2,950.00",ADDICTION RECOVERY CENTRE (ARC)
Revenue,Head of ASC & Community Wellbeing,5105601746,03.12.2014,Elderly Frail Residential Care,Charges from Independent Providers,"1,812.44",ADIEMUS CARE LTD
Revenue,Head of ASC & Community Wellbeing,5105606646,24.12.2014,Elderly Frail Residential Care,Charges from Independent Providers,"1,812.44",ADIEMUS CARE LTD
Revenue,Head of Economy & Tourism,5105606344,24.12.2014,Medina Theatre,Payment to Private Contractors,179.49,ADLER MANUFACTURING LTD
Revenue,Director of Childrens Services,5105602616,03.12.2014,Adoption Costs,Advertising & Publicity,550.00,ADOPTION UK
Revenue,Head of ASC & Community Wellbeing,5105603327,10.12.2014,Westminster House,Security of Buildings,130.00,ADT FIRE AND SECURITY PLC
Revenue,Head of Economy & Tourism,5105603167,10.12.2014,Medina Leisure Centre,Payment to Private Contractors,271.00,ADT FIRE AND SECURITY PLC
Revenue,Director of Childrens Services,5105605653,24.12.2014,Children in Care Team,Agency staff,"1,665.00",AFFINITY WORKFORCE
Revenue,Director of Childrens Services,5105605653,24.12.2014,Children in Care Team,Agency staff,91.35,AFFINITY WORKFORCE
Revenue,Director of Childrens Services,5105603911,12.12.2014,Children in Care Team,Agency staff,"1,665.00",AFFINITY WORKFORCE
Revenue,Director of Childrens Services,5105603648,19.12.2014,Children In Need 2,Agency staff,"1,591.00",AFFINITY WORKFORCE
Revenue,Director of Childrens Services,5105602826,10.12.2014,Children In Need 2,Agency staff,"1,591.00",AFFINITY WORKFORCE
Revenue,Director of Childrens Services,5105602823,05.12.2014,Children In Need 2,Agency staff,"1,591.00",AFFINITY WORKFORCE
Revenue,Director of Childrens Services,5105602824,10.12.2014,Children In Need 2,Agency staff,"1,591.00",AFFINITY WORKFORCE
Revenue,Director of Childrens Services,5105602821,05.12.2014,Children In Need 2,Agency staff,"1,591.00",AFFINITY WORKFORCE
Revenue,Director of Childrens Services,5105602828,10.12.2014,Children In Need 2,Agency staff,"1,591.00",AFFINITY WORKFORCE
Revenue,Director of Childrens Services,5105600426,03.12.2014,Children In Need 2,Agency staff,"1,798.65",AFFINITY WORKFORCE
Revenue,Director of Childrens Services,5105600433,03.12.2014,Children In Need 2,Agency staff,"1,372.95",AFFINITY WORKFORCE
Revenue,Director of Childrens Services,5105601423,03.12.2014,Children In Need 2,Agency staff,677.25,AFFINITY WORKFORCE
Revenue,Director of Childrens Services,5105600422,03.12.2014,Children In Need 2,Agency staff,"1,735.20",AFFINITY WORKFORCE
Revenue,Director of Childrens Services,5105603646,19.12.2014,Children In Need 2,Agency staff,725.00,AFFINITY WORKFORCE
Revenue,Director of Childrens Services,5105603646,19.12.2014,Children In Need 2,Agency staff,13.50,AFFINITY WORKFORCE
Revenue,Director of Childrens Services,5105602769,10.12.2014,Children In Need 3,Agency staff,"1,665.00",AFFINITY WORKFORCE
Revenue,Director of Childrens Services,5105602831,10.12.2014,Children In Need 3,Agency staff,945.00,AFFINITY WORKFORCE
Revenue,Director of Childrens Services,5105602685,10.12.2014,Children In Need 3,Agency staff,"1,665.00",AFFINITY WORKFORCE
Revenue,Head of ASC & Community Wellbeing,5105606523,24.12.2014,Mental Health Other Care,Charges from Independent Providers,16.00,AGE CONCERN ISLE OF WIGHT
Capital,Director of Childrens Services,5105603602,24.12.2014,Children Services Early Years,Payment to Contractors - Capital,"4,678.00",AIR DESIGN SOLUTIONS LTD
Revenue,Head of Exchequer Services,5105603585,10.12.2014,Housing Benefit,Consultants Fees,162.50,AIREY CONSULTANCY SERVICES LTD
Revenue,Head of Exchequer Services,5105603585,10.12.2014,Council Tax,Consultants Fees,162.50,AIREY CONSULTANCY SERVICES LTD
Revenue,Managing Director & Head of Paid Service,5105602571,19.12.2014,NHS Health Check Programme,Payment to Private Contractors,"1,000.00",ALERE LTD
Revenue,Managing Director & Head of Paid Service,5105602570,03.12.2014,NHS Health Check Programme,Payment to Private Contractors,277.00,ALERE LTD
Revenue,Managing Director & Head of Paid Service,5105602571,19.12.2014,NHS Health Check Programme,Payment to Private Contractors,24.06,ALERE LTD
Revenue,Managing Director & Head of Paid Service,5105602571,19.12.2014,NHS Health Check Programme,Payment to Private Contractors,550.00,ALERE LTD
Revenue,Managing Director & Head of Paid Service,5105602571,19.12.2014,NHS Health Check Programme,Payment to Private Contractors,29.22,ALERE LTD
Revenue,Managing Director & Head of Paid Service,5105602571,19.12.2014,NHS Health Check Programme,Payment to Private Contractors,7.38,ALERE LTD
Revenue,Director of Childrens Services,5105605059,17.12.2014,Special Educational Needs Reforms Grant,Training,"2,000.00",REDACTED PERSONAL DATA
Revenue,Head of Planning & Regulatory Services,5105606268,24.12.2014,Development Control,Advertising & Publicity,177.83,ALEXANDER ADVERTISING (INT) LTD
Revenue,Head of Planning & Regulatory Services,5105605310,19.12.2014,Development Control,Advertising & Publicity,115.06,ALEXANDER ADVERTISING (INT) LTD
Revenue,Head of Planning & Regulatory Services,5105602715,03.12.2014,Development Control,Advertising & Publicity,266.74,ALEXANDER ADVERTISING (INT) LTD
Revenue,Head of Planning & Regulatory Services,5105604011,12.12.2014,Development Control,Advertising & Publicity,345.19,ALEXANDER ADVERTISING (INT) LTD
Revenue,Head of Planning & Regulatory Services,5105604049,12.12.2014,Development Control,Advertising & Publicity,366.12,ALEXANDER ADVERTISING (INT) LTD
Revenue,Managing Director & Head of Paid Service,5105605536,19.12.2014,Director of Resources,Hire of facilities,60.00,ALL SAINTS C E PRIMARY SCHOOL
Revenue,Director of Childrens Services,5105606158,24.12.2014,Clatterford Pupil Referral Unit (PRU),Transport of Clients,295.00,REDACTED PERSONAL DATA
Revenue,Director of Childrens Services,5105606154,24.12.2014,Clatterford Pupil Referral Unit (PRU),Transport of Clients,257.00,REDACTED PERSONAL DATA
Revenue,Chief Fire Officer,5105602612,03.12.2014,Fire Technical Support,Stock Purchases,114.00,ALLBATTERIES UK LTD
Revenue,Chief Fire Officer,5105602612,03.12.2014,Fire Technical Support,Stock Purchases,68.00,ALLBATTERIES UK LTD
Revenue,Head of Economy & Tourism,5105603317,10.12.2014,Youth Council,Public Transport Fares,12.00,ALPHA (IOW) LTD
Revenue,Director of Childrens Services,5105602825,24.12.2014,Support for Looked After Children,Transport of Clients,"1,298.80",ALPHA (IOW) LTD
Revenue,Director of Childrens Services,5105603643,24.12.2014,Support for Looked After Children,Transport of Clients,851.50,ALPHA (IOW) LTD
Revenue,Director of Childrens Services,5105602825,24.12.2014,Support for Looked After Children - Disabled Childrens Team,Transport of Clients,141.50,ALPHA (IOW) LTD
Revenue,Director of Childrens Services,5105603643,24.12.2014,Support for Looked After Children - Disabled Childrens Team,Transport of Clients,240.00,ALPHA (IOW) LTD
Revenue,Director of Childrens Services,5105602825,24.12.2014,Support for Looked After Children - Disabled Childrens Team,Transport of Clients,480.00,ALPHA (IOW) LTD
Revenue,Director of Childrens Services,5105603643,24.12.2014,Support for Looked After Children - Disabled Childrens Team,Transport of Clients,191.75,ALPHA (IOW) LTD
Revenue,Director of Childrens Services,5105602825,24.12.2014,Post Inspection Improvement cost,Taxis - Contract Hire,28.50,ALPHA (IOW) LTD
Revenue,Director of Childrens Services,5105603643,24.12.2014,Independ. & Non-Maint. Special Schls & Independ. Specialist Provision,Transport of Clients,240.00,ALPHA (IOW) LTD
Revenue,Director of Childrens Services,5105603643,24.12.2014,Independ. & Non-Maint. Special Schls & Independ. Specialist Provision,Transport of Clients,191.75,ALPHA (IOW) LTD
Revenue,Director of Childrens Services,5105602825,24.12.2014,Independ. & Non-Maint. Special Schls & Independ. Specialist Provision,Transport of Clients,480.00,ALPHA (IOW) LTD
Revenue,Director of Childrens Services,5105602825,24.12.2014,Independ. & Non-Maint. Special Schls & Independ. Specialist Provision,Transport of Clients,141.50,ALPHA (IOW) LTD
Revenue,Director of Childrens Services,5105606526,24.12.2014,Special Educational Needs Transport,Taxis - Contract Hire,188.00,ALPHA (IOW) LTD
Revenue,Director of Childrens Services,5105606526,24.12.2014,Special Educational Needs Transport,Taxis - Contract Hire,200.00,ALPHA (IOW) LTD
Revenue,Director of Childrens Services,5105606526,24.12.2014,Special Educational Needs Transport,Taxis - Contract Hire,304.80,ALPHA (IOW) LTD
Revenue,Director of Childrens Services,5105604794,17.12.2014,Special Educational Needs Transport,Taxis - Contract Hire,50.00,ALPHA (IOW) LTD
Revenue,Director of Childrens Services,5105605992,24.12.2014,Special Educational Needs Transport,Taxis - Contract Hire,321.45,ALPHA (IOW) LTD
Revenue,Director of Childrens Services,5105605992,24.12.2014,Special Educational Needs Transport,Taxis - Contract Hire,320.00,ALPHA (IOW) LTD
Revenue,Director of Childrens Services,5105605992,24.12.2014,Special Educational Needs Transport,Taxis - Contract Hire,304.80,ALPHA (IOW) LTD
Revenue,Director of Childrens Services,5105605992,24.12.2014,Special Educational Needs Transport,Taxis - Contract Hire,267.90,ALPHA (IOW) LTD
Revenue,Director of Childrens Services,5105605992,24.12.2014,Special Educational Needs Transport,Taxis - Contract Hire,457.20,ALPHA (IOW) LTD
Revenue,Director of Childrens Services,5105605992,24.12.2014,Special Educational Needs Transport,Taxis - Contract Hire,461.75,ALPHA (IOW) LTD
Revenue,Director of Childrens Services,5105605992,24.12.2014,Special Educational Needs Transport,Taxis - Contract Hire,188.00,ALPHA (IOW) LTD
Revenue,Director of Childrens Services,5105605992,24.12.2014,Special Educational Needs Transport,Taxis - Contract Hire,200.00,ALPHA (IOW) LTD
Revenue,Director of Childrens Services,5105606526,24.12.2014,Special Educational Needs Transport,Taxis - Contract Hire,75.00,ALPHA (IOW) LTD
Revenue,Director of Childrens Services,5105606526,24.12.2014,Special Educational Needs Transport,Taxis - Contract Hire,376.00,ALPHA (IOW) LTD
Revenue,Director of Childrens Services,5105606526,24.12.2014,Special Educational Needs Transport,Taxis - Contract Hire,355.60,ALPHA (IOW) LTD
Revenue,Director of Childrens Services,5105606526,24.12.2014,Special Educational Needs Transport,Taxis - Contract Hire,396.90,ALPHA (IOW) LTD
Revenue,Director of Childrens Services,5105606526,24.12.2014,Special Educational Needs Transport,Taxis - Contract Hire,313.35,ALPHA (IOW) LTD
Revenue,Director of Childrens Services,5105606526,24.12.2014,Special Educational Needs Transport,Taxis - Contract Hire,321.45,ALPHA (IOW) LTD
Revenue,Director of Childrens Services,5105606526,24.12.2014,Special Educational Needs Transport,Taxis - Contract Hire,320.00,ALPHA (IOW) LTD
Revenue,Director of Childrens Services,5105606526,24.12.2014,Special Educational Needs Transport,Taxis - Contract Hire,267.90,ALPHA (IOW) LTD
Revenue,Director of Childrens Services,5105606526,24.12.2014,Special Educational Needs Transport,Taxis - Contract Hire,457.20,ALPHA (IOW) LTD
Revenue,Director of Childrens Services,5105606526,24.12.2014,Special Educational Needs Transport,Taxis - Contract Hire,461.75,ALPHA (IOW) LTD
Revenue,Director of Childrens Services,5105603579,10.12.2014,Special Educational Needs Transport,Taxis - Contract Hire,376.00,ALPHA (IOW) LTD
Revenue,Director of Childrens Services,5105603579,10.12.2014,Special Educational Needs Transport,Taxis - Contract Hire,355.60,ALPHA (IOW) LTD
Revenue,Director of Childrens Services,5105603203,10.12.2014,Special Educational Needs Transport,Taxis - Contract Hire,355.60,ALPHA (IOW) LTD
Revenue,Director of Childrens Services,5105603203,10.12.2014,Special Educational Needs Transport,Taxis - Contract Hire,396.90,ALPHA (IOW) LTD
Revenue,Director of Childrens Services,5105603579,10.12.2014,Special Educational Needs Transport,Taxis - Contract Hire,396.90,ALPHA (IOW) LTD
Revenue,Director of Childrens Services,5105603579,10.12.2014,Special Educational Needs Transport,Taxis - Contract Hire,313.35,ALPHA (IOW) LTD
Revenue,Director of Childrens Services,5105603203,10.12.2014,Special Educational Needs Transport,Taxis - Contract Hire,313.35,ALPHA (IOW) LTD
Revenue,Director of Childrens Services,5105603579,10.12.2014,Special Educational Needs Transport,Taxis - Contract Hire,200.00,ALPHA (IOW) LTD
Revenue,Director of Childrens Services,5105603579,10.12.2014,Special Educational Needs Transport,Taxis - Contract Hire,267.90,ALPHA (IOW) LTD
Revenue,Director of Childrens Services,5105603203,10.12.2014,Special Educational Needs Transport,Taxis - Contract Hire,267.90,ALPHA (IOW) LTD
Revenue,Director of Childrens Services,5105603203,10.12.2014,Special Educational Needs Transport,Taxis - Contract Hire,457.20,ALPHA (IOW) LTD
Revenue,Director of Childrens Services,5105603579,10.12.2014,Special Educational Needs Transport,Taxis - Contract Hire,457.20,ALPHA (IOW) LTD
Revenue,Director of Childrens Services,5105603579,10.12.2014,Special Educational Needs Transport,Taxis - Contract Hire,321.45,ALPHA (IOW) LTD
Revenue,Director of Childrens Services,5105603203,10.12.2014,Special Educational Needs Transport,Taxis - Contract Hire,321.45,ALPHA (IOW) LTD
Revenue,Director of Childrens Services,5105603579,10.12.2014,Special Educational Needs Transport,Taxis - Contract Hire,320.00,ALPHA (IOW) LTD
Revenue,Director of Childrens Services,5105603203,10.12.2014,Special Educational Needs Transport,Taxis - Contract Hire,320.00,ALPHA (IOW) LTD
Revenue,Director of Childrens Services,5105603579,10.12.2014,Special Educational Needs Transport,Taxis - Contract Hire,304.80,ALPHA (IOW) LTD
Revenue,Director of Childrens Services,5105603203,10.12.2014,Special Educational Needs Transport,Taxis - Contract Hire,304.80,ALPHA (IOW) LTD
Revenue,Director of Childrens Services,5105603579,10.12.2014,Special Educational Needs Transport,Taxis - Contract Hire,461.75,ALPHA (IOW) LTD
Revenue,Director of Childrens Services,5105603203,10.12.2014,Special Educational Needs Transport,Taxis - Contract Hire,461.75,ALPHA (IOW) LTD
Revenue,Director of Childrens Services,5105604794,17.12.2014,Special Educational Needs Transport,Taxis - Contract Hire,376.00,ALPHA (IOW) LTD
Revenue,Director of Childrens Services,5105604794,17.12.2014,Special Educational Needs Transport,Taxis - Contract Hire,355.60,ALPHA (IOW) LTD
Revenue,Director of Childrens Services,5105604794,17.12.2014,Special Educational Needs Transport,Taxis - Contract Hire,396.90,ALPHA (IOW) LTD
Revenue,Director of Childrens Services,5105604794,17.12.2014,Special Educational Needs Transport,Taxis - Contract Hire,313.35,ALPHA (IOW) LTD
Revenue,Director of Childrens Services,5105603203,10.12.2014,Special Educational Needs Transport,Taxis - Contract Hire,50.00,ALPHA (IOW) LTD
Revenue,Director of Childrens Services,5105603579,10.12.2014,Special Educational Needs Transport,Taxis - Contract Hire,50.00,ALPHA (IOW) LTD
Revenue,Director of Childrens Services,5105603203,10.12.2014,Special Educational Needs Transport,Taxis - Contract Hire,188.00,ALPHA (IOW) LTD
Revenue,Director of Childrens Services,5105603579,10.12.2014,Special Educational Needs Transport,Taxis - Contract Hire,188.00,ALPHA (IOW) LTD
Revenue,Director of Childrens Services,5105603203,10.12.2014,Special Educational Needs Transport,Taxis - Contract Hire,376.00,ALPHA (IOW) LTD
Revenue,Director of Childrens Services,5105603203,10.12.2014,Special Educational Needs Transport,Taxis - Contract Hire,200.00,ALPHA (IOW) LTD
Revenue,Director of Childrens Services,5105604794,17.12.2014,Special Educational Needs Transport,Taxis - Contract Hire,321.45,ALPHA (IOW) LTD
Revenue,Director of Childrens Services,5105604794,17.12.2014,Special Educational Needs Transport,Taxis - Contract Hire,320.00,ALPHA (IOW) LTD
Revenue,Director of Childrens Services,5105604794,17.12.2014,Special Educational Needs Transport,Taxis - Contract Hire,267.90,ALPHA (IOW) LTD
Revenue,Director of Childrens Services,5105604794,17.12.2014,Special Educational Needs Transport,Taxis - Contract Hire,457.20,ALPHA (IOW) LTD
Revenue,Director of Childrens Services,5105604794,17.12.2014,Special Educational Needs Transport,Taxis - Contract Hire,461.75,ALPHA (IOW) LTD
Revenue,Director of Childrens Services,5105604794,17.12.2014,Special Educational Needs Transport,Taxis - Contract Hire,304.80,ALPHA (IOW) LTD
Revenue,Director of Childrens Services,5105604794,17.12.2014,Special Educational Needs Transport,Taxis - Contract Hire,188.00,ALPHA (IOW) LTD
Revenue,Director of Childrens Services,5105604794,17.12.2014,Special Educational Needs Transport,Taxis - Contract Hire,200.00,ALPHA (IOW) LTD
Revenue,Director of Childrens Services,5105605992,24.12.2014,Special Educational Needs Transport,Taxis - Contract Hire,25.00,ALPHA (IOW) LTD
Revenue,Director of Childrens Services,5105605992,24.12.2014,Special Educational Needs Transport,Taxis - Contract Hire,376.00,ALPHA (IOW) LTD
Revenue,Director of Childrens Services,5105605992,24.12.2014,Special Educational Needs Transport,Taxis - Contract Hire,355.60,ALPHA (IOW) LTD
Revenue,Director of Childrens Services,5105605992,24.12.2014,Special Educational Needs Transport,Taxis - Contract Hire,396.90,ALPHA (IOW) LTD
Revenue,Director of Childrens Services,5105605992,24.12.2014,Special Educational Needs Transport,Taxis - Contract Hire,313.35,ALPHA (IOW) LTD
Revenue,Director of Childrens Services,5105605992,24.12.2014,Home to School Transport,Taxis - Contract Hire,415.50,ALPHA (IOW) LTD
Revenue,Director of Childrens Services,5105604794,17.12.2014,Home to School Transport,Taxis - Contract Hire,396.90,ALPHA (IOW) LTD
Revenue,Director of Childrens Services,5105604794,17.12.2014,Home to School Transport,Taxis - Contract Hire,254.00,ALPHA (IOW) LTD
Revenue,Director of Childrens Services,5105604794,17.12.2014,Home to School Transport,Taxis - Contract Hire,314.95,ALPHA (IOW) LTD
Revenue,Director of Childrens Services,5105604794,17.12.2014,Home to School Transport,Taxis - Contract Hire,428.25,ALPHA (IOW) LTD
Revenue,Director of Childrens Services,5105603579,10.12.2014,Home to School Transport,Taxis - Contract Hire,396.90,ALPHA (IOW) LTD
Revenue,Director of Childrens Services,5105604794,17.12.2014,Home to School Transport,Taxis - Contract Hire,415.50,ALPHA (IOW) LTD
Revenue,Director of Childrens Services,5105603579,10.12.2014,Home to School Transport,Taxis - Contract Hire,254.00,ALPHA (IOW) LTD
Revenue,Director of Childrens Services,5105603203,10.12.2014,Home to School Transport,Taxis - Contract Hire,254.00,ALPHA (IOW) LTD
Revenue,Director of Childrens Services,5105603203,10.12.2014,Home to School Transport,Taxis - Contract Hire,314.95,ALPHA (IOW) LTD
Revenue,Director of Childrens Services,5105603579,10.12.2014,Home to School Transport,Taxis - Contract Hire,314.95,ALPHA (IOW) LTD
Revenue,Director of Childrens Services,5105603203,10.12.2014,Home to School Transport,Taxis - Contract Hire,396.90,ALPHA (IOW) LTD
Revenue,Director of Childrens Services,5105603203,10.12.2014,Home to School Transport,Taxis - Contract Hire,428.25,ALPHA (IOW) LTD
Revenue,Director of Childrens Services,5105603579,10.12.2014,Home to School Transport,Taxis - Contract Hire,428.25,ALPHA (IOW) LTD
Revenue,Director of Childrens Services,5105603203,10.12.2014,Home to School Transport,Taxis - Contract Hire,415.50,ALPHA (IOW) LTD
Revenue,Director of Childrens Services,5105603579,10.12.2014,Home to School Transport,Taxis - Contract Hire,415.50,ALPHA (IOW) LTD
Revenue,Director of Childrens Services,5105606526,24.12.2014,Home to School Transport,Taxis - Contract Hire,314.95,ALPHA (IOW) LTD
Revenue,Director of Childrens Services,5105606526,24.12.2014,Home to School Transport,Taxis - Contract Hire,428.25,ALPHA (IOW) LTD
Revenue,Director of Childrens Services,5105606526,24.12.2014,Home to School Transport,Taxis - Contract Hire,415.50,ALPHA (IOW) LTD
Revenue,Director of Childrens Services,5105605992,24.12.2014,Home to School Transport,Taxis - Contract Hire,254.00,ALPHA (IOW) LTD
Revenue,Director of Childrens Services,5105605992,24.12.2014,Home to School Transport,Taxis - Contract Hire,396.90,ALPHA (IOW) LTD
Revenue,Director of Childrens Services,5105605992,24.12.2014,Home to School Transport,Taxis - Contract Hire,314.95,ALPHA (IOW) LTD
Revenue,Director of Childrens Services,5105605992,24.12.2014,Home to School Transport,Taxis - Contract Hire,428.25,ALPHA (IOW) LTD
Revenue,Director of Childrens Services,5105606526,24.12.2014,Home to School Transport,Taxis - Contract Hire,254.00,ALPHA (IOW) LTD
Revenue,Director of Childrens Services,5105606526,24.12.2014,Home to School Transport,Taxis - Contract Hire,396.90,ALPHA (IOW) LTD
Revenue,Head of ASC & Community Wellbeing,5105601826,03.12.2014,Learning Disability Residential Care,Charges from Independent Providers,"3,836.84",ALPHAGRANGE LTD
Revenue,Head of ASC & Community Wellbeing,5105606686,24.12.2014,Learning Disability Residential Care,Charges from Independent Providers,"3,836.84",ALPHAGRANGE LTD
Revenue,Director of Childrens Services,5105605664,19.12.2014,Home to School Transport,Taxis - Contract Hire,521.00,AMAR CABS OF NEWPORT
Revenue,Head of Finance & S151 Officer,5105692426,10.12.2014,Project Manager Waste Strategy,Consultants Fees,787.00,AMEC ENVIRONMENT AND INFRASTRUCTURE UK LTD
Revenue,Head of Finance & S151 Officer,5105605651,24.12.2014,Project Manager Waste Strategy,Consultants Fees,"22,899.00",AMEC ENVIRONMENT AND INFRASTRUCTURE UK LTD
Revenue,Head of Finance & S151 Officer,5105605651,24.12.2014,Project Manager Waste Strategy,Professional Services,"30,092.00",AMEC ENVIRONMENT AND INFRASTRUCTURE UK LTD
Revenue,Head of Finance & S151 Officer,5105692426,10.12.2014,Project Manager Waste Strategy,Professional Services,"12,000.00",AMEC ENVIRONMENT AND INFRASTRUCTURE UK LTD
Revenue,Head of ASC & Community Wellbeing,5105601828,03.12.2014,Elderly Frail Residential Care,Charges from Independent Providers,"2,093.84",ANCONA CARE HOME
Revenue,Head of ASC & Community Wellbeing,5105601828,03.12.2014,Elderly Frail Residential Care,Charges from Independent Providers,"1,700.44",ANCONA CARE HOME
Revenue,Head of ASC & Community Wellbeing,5105606688,24.12.2014,Elderly Frail Residential Care,Charges from Independent Providers,"2,093.84",ANCONA CARE HOME
Revenue,Head of ASC & Community Wellbeing,5105606688,24.12.2014,Elderly Frail Residential Care,Charges from Independent Providers,"1,700.44",ANCONA CARE HOME
Revenue,Head of ASC & Community Wellbeing,5105601828,03.12.2014,Elderly Mentally Ill Residential Care,Charges from Independent Providers,"1,781.36",ANCONA CARE HOME
Revenue,Head of ASC & Community Wellbeing,5105601828,03.12.2014,Elderly Mentally Ill Residential Care,Charges from Independent Providers,"1,781.36",ANCONA CARE HOME
Revenue,Head of ASC & Community Wellbeing,5105606688,24.12.2014,Elderly Mentally Ill Residential Care,Charges from Independent Providers,"1,781.36",ANCONA CARE HOME
Revenue,Head of ASC & Community Wellbeing,5105606688,24.12.2014,Elderly Mentally Ill Residential Care,Charges from Independent Providers,"1,781.36",ANCONA CARE HOME
Revenue,Head of ASC & Community Wellbeing,5105601828,03.12.2014,REDACTED PERSONAL DATA,Order Settlement to Bal Sht GL,"2,093.84",ANCONA CARE HOME
Revenue,Head of ASC & Community Wellbeing,5105606688,24.12.2014,REDACTED PERSONAL DATA,Order Settlement to Bal Sht GL,"2,093.84",ANCONA CARE HOME
Revenue,Head of Economy & Tourism,5105603651,10.12.2014,Misc dinghy parks,Payment to Private Contractors,120.00,REDACTED PERSONAL DATA
Revenue,Head of Exchequer Services,5105606100,24.12.2014,Staff Benefits,Payment to Private Contractors,225.00,REDACTED PERSONAL DATA
Revenue,Head of Economy & Tourism,5105602735,03.12.2014,Print Unit,Printing Costs,46.60,ANTALIS MCNAUGHTON
Revenue,Head of Economy & Tourism,5105602735,03.12.2014,Print Unit,Printing Costs,58.40,ANTALIS MCNAUGHTON
Revenue,Head of Economy & Tourism,5105603993,12.12.2014,Print Unit,Printing Costs,89.60,ANTALIS MCNAUGHTON
Revenue,Head of Economy & Tourism,5105603993,12.12.2014,Print Unit,Printing Costs,28.12,ANTALIS MCNAUGHTON
Revenue,Head of Economy & Tourism,5105603991,12.12.2014,Print Unit,Printing Costs,32.88,ANTALIS MCNAUGHTON
Revenue,Head of Economy & Tourism,5105604047,12.12.2014,Print Unit,Printing Costs,46.60,ANTALIS MCNAUGHTON
Revenue,Head of Economy & Tourism,5105604047,12.12.2014,Print Unit,Printing Costs,70.08,ANTALIS MCNAUGHTON
Revenue,Head of Economy & Tourism,5105603429,10.12.2014,Print Unit,Printing Costs,58.40,ANTALIS MCNAUGHTON
Revenue,Head of Economy & Tourism,5105603429,10.12.2014,Print Unit,Printing Costs,63.48,ANTALIS MCNAUGHTON
Revenue,Head of Economy & Tourism,5105603420,10.12.2014,Print Unit,Printing Costs,29.70,ANTALIS MCNAUGHTON
Revenue,Head of Economy & Tourism,5105603420,10.12.2014,Print Unit,Printing Costs,93.20,ANTALIS MCNAUGHTON
Revenue,Head of Economy & Tourism,5105606111,24.12.2014,Print Unit,Printing Costs,59.98,ANTALIS MCNAUGHTON
Revenue,Head of Economy & Tourism,5105606356,24.12.2014,Print Unit,Printing Costs,69.90,ANTALIS MCNAUGHTON
Revenue,Head of Economy & Tourism,5105606356,24.12.2014,Print Unit,Printing Costs,90.00,ANTALIS MCNAUGHTON
Revenue,Head of Economy & Tourism,5105606356,24.12.2014,Print Unit,Printing Costs,31.74,ANTALIS MCNAUGHTON
Revenue,Head of Economy & Tourism,5105606510,24.12.2014,Print Unit,Printing Costs,230.70,ANTALIS MCNAUGHTON
Revenue,Head of Economy & Tourism,5105606593,24.12.2014,Print Unit,Printing Costs,87.60,ANTALIS MCNAUGHTON
Revenue,Head of Corp Gov & Monitoring Officer,5105603214,10.12.2014,Coroner,Payment to Private Contractors,720.00,HASELEY MANOR
Capital,Head of HR & Organisational Change,5105603284,10.12.2014,Strategic Projects,ICT Hardware & Software - Capital,"3,130.00",APPLE DISTRIBUTION INTERNATIONAL
Capital,Head of HR & Organisational Change,5105603284,10.12.2014,Strategic Projects,ICT Hardware & Software - Capital,"3,130.00",APPLE DISTRIBUTION INTERNATIONAL
Revenue,Head of Economy & Tourism,5105603518,10.12.2014,Estuaries Officer,Operational Equipment,"3,500.00",ARC CONSULTING LTD
Revenue,Head of HR & Organisational Change,5105606594,24.12.2014,County Hall Central Mail Room,Clothing & Laundry,186.28,ARCO LTD
Revenue,Head of ASC & Community Wellbeing,5105606601,24.12.2014,Community Outreach,Clothing & Laundry,1.80,ARCO LTD
Revenue,Head of ASC & Community Wellbeing,5105606601,24.12.2014,Community Outreach,Clothing & Laundry,14.99,ARCO LTD
Revenue,Head of Economy & Tourism,5105605658,19.12.2014,The Heights,Operational Equipment,8.27,ARCO LTD
Revenue,Head of Economy & Tourism,5105605658,19.12.2014,The Heights,Operational Equipment,14.14,ARCO LTD
Revenue,Head of Economy & Tourism,5105603286,10.12.2014,The Heights,Operational Equipment,129.44,ARCO LTD
Revenue,Head of Economy & Tourism,5105603286,10.12.2014,The Heights,Operational Equipment,11.89,ARCO LTD
Revenue,Head of Economy & Tourism,5105603286,10.12.2014,The Heights,Operational Equipment,16.86,ARCO LTD
Revenue,Head of Economy & Tourism,5105605663,19.12.2014,Medina Leisure Centre,Clothing & Laundry,10.96,ARCO LTD
Revenue,Head of Economy & Tourism,5105605654,19.12.2014,Medina Leisure Centre,Clothing & Laundry,54.72,ARCO LTD
Revenue,Head of Economy & Tourism,5105603565,10.12.2014,Medina Leisure Centre,Clothing & Laundry,25.20,ARCO LTD
Revenue,Head of Economy & Tourism,5105603600,10.12.2014,Medina Leisure Centre,Clothing & Laundry,57.36,ARCO LTD
Revenue,Head of Economy & Tourism,5105605686,19.12.2014,Parking Attendants,Clothing & Laundry,26.46,ARCO LTD
Revenue,Head of Economy & Tourism,5105604043,12.12.2014,Parking Attendants,Clothing & Laundry,26.46,ARCO LTD
Revenue,Head of Economy & Tourism,5105603201,10.12.2014,Environment officers,Clothing & Laundry,26.63,ARCO LTD
Revenue,Chief Fire Officer,5105605877,19.12.2014,Fire Technical Support,Vehicle Maintenance Costs,36.28,ARCO LTD
Revenue,Chief Fire Officer,5105605877,19.12.2014,Fire Technical Support,Vehicle Maintenance Costs,36.28,ARCO LTD
Revenue,Chief Fire Officer,5105603197,10.12.2014,Fire Technical Support,Operational Equipment,14.04,ARCO LTD
Revenue,Chief Fire Officer,5105603197,10.12.2014,Fire Technical Support,Stock Purchases,9.51,ARCO LTD
Revenue,Chief Fire Officer,5105603197,10.12.2014,Fire Technical Support,Stock Purchases,9.60,ARCO LTD
Revenue,Chief Fire Officer,5105603197,10.12.2014,Fire Technical Support,Stock Purchases,199.40,ARCO LTD
Revenue,Chief Fire Officer,5105603197,10.12.2014,Fire Technical Support,Stock Purchases,99.80,ARCO LTD
Revenue,Chief Fire Officer,5105603197,10.12.2014,Fire Technical Support,Stock Purchases,99.80,ARCO LTD
Revenue,Chief Fire Officer,5105603197,10.12.2014,Fire Technical Support,Stock Purchases,57.90,ARCO LTD
Revenue,Chief Fire Officer,5105603197,10.12.2014,Fire Technical Support,Stock Purchases,2.92,ARCO LTD
Revenue,Chief Fire Officer,5105603197,10.12.2014,Fire Technical Support,Stock Purchases,35.52,ARCO LTD
Revenue,Chief Fire Officer,5105603197,10.12.2014,Fire Technical Support,Stock Purchases,28.50,ARCO LTD
Revenue,Head of Planning & Regulatory Services,5105603594,10.12.2014,Trading Standards,Clothing & Laundry,3.94,ARCO LTD
Revenue,Head of Planning & Regulatory Services,5105603594,10.12.2014,Trading Standards,Clothing & Laundry,7.87,ARCO LTD
Revenue,Head of ASC & Community Wellbeing,5105602744,05.12.2014,Plean Dene,Maintenance of Operational Equipment,80.00,ARJO MED AB LTD
Revenue,Head of ASC & Community Wellbeing,5105605674,24.12.2014,Highmead,Maintenance of Operational Equipment,893.20,ARJO MED AB LTD
Revenue,Director of Childrens Services,5105603631,17.12.2014,Beaulieu House,Minor Works,546.00,ARJO MED AB LTD
Revenue,Director of Childrens Services,5105605235,17.12.2014,Workforce Development Schools,Training,855.12,ASPIRO EDUCATION LIMITED
Revenue,Director of Childrens Services,5105605232,17.12.2014,Workforce Development Schools,Training,823.15,ASPIRO EDUCATION LIMITED
Revenue,Head of HR & Organisational Change,5105602572,03.12.2014,"County Hall,Newport",Prop Svs only - Day to day mtce,189.12,ASSA ABLOY ENTRANCE SYSTEMS LTD
Revenue,Head of HR & Organisational Change,5105602574,03.12.2014,"Jubilee Stores, Newport",Prop Svs only - Day to day mtce,7.60,ASSA ABLOY ENTRANCE SYSTEMS LTD
Revenue,Head of HR & Organisational Change,5105602575,03.12.2014,"Jubilee Stores, Newport",Prop Svs only - Day to day mtce,43.99,ASSA ABLOY ENTRANCE SYSTEMS LTD
Revenue,Head of HR & Organisational Change,5105602573,03.12.2014,"Seaclose Offices, Newport",Prop Svs only - Day to day mtce,61.76,ASSA ABLOY ENTRANCE SYSTEMS LTD
Revenue,Head of ASC & Community Wellbeing,5105606203,24.12.2014,Mental Health Day Services,Property Services - Planned Maintenance,60.08,ASSA ABLOY ENTRANCE SYSTEMS LTD
Revenue,Head of Economy & Tourism,5105606508,24.12.2014,Dinosaur Isle Museum (Sandown Geology),Marketing Costs,98.00,ASSOC OF INDEPENDENT MUSEUMS LTD
Revenue,Chief Fire Officer,5105603986,12.12.2014,Fire Technical Support,Vehicle Maintenance Costs,331.39,ATS EUROMASTER LTD
Revenue,Chief Fire Officer,5105603986,12.12.2014,Fire Technical Support,Vehicle Maintenance Costs,13.05,ATS EUROMASTER LTD
Revenue,Chief Fire Officer,5105603986,12.12.2014,Fire Technical Support,Vehicle Maintenance Costs,3.48,ATS EUROMASTER LTD
Revenue,Chief Fire Officer,5105603986,12.12.2014,Fire Technical Support,Vehicle Maintenance Costs,5.58,ATS EUROMASTER LTD
Revenue,Director of Childrens Services,5105603209,24.12.2014,Purchased Residential,Charges from Independent Providers,"31,774.75",AUTISM WESSEX
Revenue,Director of Childrens Services,5105603223,19.12.2014,Purchased Residential,Charges from Independent Providers,"23,124.42",AUTISM WESSEX
Revenue,Director of Childrens Services,5105603223,19.12.2014,NHS Funded Placements,Charges from Independent Providers,"2,566.47",AUTISM WESSEX
Revenue,Director of Childrens Services,5105603209,24.12.2014,NHS Funded Placements,Charges from Independent Providers,"3,531.12",AUTISM WESSEX
Revenue,Director of Childrens Services,5105603209,24.12.2014,Independ. & Non-Maint. Special Schls & Independ. Specialist Provision,Charges from Independent Providers,"17,873.63",AUTISM WESSEX
Revenue,Director of Childrens Services,5105603223,19.12.2014,Independ. & Non-Maint. Special Schls & Independ. Specialist Provision,Charges from Independent Providers,"11,721.21",AUTISM WESSEX
Revenue,Head of Exchequer Services,5105606177,24.12.2014,Council Tax,Stationery,73.46,AUTOMAIL ENVELOPES LTD
Revenue,Head of ASC & Community Wellbeing,5105601799,03.12.2014,Elderly Frail Residential Care,Charges from Independent Providers,"2,093.84",AUTUMN HOUSE CARE LTD
Revenue,Head of ASC & Community Wellbeing,5105601799,03.12.2014,Elderly Frail Residential Care,Charges from Independent Providers,"2,093.84",AUTUMN HOUSE CARE LTD
Revenue,Head of ASC & Community Wellbeing,5105603333,10.12.2014,Elderly Frail Residential Care,Charges from Independent Providers,"1,032.41",AUTUMN HOUSE CARE LTD
Revenue,Head of ASC & Community Wellbeing,5105606659,24.12.2014,Elderly Frail Residential Care,Charges from Independent Providers,"2,093.84",AUTUMN HOUSE CARE LTD
Revenue,Head of ASC & Community Wellbeing,5105606659,24.12.2014,Elderly Frail Residential Care,Charges from Independent Providers,"2,093.84",AUTUMN HOUSE CARE LTD
Revenue,Head of ASC & Community Wellbeing,5105601799,03.12.2014,Elderly Mentally Ill Residential Care,Charges from Independent Providers,"1,781.36",AUTUMN HOUSE CARE LTD
Revenue,Head of ASC & Community Wellbeing,5105601799,03.12.2014,Elderly Mentally Ill Residential Care,Charges from Independent Providers,"2,093.84",AUTUMN HOUSE CARE LTD
Revenue,Head of ASC & Community Wellbeing,5105601799,03.12.2014,Elderly Mentally Ill Residential Care,Charges from Independent Providers,"2,093.84",AUTUMN HOUSE CARE LTD
Revenue,Head of ASC & Community Wellbeing,5105601799,03.12.2014,Elderly Mentally Ill Residential Care,Charges from Independent Providers,"1,781.36",AUTUMN HOUSE CARE LTD
Revenue,Head of ASC & Community Wellbeing,5105601799,03.12.2014,Elderly Mentally Ill Residential Care,Charges from Independent Providers,"2,093.84",AUTUMN HOUSE CARE LTD
Revenue,Head of ASC & Community Wellbeing,5105601799,03.12.2014,Elderly Mentally Ill Residential Care,Charges from Independent Providers,"2,093.84",AUTUMN HOUSE CARE LTD
Revenue,Head of ASC & Community Wellbeing,5105601799,03.12.2014,Elderly Mentally Ill Residential Care,Charges from Independent Providers,"2,093.84",AUTUMN HOUSE CARE LTD
Revenue,Head of ASC & Community Wellbeing,5105601799,03.12.2014,Elderly Mentally Ill Residential Care,Charges from Independent Providers,"2,093.84",AUTUMN HOUSE CARE LTD
Revenue,Head of ASC & Community Wellbeing,5105601799,03.12.2014,Elderly Mentally Ill Residential Care,Charges from Independent Providers,"2,093.84",AUTUMN HOUSE CARE LTD
Revenue,Head of ASC & Community Wellbeing,5105601799,03.12.2014,Elderly Mentally Ill Residential Care,Charges from Independent Providers,"2,093.84",AUTUMN HOUSE CARE LTD
Revenue,Head of ASC & Community Wellbeing,5105601799,03.12.2014,Elderly Mentally Ill Residential Care,Charges from Independent Providers,"2,093.84",AUTUMN HOUSE CARE LTD
Revenue,Head of ASC & Community Wellbeing,5105601799,03.12.2014,Elderly Mentally Ill Residential Care,Charges from Independent Providers,"2,093.84",AUTUMN HOUSE CARE LTD
Revenue,Head of ASC & Community Wellbeing,5105601799,03.12.2014,Elderly Mentally Ill Residential Care,Charges from Independent Providers,"1,781.36",AUTUMN HOUSE CARE LTD
Revenue,Head of ASC & Community Wellbeing,5105601799,03.12.2014,Elderly Mentally Ill Residential Care,Charges from Independent Providers,"2,093.84",AUTUMN HOUSE CARE LTD
Revenue,Head of ASC & Community Wellbeing,5105601799,03.12.2014,Elderly Mentally Ill Residential Care,Charges from Independent Providers,"2,093.84",AUTUMN HOUSE CARE LTD
Revenue,Head of ASC & Community Wellbeing,5105601799,03.12.2014,Elderly Mentally Ill Residential Care,Charges from Independent Providers,"2,093.84",AUTUMN HOUSE CARE LTD
Revenue,Head of ASC & Community Wellbeing,5105601799,03.12.2014,Elderly Mentally Ill Residential Care,Charges from Independent Providers,"2,093.84",AUTUMN HOUSE CARE LTD
Revenue,Head of ASC & Community Wellbeing,5105601799,03.12.2014,Elderly Mentally Ill Residential Care,Charges from Independent Providers,"2,093.84",AUTUMN HOUSE CARE LTD
Revenue,Head of ASC & Community Wellbeing,5105601799,03.12.2014,Elderly Mentally Ill Residential Care,Charges from Independent Providers,"1,781.36",AUTUMN HOUSE CARE LTD
Revenue,Head of ASC & Community Wellbeing,5105601799,03.12.2014,Elderly Mentally Ill Residential Care,Charges from Independent Providers,"2,093.84",AUTUMN HOUSE CARE LTD
Revenue,Head of ASC & Community Wellbeing,5105601799,03.12.2014,Elderly Mentally Ill Residential Care,Charges from Independent Providers,"2,093.84",AUTUMN HOUSE CARE LTD
Revenue,Head of ASC & Community Wellbeing,5105602835,05.12.2014,Elderly Mentally Ill Residential Care,Charges from Independent Providers,299.12,AUTUMN HOUSE CARE LTD
Revenue,Head of ASC & Community Wellbeing,5105602835,05.12.2014,Elderly Mentally Ill Residential Care,Charges from Independent Providers,"8,375.36",AUTUMN HOUSE CARE LTD
Revenue,Head of ASC & Community Wellbeing,5105606659,24.12.2014,Elderly Mentally Ill Residential Care,Charges from Independent Providers,"2,093.84",AUTUMN HOUSE CARE LTD
Revenue,Head of ASC & Community Wellbeing,5105606659,24.12.2014,Elderly Mentally Ill Residential Care,Charges from Independent Providers,"2,093.84",AUTUMN HOUSE CARE LTD
Revenue,Head of ASC & Community Wellbeing,5105606659,24.12.2014,Elderly Mentally Ill Residential Care,Charges from Independent Providers,"2,093.84",AUTUMN HOUSE CARE LTD
Revenue,Head of ASC & Community Wellbeing,5105606659,24.12.2014,Elderly Mentally Ill Residential Care,Charges from Independent Providers,"2,093.84",AUTUMN HOUSE CARE LTD
Revenue,Head of ASC & Community Wellbeing,5105606659,24.12.2014,Elderly Mentally Ill Residential Care,Charges from Independent Providers,"2,093.84",AUTUMN HOUSE CARE LTD
Revenue,Head of ASC & Community Wellbeing,5105606659,24.12.2014,Elderly Mentally Ill Residential Care,Charges from Independent Providers,"2,093.84",AUTUMN HOUSE CARE LTD
Revenue,Head of ASC & Community Wellbeing,5105606659,24.12.2014,Elderly Mentally Ill Residential Care,Charges from Independent Providers,"1,781.36",AUTUMN HOUSE CARE LTD
Revenue,Head of ASC & Community Wellbeing,5105606659,24.12.2014,Elderly Mentally Ill Residential Care,Charges from Independent Providers,"2,093.84",AUTUMN HOUSE CARE LTD
Revenue,Head of ASC & Community Wellbeing,5105606659,24.12.2014,Elderly Mentally Ill Residential Care,Charges from Independent Providers,"1,781.36",AUTUMN HOUSE CARE LTD
Revenue,Head of ASC & Community Wellbeing,5105605749,19.12.2014,Elderly Mentally Ill Residential Care,Charges from Independent Providers,299.12,AUTUMN HOUSE CARE LTD
Revenue,Head of ASC & Community Wellbeing,5105605749,19.12.2014,Elderly Mentally Ill Residential Care,Charges from Independent Providers,"2,093.84",AUTUMN HOUSE CARE LTD
Revenue,Head of ASC & Community Wellbeing,5105606659,24.12.2014,Elderly Mentally Ill Residential Care,Charges from Independent Providers,"2,093.84",AUTUMN HOUSE CARE LTD
Revenue,Head of ASC & Community Wellbeing,5105606659,24.12.2014,Elderly Mentally Ill Residential Care,Charges from Independent Providers,"2,093.84",AUTUMN HOUSE CARE LTD
Revenue,Head of ASC & Community Wellbeing,5105606659,24.12.2014,Elderly Mentally Ill Residential Care,Charges from Independent Providers,"2,093.84",AUTUMN HOUSE CARE LTD
Revenue,Head of ASC & Community Wellbeing,5105606659,24.12.2014,Elderly Mentally Ill Residential Care,Charges from Independent Providers,"2,093.84",AUTUMN HOUSE CARE LTD
Revenue,Head of ASC & Community Wellbeing,5105606659,24.12.2014,Elderly Mentally Ill Residential Care,Charges from Independent Providers,"2,093.84",AUTUMN HOUSE CARE LTD
Revenue,Head of ASC & Community Wellbeing,5105606659,24.12.2014,Elderly Mentally Ill Residential Care,Charges from Independent Providers,"1,781.36",AUTUMN HOUSE CARE LTD
Revenue,Head of ASC & Community Wellbeing,5105606659,24.12.2014,Elderly Mentally Ill Residential Care,Charges from Independent Providers,"1,781.36",AUTUMN HOUSE CARE LTD
Revenue,Head of ASC & Community Wellbeing,5105606659,24.12.2014,Elderly Mentally Ill Residential Care,Charges from Independent Providers,"2,093.84",AUTUMN HOUSE CARE LTD
Revenue,Head of ASC & Community Wellbeing,5105606659,24.12.2014,Elderly Mentally Ill Residential Care,Charges from Independent Providers,"2,093.84",AUTUMN HOUSE CARE LTD
Revenue,Head of ASC & Community Wellbeing,5105606659,24.12.2014,Elderly Mentally Ill Residential Care,Charges from Independent Providers,"2,093.84",AUTUMN HOUSE CARE LTD
Revenue,Head of ASC & Community Wellbeing,5105606659,24.12.2014,Elderly Mentally Ill Residential Care,Charges from Independent Providers,"2,093.84",AUTUMN HOUSE CARE LTD
Revenue,Head of ASC & Community Wellbeing,5105606659,24.12.2014,Elderly Mentally Ill Residential Care,Charges from Independent Providers,"2,093.84",AUTUMN HOUSE CARE LTD
Revenue,Head of ASC & Community Wellbeing,5105601799,03.12.2014,Mental Health Residential Care,Charges from Independent Providers,"1,700.44",AUTUMN HOUSE CARE LTD
Revenue,Head of ASC & Community Wellbeing,5105601799,03.12.2014,Mental Health Residential Care,Charges from Independent Providers,"1,700.44",AUTUMN HOUSE CARE LTD
Revenue,Head of ASC & Community Wellbeing,5105606659,24.12.2014,Mental Health Residential Care,Charges from Independent Providers,"1,700.44",AUTUMN HOUSE CARE LTD
Revenue,Head of ASC & Community Wellbeing,5105601799,03.12.2014,Physical Disability Residential Care,Charges from Independent Providers,"2,093.84",AUTUMN HOUSE CARE LTD
Revenue,Head of ASC & Community Wellbeing,5105606659,24.12.2014,Physical Disability Residential Care,Charges from Independent Providers,"2,093.84",AUTUMN HOUSE CARE LTD
Revenue,Director of Childrens Services,5105603577,10.12.2014,Clatterford Pupil Referral Unit (PRU),Schools Examination Fees,287.40,AVON VALLEY COLLEGE
Revenue,Director of Childrens Services,5105602865,05.12.2014,Leaving Care Costs,Accommodation Costs - Service Users,50.00,REDACTED PERSONAL DATA
Revenue,Director of Childrens Services,5105603766,12.12.2014,Leaving Care Costs,Accommodation Costs - Service Users,50.00,REDACTED PERSONAL DATA
Revenue,Director of Childrens Services,5105605399,19.12.2014,Leaving Care Costs,Accommodation Costs - Service Users,100.00,REDACTED PERSONAL DATA
Revenue,Director of Childrens Services,5105605644,19.12.2014,Branstone Farm Studies Centre,Gas,39.00,REDACTED PERSONAL DATA
Revenue,Director of Childrens Services,5105605644,19.12.2014,Branstone Farm Studies Centre,Gas,39.00,REDACTED PERSONAL DATA
Revenue,Director of Childrens Services,5105605644,19.12.2014,Branstone Farm Studies Centre,Gas,39.00,REDACTED PERSONAL DATA
Revenue,Head of ASC & Community Wellbeing,5105601813,03.12.2014,Learning Disability Residential Care,Charges from Independent Providers,"1,894.76",REDACTED PERSONAL DATA
Revenue,Head of ASC & Community Wellbeing,5105601813,03.12.2014,Learning Disability Residential Care,Charges from Independent Providers,"1,894.76",REDACTED PERSONAL DATA
Revenue,Head of ASC & Community Wellbeing,5105601813,03.12.2014,Learning Disability Residential Care,Charges from Independent Providers,"2,745.40",REDACTED PERSONAL DATA
Revenue,Head of ASC & Community Wellbeing,5105606673,24.12.2014,Learning Disability Residential Care,Charges from Independent Providers,"1,894.76",REDACTED PERSONAL DATA
Revenue,Head of ASC & Community Wellbeing,5105606673,24.12.2014,Learning Disability Residential Care,Charges from Independent Providers,"1,894.76",REDACTED PERSONAL DATA
Revenue,Head of ASC & Community Wellbeing,5105606673,24.12.2014,Learning Disability Residential Care,Charges from Independent Providers,"2,745.40",REDACTED PERSONAL DATA
Revenue,Head of ASC & Community Wellbeing,5105606022,24.12.2014,Leaseholds by LA,Accommodation Costs - Leaseholder Payments,815.49,REDACTED PERSONAL DATA
Revenue,Head of Exchequer Services,5105606085,24.12.2014,Staff Benefits,Payment to Private Contractors,243.00,REDACTED PERSONAL DATA
Revenue,Head of Exchequer Services,5105606085,24.12.2014,Staff Benefits,Payment to Private Contractors,100.00,REDACTED PERSONAL DATA
Revenue,Head of Exchequer Services,5105606085,24.12.2014,Staff Benefits,Payment to Private Contractors,50.00,REDACTED PERSONAL DATA
Revenue,Head of ASC & Community Wellbeing,5105606029,24.12.2014,Leaseholds by LA,Accommodation Costs - Leaseholder Payments,799.50,REDACTED PERSONAL DATA
Revenue,Head of ASC & Community Wellbeing,5105606029,24.12.2014,Leaseholds by LA,Accommodation Costs - Leaseholder Payments,866.67,REDACTED PERSONAL DATA
Revenue,Head of ASC & Community Wellbeing,5105606029,24.12.2014,Leaseholds by LA,Accommodation Costs - Leaseholder Payments,866.67,REDACTED PERSONAL DATA
Revenue,Head of ASC & Community Wellbeing,5105606029,24.12.2014,Leaseholds by LA,Accommodation Costs - Leaseholder Payments,888.33,REDACTED PERSONAL DATA
Revenue,Head of ASC & Community Wellbeing,5105606029,24.12.2014,Leaseholds by LA,Accommodation Costs - Leaseholder Payments,799.50,REDACTED PERSONAL DATA
Capital,Head of ASC & Community Wellbeing,5105606500,24.12.2014,Adelaide & Gouldings Fixtures & Fittings,Operational Equipment,359.76,B.E.S REHAB LTD
Capital,Head of ASC & Community Wellbeing,5105606500,24.12.2014,Adelaide & Gouldings Fixtures & Fittings,"Plant, Equipment & Furniture - Capital","1,375.00",B.E.S REHAB LTD
Capital,Head of ASC & Community Wellbeing,5105606500,24.12.2014,Adelaide & Gouldings Fixtures & Fittings,"Plant, Equipment & Furniture - Capital","6,995.00",B.E.S REHAB LTD
Capital,Head of ASC & Community Wellbeing,5105606500,24.12.2014,Adelaide & Gouldings Fixtures & Fittings,"Plant, Equipment & Furniture - Capital","45,000.00",B.E.S REHAB LTD
Capital,Head of ASC & Community Wellbeing,5105606500,24.12.2014,Adelaide & Gouldings Fixtures & Fittings,"Plant, Equipment & Furniture - Capital","1,375.00",B.E.S REHAB LTD
Capital,Head of ASC & Community Wellbeing,5105606500,24.12.2014,Adelaide & Gouldings Fixtures & Fittings,"Plant, Equipment & Furniture - Capital","1,500.00",B.E.S REHAB LTD
Capital,Head of ASC & Community Wellbeing,5105606500,24.12.2014,Adelaide & Gouldings Fixtures & Fittings,"Plant, Equipment & Furniture - Capital","2,400.00",B.E.S REHAB LTD
Capital,Head of ASC & Community Wellbeing,5105606500,24.12.2014,Adelaide & Gouldings Fixtures & Fittings,"Plant, Equipment & Furniture - Capital",715.00,B.E.S REHAB LTD
Capital,Head of ASC & Community Wellbeing,5105606500,24.12.2014,Adelaide & Gouldings Fixtures & Fittings,"Plant, Equipment & Furniture - Capital",119.92,B.E.S REHAB LTD
Capital,Head of ASC & Community Wellbeing,5105606500,24.12.2014,Adelaide & Gouldings Fixtures & Fittings,"Plant, Equipment & Furniture - Capital",419.72,B.E.S REHAB LTD
Capital,Head of ASC & Community Wellbeing,5105606500,24.12.2014,Adelaide & Gouldings Fixtures & Fittings,"Plant, Equipment & Furniture - Capital",359.76,B.E.S REHAB LTD
Revenue,Director of Childrens Services,5105606326,24.12.2014,In-house Fostering,Professional Services,564.88,BAAF REGISTERED CHARITY
Revenue,Director of Childrens Services,5105603463,12.12.2014,Adoption Team,Training,99.00,BAAF REGISTERED CHARITY
Revenue,Director of Childrens Services,5105604898,17.12.2014,Purchased Residential,Charges from Independent Providers,"-2,780.00",BACK ON TRACK
Revenue,Director of Childrens Services,5105604900,17.12.2014,Purchased Residential,Charges from Independent Providers,"2,085.00",BACK ON TRACK
Revenue,Director of Childrens Services,5105606576,24.12.2014,Purchased Residential,Charges from Independent Providers,"12,835.71",BACK ON TRACK
Revenue,Director of Childrens Services,5105692060,17.12.2014,Purchased Residential,Charges from Independent Providers,"2,780.00",BACK ON TRACK
Revenue,Director of Childrens Services,5105603011,12.12.2014,Beaulieu House,Maintenance of Operational Equipment,250.00,BAKARE BEDS LTD
Revenue,Director of Childrens Services,5105603011,12.12.2014,Beaulieu House,Maintenance of Operational Equipment,75.00,BAKARE BEDS LTD
Revenue,Director of Childrens Services,5105603011,12.12.2014,Beaulieu House,Professional Services,20.00,BAKARE BEDS LTD
Revenue,Director of Childrens Services,5105603011,12.12.2014,Beaulieu House,Professional Services,5.00,BAKARE BEDS LTD
Revenue,Chief Fire Officer,5105603509,10.12.2014,Fire Technical Support,Payment to Private Contractors,"6,683.45",BALLYCLARE LTD
Revenue,Director of Childrens Services,5105606316,24.12.2014,LSCB (Local Safeguarding Childrens Board),Training,743.00,BARNARDOS
Revenue,Head of Finance & S151 Officer,5105603612,10.12.2014,SM - Procurement /Contracts,Training,299.00,BARONY CONSULTING GROUP LTD
Revenue,Head of HR & Organisational Change,5105603560,10.12.2014,Corporate Stores,Vehicle Hire External,707.14,BARTLETTS SERVICE STATION
Revenue,Chief Fire Officer,5105603713,12.12.2014,Road Safety,Operational Equipment,170.00,BARTLETTS SERVICE STATION
Revenue,Chief Fire Officer,5105606215,24.12.2014,Fire Technical Support,Vehicle Maintenance Costs,185.00,BARTLETTS SERVICE STATION
Revenue,Chief Fire Officer,5105606215,24.12.2014,Fire Technical Support,Vehicle Maintenance Costs,35.00,BARTLETTS SERVICE STATION
Revenue,Head of Exchequer Services,5105606065,24.12.2014,Staff Benefits,Payment to Private Contractors,50.00,BARTON PRIMARY & EARLY YEARS
Revenue,Head of Exchequer Services,5105606065,24.12.2014,Staff Benefits,Payment to Private Contractors,11.67,BARTON PRIMARY & EARLY YEARS
Revenue,Head of Exchequer Services,5105606065,24.12.2014,Staff Benefits,Payment to Private Contractors,12.00,BARTON PRIMARY & EARLY YEARS
Revenue,Director of Childrens Services,5105603323,19.12.2014,Workforce Development - Early Years,Hire of facilities,30.00,BARTON PRIMARY & EARLY YEARS
Revenue,Director of Childrens Services,5105603323,19.12.2014,Workforce Development - Early Years,Hire of facilities,10.00,BARTON PRIMARY & EARLY YEARS
Revenue,Director of Childrens Services,5105603323,19.12.2014,Workforce Development - Early Years,Hire of facilities,20.00,BARTON PRIMARY & EARLY YEARS
Revenue,Director of Childrens Services,5105603323,19.12.2014,Workforce Development - Early Years,Hire of facilities,10.00,BARTON PRIMARY & EARLY YEARS
Revenue,Director of Childrens Services,5105603449,12.12.2014,Support for Looked After Children - Disabled Childrens Team,Transport of Clients,840.00,BEACON TAXIS
Revenue,Director of Childrens Services,5105606608,24.12.2014,Support for Looked After Children - Disabled Childrens Team,Transport of Clients,420.00,BEACON TAXIS
Revenue,Director of Childrens Services,5105603685,12.12.2014,Independ. & Non-Maint. Special Schls & Independ. Specialist Provision,Transport of Clients,840.00,BEACON TAXIS
Revenue,Head of ASC & Community Wellbeing,5105602025,03.12.2014,Elderly Mentally Ill Nursing Mainland,Charges from Independent Providers,"2,269.40",BEAUMONT LODGE LTD
Revenue,Head of ASC & Community Wellbeing,5105606885,24.12.2014,Elderly Mentally Ill Nursing Mainland,Charges from Independent Providers,"2,269.40",BEAUMONT LODGE LTD
Revenue,Head of Economy & Tourism,5105603958,12.12.2014,The Heights,Payment to Private Contractors,375.00,BEL SOLUTIONS LTD
Revenue,Head of Economy & Tourism,5105603958,12.12.2014,Medina Leisure Centre,Payment to Private Contractors,230.00,BEL SOLUTIONS LTD
Revenue,Head of Economy & Tourism,5105603958,12.12.2014,Westridge Squash Courts,Payment to Private Contractors,70.00,BEL SOLUTIONS LTD
Revenue,Head of ASC & Community Wellbeing,5105606131,24.12.2014,Community Laundry Service,Clothing & Laundry,13.74,BERENDSEN
Revenue,Head of ASC & Community Wellbeing,5105606128,24.12.2014,Community Laundry Service,Clothing & Laundry,13.74,BERENDSEN
Revenue,Head of ASC & Community Wellbeing,5105606143,24.12.2014,Community Laundry Service,Clothing & Laundry,13.74,BERENDSEN
Revenue,Head of ASC & Community Wellbeing,5105606130,24.12.2014,Community Laundry Service,Clothing & Laundry,13.74,BERENDSEN
Revenue,Head of ASC & Community Wellbeing,5105605233,17.12.2014,B&B Properties,Accommodation Costs - Bed & Breakfast,"3,388.00",BERTRAM LODGE
Revenue,Head of ASC & Community Wellbeing,5105606498,24.12.2014,Downside Community & Learning Centre,Consumable Cleaning Materials,-79.80,BETA PAK LTD
Revenue,Head of ASC & Community Wellbeing,5105606495,24.12.2014,Downside Community & Learning Centre,Consumable Cleaning Materials,79.80,BETA PAK LTD
Revenue,Head of ASC & Community Wellbeing,5105606495,24.12.2014,Downside Community & Learning Centre,Consumable Cleaning Materials,53.68,BETA PAK LTD
Revenue,Head of ASC & Community Wellbeing,5105606498,24.12.2014,Downside Community & Learning Centre,Consumable Cleaning Materials,-53.68,BETA PAK LTD
Revenue,Head of ASC & Community Wellbeing,5105606498,24.12.2014,Downside Community & Learning Centre,Consumable Cleaning Materials,-16.32,BETA PAK LTD
Revenue,Head of ASC & Community Wellbeing,5105606495,24.12.2014,Downside Community & Learning Centre,Consumable Cleaning Materials,16.32,BETA PAK LTD
Revenue,Head of ASC & Community Wellbeing,5105605738,19.12.2014,Downside Community & Learning Centre,Consumable Cleaning Materials,-39.90,BETA PAK LTD
Revenue,Head of ASC & Community Wellbeing,5105605980,24.12.2014,Downside Community & Learning Centre,Consumable Cleaning Materials,79.80,BETA PAK LTD
Revenue,Head of ASC & Community Wellbeing,5105605980,24.12.2014,Downside Community & Learning Centre,Consumable Cleaning Materials,53.68,BETA PAK LTD
Revenue,Head of ASC & Community Wellbeing,5105605980,24.12.2014,Downside Community & Learning Centre,Consumable Cleaning Materials,16.32,BETA PAK LTD
Revenue,Head of ASC & Community Wellbeing,5105606383,24.12.2014,Downside Community & Learning Centre,Consumable Cleaning Materials,8.16,BETA PAK LTD
Revenue,Head of ASC & Community Wellbeing,5105606383,24.12.2014,Downside Community & Learning Centre,Consumable Cleaning Materials,6.28,BETA PAK LTD
Revenue,Head of ASC & Community Wellbeing,5105606383,24.12.2014,Downside Community & Learning Centre,Consumable Cleaning Materials,26.84,BETA PAK LTD
Revenue,Head of ASC & Community Wellbeing,5105606383,24.12.2014,Downside Community & Learning Centre,Consumable Cleaning Materials,11.40,BETA PAK LTD
Revenue,Head of ASC & Community Wellbeing,5105606257,24.12.2014,Downside Community & Learning Centre,Consumable Cleaning Materials,-11.40,BETA PAK LTD
Revenue,Head of ASC & Community Wellbeing,5105603012,19.12.2014,Downside Community & Learning Centre,Consumable Cleaning Materials,3.14,BETA PAK LTD
Revenue,Head of ASC & Community Wellbeing,5105603012,19.12.2014,Downside Community & Learning Centre,Consumable Cleaning Materials,2.17,BETA PAK LTD
Revenue,Head of ASC & Community Wellbeing,5105603012,19.12.2014,Downside Community & Learning Centre,Consumable Cleaning Materials,59.85,BETA PAK LTD
Revenue,Head of ASC & Community Wellbeing,5105603012,19.12.2014,Downside Community & Learning Centre,Consumable Cleaning Materials,13.42,BETA PAK LTD
Revenue,Head of ASC & Community Wellbeing,5105603012,19.12.2014,Downside Community & Learning Centre,Consumable Cleaning Materials,8.16,BETA PAK LTD
Revenue,Head of ASC & Community Wellbeing,5105603497,10.12.2014,Downside Community & Learning Centre,Consumable Cleaning Materials,5.92,BETA PAK LTD
Revenue,Head of ASC & Community Wellbeing,5105602653,03.12.2014,Downside Community & Learning Centre,Consumable Cleaning Materials,9.76,BETA PAK LTD
Revenue,Head of ASC & Community Wellbeing,5105602653,03.12.2014,Downside Community & Learning Centre,Consumable Cleaning Materials,7.73,BETA PAK LTD
Revenue,Head of ASC & Community Wellbeing,5105602653,03.12.2014,Downside Community & Learning Centre,Consumable Cleaning Materials,7.59,BETA PAK LTD
Revenue,Head of ASC & Community Wellbeing,5105602653,03.12.2014,Downside Community & Learning Centre,Consumable Cleaning Materials,11.21,BETA PAK LTD
Revenue,Head of ASC & Community Wellbeing,5105602653,03.12.2014,Downside Community & Learning Centre,Consumable Cleaning Materials,5.44,BETA PAK LTD
Revenue,Head of ASC & Community Wellbeing,5105605979,24.12.2014,31 Carter Avenue,Operational Equipment,176.32,BETA PAK LTD
Revenue,Head of ASC & Community Wellbeing,5105603163,10.12.2014,31 Carter Avenue,Operational Equipment,11.47,BETA PAK LTD
Revenue,Head of ASC & Community Wellbeing,5105606613,24.12.2014,31 Carter Avenue,Operational Equipment,5.46,BETA PAK LTD
Revenue,Head of ASC & Community Wellbeing,5105604789,17.12.2014,Overbrook,Operational Equipment,48.47,BETA PAK LTD
Revenue,Head of ASC & Community Wellbeing,5105602811,05.12.2014,Overbrook,Operational Equipment,14.33,BETA PAK LTD
Revenue,Head of ASC & Community Wellbeing,5105606609,24.12.2014,Overbrook,Operational Equipment,12.85,BETA PAK LTD
Revenue,Head of ASC & Community Wellbeing,5105606287,24.12.2014,Overbrook,Operational Equipment,62.73,BETA PAK LTD
Revenue,Head of ASC & Community Wellbeing,5105600615,05.12.2014,Seagulls,Operational Equipment,134.99,BETA PAK LTD
Revenue,Head of ASC & Community Wellbeing,5105603452,17.12.2014,Seagulls,Operational Equipment,78.56,BETA PAK LTD
Revenue,Head of ASC & Community Wellbeing,5105603403,19.12.2014,Seagulls,Operational Equipment,167.86,BETA PAK LTD
Revenue,Head of ASC & Community Wellbeing,5105606321,24.12.2014,Seagulls,Operational Equipment,4.98,BETA PAK LTD
Revenue,Head of ASC & Community Wellbeing,5105606580,24.12.2014,Seagulls,Operational Equipment,91.93,BETA PAK LTD
Revenue,Head of ASC & Community Wellbeing,5105604831,19.12.2014,Plean Dene,Operational Equipment,65.46,BETA PAK LTD
Revenue,Head of ASC & Community Wellbeing,5105604831,19.12.2014,Plean Dene,Operational Equipment,45.96,BETA PAK LTD
Revenue,Head of ASC & Community Wellbeing,5105603656,24.12.2014,Plean Dene,Operational Equipment,68.94,BETA PAK LTD
Revenue,Head of ASC & Community Wellbeing,5105601716,05.12.2014,Plean Dene,Operational Equipment,54.35,BETA PAK LTD
Revenue,Head of ASC & Community Wellbeing,5105600614,19.12.2014,Plean Dene,Operational Equipment,260.00,BETA PAK LTD
Revenue,Head of ASC & Community Wellbeing,5105606586,24.12.2014,Plean Dene,Operational Equipment,20.98,BETA PAK LTD
Revenue,Head of ASC & Community Wellbeing,5105606582,24.12.2014,Plean Dene,Operational Equipment,80.64,BETA PAK LTD
Revenue,Head of ASC & Community Wellbeing,5105606219,24.12.2014,Plean Dene,Operational Equipment,56.94,BETA PAK LTD
Revenue,Head of ASC & Community Wellbeing,5105602690,03.12.2014,Saxonbury,Operational Equipment,3.79,BETA PAK LTD
Revenue,Head of ASC & Community Wellbeing,5105602818,05.12.2014,Saxonbury,Operational Equipment,2.04,BETA PAK LTD
Revenue,Head of ASC & Community Wellbeing,5105603014,05.12.2014,Saxonbury,Operational Equipment,283.30,BETA PAK LTD
Revenue,Head of ASC & Community Wellbeing,5105603194,24.12.2014,Saxonbury,Operational Equipment,2.04,BETA PAK LTD
Revenue,Head of ASC & Community Wellbeing,5105603195,10.12.2014,Saxonbury,Operational Equipment,138.42,BETA PAK LTD
Revenue,Head of ASC & Community Wellbeing,5105603154,10.12.2014,Saxonbury,Operational Equipment,34.50,BETA PAK LTD
Revenue,Head of ASC & Community Wellbeing,5105603274,10.12.2014,Saxonbury,Operational Equipment,28.58,BETA PAK LTD
Revenue,Head of ASC & Community Wellbeing,5105603277,10.12.2014,Saxonbury,Operational Equipment,-28.58,BETA PAK LTD
Revenue,Head of ASC & Community Wellbeing,5105603304,10.12.2014,Saxonbury,Operational Equipment,5.12,BETA PAK LTD
Revenue,Head of ASC & Community Wellbeing,5105603564,10.12.2014,Saxonbury,Operational Equipment,17.21,BETA PAK LTD
Revenue,Head of ASC & Community Wellbeing,5105604069,24.12.2014,Saxonbury,Operational Equipment,17.21,BETA PAK LTD
Revenue,Head of ASC & Community Wellbeing,5105603657,17.12.2014,Saxonbury,Operational Equipment,2.88,BETA PAK LTD
Revenue,Head of ASC & Community Wellbeing,5105603695,12.12.2014,Saxonbury,Operational Equipment,17.20,BETA PAK LTD
Revenue,Head of ASC & Community Wellbeing,5105605706,24.12.2014,Saxonbury,Operational Equipment,7.00,BETA PAK LTD
Revenue,Head of ASC & Community Wellbeing,5105605646,24.12.2014,Saxonbury,Operational Equipment,4.79,BETA PAK LTD
Revenue,Head of ASC & Community Wellbeing,5105604801,17.12.2014,Saxonbury,Operational Equipment,331.69,BETA PAK LTD
Revenue,Head of ASC & Community Wellbeing,5105605295,24.12.2014,Saxonbury,Operational Equipment,9.39,BETA PAK LTD
Revenue,Head of ASC & Community Wellbeing,5105606281,24.12.2014,Saxonbury,Operational Equipment,10.10,BETA PAK LTD
Revenue,Head of ASC & Community Wellbeing,5105606267,24.12.2014,Saxonbury,Operational Equipment,-22.65,BETA PAK LTD
Revenue,Head of ASC & Community Wellbeing,5105606273,24.12.2014,Saxonbury,Operational Equipment,7.00,BETA PAK LTD
Revenue,Head of ASC & Community Wellbeing,5105606277,24.12.2014,Saxonbury,Operational Equipment,-7.00,BETA PAK LTD
Revenue,Head of ASC & Community Wellbeing,5105606175,24.12.2014,Saxonbury,Operational Equipment,10.80,BETA PAK LTD
Revenue,Head of ASC & Community Wellbeing,5105606578,24.12.2014,Saxonbury,Operational Equipment,13.76,BETA PAK LTD
Revenue,Head of ASC & Community Wellbeing,5105606437,24.12.2014,Saxonbury,Operational Equipment,8.52,BETA PAK LTD
Revenue,Head of ASC & Community Wellbeing,5105606463,24.12.2014,Saxonbury,Operational Equipment,-4.79,BETA PAK LTD
Revenue,Head of ASC & Community Wellbeing,5105606530,24.12.2014,Highmead,Operational Equipment,4.29,BETA PAK LTD
Revenue,Head of ASC & Community Wellbeing,5105606235,24.12.2014,Highmead,Operational Equipment,18.66,BETA PAK LTD
Revenue,Head of ASC & Community Wellbeing,5105603329,10.12.2014,Highmead,Operational Equipment,109.09,BETA PAK LTD
Revenue,Head of ASC & Community Wellbeing,5105603185,10.12.2014,Highmead,Operational Equipment,107.63,BETA PAK LTD
Revenue,Head of ASC & Community Wellbeing,5105602696,03.12.2014,Highmead,Operational Equipment,11.13,BETA PAK LTD
Revenue,Head of ASC & Community Wellbeing,5105603200,17.12.2014,The Laurels,Operational Equipment,22.94,BETA PAK LTD
Revenue,Head of ASC & Community Wellbeing,5105604390,17.12.2014,The Laurels,Operational Equipment,297.56,BETA PAK LTD
Revenue,Head of ASC & Community Wellbeing,5105606435,24.12.2014,The Laurels,Operational Equipment,144.40,BETA PAK LTD
Revenue,Head of ASC & Community Wellbeing,5105605264,17.12.2014,Adelaide Resource Centre,Consumable Cleaning Materials,145.75,BETA PAK LTD
Revenue,Head of ASC & Community Wellbeing,5105605279,17.12.2014,Adelaide Resource Centre,Consumable Cleaning Materials,8.99,BETA PAK LTD
Revenue,Head of ASC & Community Wellbeing,5105605273,17.12.2014,Adelaide Resource Centre,Consumable Cleaning Materials,514.92,BETA PAK LTD
Revenue,Head of ASC & Community Wellbeing,5105605242,17.12.2014,Adelaide Resource Centre,Consumable Cleaning Materials,11.96,BETA PAK LTD
Revenue,Head of ASC & Community Wellbeing,5105605280,17.12.2014,Adelaide Resource Centre,Consumable Cleaning Materials,9.89,BETA PAK LTD
Revenue,Head of ASC & Community Wellbeing,5105605281,17.12.2014,Adelaide Resource Centre,Consumable Cleaning Materials,32.30,BETA PAK LTD
Revenue,Head of ASC & Community Wellbeing,5105605266,17.12.2014,Adelaide Resource Centre,Consumable Cleaning Materials,80.80,BETA PAK LTD
Revenue,Head of ASC & Community Wellbeing,5105605267,17.12.2014,Adelaide Resource Centre,Consumable Cleaning Materials,22.80,BETA PAK LTD
Revenue,Head of ASC & Community Wellbeing,5105605268,17.12.2014,Adelaide Resource Centre,Consumable Cleaning Materials,22.80,BETA PAK LTD
Revenue,Head of ASC & Community Wellbeing,5105605269,17.12.2014,Adelaide Resource Centre,Consumable Cleaning Materials,758.57,BETA PAK LTD
Revenue,Head of ASC & Community Wellbeing,5105605263,17.12.2014,Adelaide Resource Centre,Consumable Cleaning Materials,18.69,BETA PAK LTD
Revenue,Head of ASC & Community Wellbeing,5105605278,17.12.2014,Adelaide Resource Centre,Consumable Cleaning Materials,64.25,BETA PAK LTD
Revenue,Head of ASC & Community Wellbeing,5105605296,19.12.2014,Adelaide Resource Centre,Consumable Cleaning Materials,803.74,BETA PAK LTD
Revenue,Head of ASC & Community Wellbeing,5105605274,17.12.2014,Adelaide Resource Centre,Consumable Cleaning Materials,59.85,BETA PAK LTD
Revenue,Head of ASC & Community Wellbeing,5105606286,24.12.2014,Adelaide Resource Centre,Consumable Cleaning Materials,895.77,BETA PAK LTD
Revenue,Head of ASC & Community Wellbeing,5105605277,17.12.2014,Adelaide Resource Centre,Consumable Cleaning Materials,28.72,BETA PAK LTD
Revenue,Head of ASC & Community Wellbeing,5105605265,17.12.2014,Adelaide Resource Centre,Consumable Cleaning Materials,19.97,BETA PAK LTD
Revenue,Head of ASC & Community Wellbeing,5105605276,17.12.2014,Adelaide Resource Centre,Consumable Cleaning Materials,463.14,BETA PAK LTD
Revenue,Head of ASC & Community Wellbeing,5105605272,17.12.2014,Adelaide Resource Centre,Consumable Cleaning Materials,282.23,BETA PAK LTD
Revenue,Head of ASC & Community Wellbeing,5105605271,17.12.2014,Adelaide Resource Centre,Consumable Cleaning Materials,131.52,BETA PAK LTD
Revenue,Head of ASC & Community Wellbeing,5105605270,17.12.2014,Adelaide Resource Centre,Consumable Cleaning Materials,184.39,BETA PAK LTD
Revenue,Head of ASC & Community Wellbeing,5105605275,17.12.2014,Adelaide Resource Centre,Consumable Cleaning Materials,3.40,BETA PAK LTD
Revenue,Head of ASC & Community Wellbeing,5105605240,17.12.2014,Adelaide Resource Centre,Operational Equipment,492.49,BETA PAK LTD
Revenue,Head of ASC & Community Wellbeing,5105603598,10.12.2014,Gouldings Resource Centre,Consumable Cleaning Materials,18.97,BETA PAK LTD
Revenue,Head of ASC & Community Wellbeing,5105606375,24.12.2014,Gouldings Resource Centre,Consumable Cleaning Materials,9.24,BETA PAK LTD
Revenue,Head of ASC & Community Wellbeing,5105606454,24.12.2014,Gouldings Resource Centre,Consumable Cleaning Materials,939.85,BETA PAK LTD
Revenue,Head of ASC & Community Wellbeing,5105603296,10.12.2014,Gouldings Resource Centre,Consumable Cleaning Materials,39.76,BETA PAK LTD
Revenue,Head of ASC & Community Wellbeing,5105603281,10.12.2014,Gouldings Resource Centre,Consumable Cleaning Materials,172.70,BETA PAK LTD
Revenue,Head of ASC & Community Wellbeing,5105603295,10.12.2014,Gouldings Resource Centre,Consumable Cleaning Materials,9.84,BETA PAK LTD
Revenue,Head of ASC & Community Wellbeing,5105603293,10.12.2014,Gouldings Resource Centre,Consumable Cleaning Materials,48.51,BETA PAK LTD
Revenue,Head of ASC & Community Wellbeing,5105603303,10.12.2014,Gouldings Resource Centre,Consumable Cleaning Materials,713.56,BETA PAK LTD
Revenue,Head of ASC & Community Wellbeing,5105603299,10.12.2014,Gouldings Resource Centre,Consumable Cleaning Materials,283.10,BETA PAK LTD
Revenue,Head of ASC & Community Wellbeing,5105603278,10.12.2014,Gouldings Resource Centre,Consumable Cleaning Materials,335.79,BETA PAK LTD
Revenue,Head of ASC & Community Wellbeing,5105603297,10.12.2014,Gouldings Resource Centre,Consumable Cleaning Materials,153.64,BETA PAK LTD
Revenue,Head of ASC & Community Wellbeing,5105603310,10.12.2014,Gouldings Resource Centre,Consumable Cleaning Materials,47.97,BETA PAK LTD
Revenue,Head of ASC & Community Wellbeing,5105603298,10.12.2014,Gouldings Resource Centre,Consumable Cleaning Materials,79.12,BETA PAK LTD
Revenue,Head of ASC & Community Wellbeing,5105605684,19.12.2014,Gouldings Resource Centre,Catering Purchases,77.96,BETA PAK LTD
Revenue,Head of ASC & Community Wellbeing,5105606118,24.12.2014,Westminster House,Consumable Cleaning Materials,119.66,BETA PAK LTD
Revenue,Head of ASC & Community Wellbeing,5105606120,24.12.2014,Westminster House,Consumable Cleaning Materials,26.06,BETA PAK LTD
Revenue,Head of ASC & Community Wellbeing,5105606119,24.12.2014,Westminster House,Clothing & Laundry,43.02,BETA PAK LTD
Revenue,Head of Economy & Tourism,5105602647,03.12.2014,Dinosaur Isle Museum (Sandown Geology),Operational Equipment,6.51,BETA PAK LTD
Revenue,Head of Economy & Tourism,5105603280,10.12.2014,Dinosaur Isle Museum (Sandown Geology),Operational Equipment,32.56,BETA PAK LTD
Revenue,Head of Economy & Tourism,5105603282,10.12.2014,Dinosaur Isle Museum (Sandown Geology),Operational Equipment,-32.56,BETA PAK LTD
Revenue,Head of ASC & Community Wellbeing,5105605830,19.12.2014,Elderly Frail Homecare,Charges from Independent Providers,"2,170.35",BETTER AT HOME IOW LTD
Revenue,Head of ASC & Community Wellbeing,5105605828,19.12.2014,Elderly Frail Homecare,Charges from Independent Providers,415.52,BETTER AT HOME IOW LTD
Revenue,Head of ASC & Community Wellbeing,5105604277,12.12.2014,Elderly Frail Homecare,Charges from Independent Providers,207.76,BETTER AT HOME IOW LTD
Revenue,Head of ASC & Community Wellbeing,5105604278,12.12.2014,Elderly Frail Homecare,Charges from Independent Providers,415.52,BETTER AT HOME IOW LTD
Revenue,Head of ASC & Community Wellbeing,5105604274,12.12.2014,Elderly Frail Homecare,Charges from Independent Providers,400.68,BETTER AT HOME IOW LTD
Revenue,Head of ASC & Community Wellbeing,5105604275,12.12.2014,Elderly Frail Homecare,Charges from Independent Providers,207.76,BETTER AT HOME IOW LTD
Revenue,Head of ASC & Community Wellbeing,5105604280,12.12.2014,Elderly Frail Homecare,Charges from Independent Providers,623.28,BETTER AT HOME IOW LTD
Revenue,Head of ASC & Community Wellbeing,5105604283,12.12.2014,Elderly Frail Homecare,Charges from Independent Providers,311.64,BETTER AT HOME IOW LTD
Revenue,Head of ASC & Community Wellbeing,5105604289,12.12.2014,Elderly Frail Homecare,Charges from Independent Providers,760.55,BETTER AT HOME IOW LTD
Revenue,Head of ASC & Community Wellbeing,5105604292,12.12.2014,Elderly Frail Homecare,Charges from Independent Providers,"1,038.80",BETTER AT HOME IOW LTD
Revenue,Head of ASC & Community Wellbeing,5105604260,12.12.2014,Elderly Frail Homecare,Charges from Independent Providers,593.60,BETTER AT HOME IOW LTD
Revenue,Head of ASC & Community Wellbeing,5105604258,12.12.2014,Elderly Frail Homecare,Charges from Independent Providers,519.40,BETTER AT HOME IOW LTD
Revenue,Head of ASC & Community Wellbeing,5105604254,12.12.2014,Elderly Frail Homecare,Charges from Independent Providers,400.68,BETTER AT HOME IOW LTD
Revenue,Head of ASC & Community Wellbeing,5105604257,12.12.2014,Elderly Frail Homecare,Charges from Independent Providers,615.86,BETTER AT HOME IOW LTD
Revenue,Head of ASC & Community Wellbeing,5105604253,12.12.2014,Elderly Frail Homecare,Charges from Independent Providers,994.28,BETTER AT HOME IOW LTD
Revenue,Head of ASC & Community Wellbeing,5105604255,12.12.2014,Elderly Frail Homecare,Charges from Independent Providers,200.34,BETTER AT HOME IOW LTD
Revenue,Head of ASC & Community Wellbeing,5105604286,12.12.2014,Elderly Frail Homecare,Charges from Independent Providers,415.52,BETTER AT HOME IOW LTD
Revenue,Head of ASC & Community Wellbeing,5105604287,12.12.2014,Elderly Frail Homecare,Charges from Independent Providers,311.64,BETTER AT HOME IOW LTD
Revenue,Head of ASC & Community Wellbeing,5105605829,19.12.2014,Elderly Frail Homecare,Regular Respite Care,29.68,BETTER AT HOME IOW LTD
Revenue,Head of ASC & Community Wellbeing,5105604296,12.12.2014,Elderly Frail Homecare,Regular Respite Care,89.04,BETTER AT HOME IOW LTD
Revenue,Head of ASC & Community Wellbeing,5105604269,12.12.2014,Elderly Frail Homecare,Regular Respite Care,237.44,BETTER AT HOME IOW LTD
Revenue,Head of ASC & Community Wellbeing,5105604285,12.12.2014,Elderly Frail Homecare,Regular Respite Care,237.44,BETTER AT HOME IOW LTD
Revenue,Head of ASC & Community Wellbeing,5105604288,12.12.2014,Elderly Frail Homecare,Regular Respite Care,29.68,BETTER AT HOME IOW LTD
Revenue,Head of ASC & Community Wellbeing,5105604267,12.12.2014,Elderly Frail Homecare,Regular Respite Care,118.72,BETTER AT HOME IOW LTD
Revenue,Head of ASC & Community Wellbeing,5105604270,12.12.2014,Elderly Frail Homecare,Regular Respite Care,118.72,BETTER AT HOME IOW LTD
Revenue,Head of ASC & Community Wellbeing,5105604300,12.12.2014,Elderly Frail Homecare,Regular Respite Care,118.72,BETTER AT HOME IOW LTD
Revenue,Head of ASC & Community Wellbeing,5105604302,12.12.2014,Elderly Frail Homecare,Regular Respite Care,89.04,BETTER AT HOME IOW LTD
Revenue,Head of ASC & Community Wellbeing,5105603555,10.12.2014,Elderly Frail Homecare,Charges from Independent Providers,29.68,BETTER AT HOME IOW LTD
Revenue,Head of ASC & Community Wellbeing,5105603554,10.12.2014,Elderly Frail Homecare,Charges from Independent Providers,385.84,BETTER AT HOME IOW LTD
Revenue,Head of ASC & Community Wellbeing,5105603551,10.12.2014,Elderly Frail Homecare,Charges from Independent Providers,103.88,BETTER AT HOME IOW LTD
Revenue,Head of ASC & Community Wellbeing,5105603552,10.12.2014,Elderly Frail Homecare,Charges from Independent Providers,11.13,BETTER AT HOME IOW LTD
Revenue,Head of ASC & Community Wellbeing,5105604303,12.12.2014,Elderly Frail Homecare,Charges from Independent Providers,727.16,BETTER AT HOME IOW LTD
Revenue,Head of ASC & Community Wellbeing,5105604304,12.12.2014,Elderly Frail Homecare,Charges from Independent Providers,467.46,BETTER AT HOME IOW LTD
Revenue,Head of ASC & Community Wellbeing,5105604301,12.12.2014,Elderly Frail Homecare,Charges from Independent Providers,103.88,BETTER AT HOME IOW LTD
Revenue,Head of ASC & Community Wellbeing,5105604298,12.12.2014,Elderly Frail Homecare,Charges from Independent Providers,140.98,BETTER AT HOME IOW LTD
Revenue,Head of ASC & Community Wellbeing,5105604262,12.12.2014,Elderly Frail Homecare,Charges from Independent Providers,59.36,BETTER AT HOME IOW LTD
Revenue,Head of ASC & Community Wellbeing,5105604263,12.12.2014,Elderly Frail Homecare,Charges from Independent Providers,474.88,BETTER AT HOME IOW LTD
Revenue,Head of ASC & Community Wellbeing,5105604297,12.12.2014,Elderly Frail Homecare,Charges from Independent Providers,103.88,BETTER AT HOME IOW LTD
Revenue,Head of ASC & Community Wellbeing,5105604307,12.12.2014,Elderly Frail Homecare,Charges from Independent Providers,133.56,BETTER AT HOME IOW LTD
Revenue,Head of ASC & Community Wellbeing,5105604295,12.12.2014,Elderly Frail Homecare,Charges from Independent Providers,"1,038.80",BETTER AT HOME IOW LTD
Revenue,Head of ASC & Community Wellbeing,5105604264,12.12.2014,Elderly Frail Homecare,Charges from Independent Providers,133.56,BETTER AT HOME IOW LTD
Revenue,Head of ASC & Community Wellbeing,5105604265,12.12.2014,Elderly Frail Homecare,Charges from Independent Providers,623.28,BETTER AT HOME IOW LTD
Revenue,Head of ASC & Community Wellbeing,5105604268,12.12.2014,Elderly Frail Homecare,Charges from Independent Providers,207.76,BETTER AT HOME IOW LTD
Revenue,Head of ASC & Community Wellbeing,5105604273,12.12.2014,Elderly Frail Homecare,Charges from Independent Providers,178.08,BETTER AT HOME IOW LTD
Revenue,Head of ASC & Community Wellbeing,5105604272,12.12.2014,Elderly Frail Homecare,Charges from Independent Providers,44.52,BETTER AT HOME IOW LTD
Revenue,Head of ASC & Community Wellbeing,5105604271,12.12.2014,Elderly Frail Homecare,Charges from Independent Providers,59.36,BETTER AT HOME IOW LTD
Revenue,Head of ASC & Community Wellbeing,5105604266,12.12.2014,Elderly Frail Homecare,Charges from Independent Providers,244.86,BETTER AT HOME IOW LTD
Revenue,Head of ASC & Community Wellbeing,5105604261,12.12.2014,Elderly Frail Homecare,Charges from Independent Providers,207.76,BETTER AT HOME IOW LTD
Revenue,Head of ASC & Community Wellbeing,5105604259,12.12.2014,Elderly Frail Homecare,Charges from Independent Providers,860.72,BETTER AT HOME IOW LTD
Revenue,Head of ASC & Community Wellbeing,5105603556,10.12.2014,Elderly Frail Homecare,Charges from Independent Providers,445.20,BETTER AT HOME IOW LTD
Revenue,Head of ASC & Community Wellbeing,5105604251,12.12.2014,Elderly Frail Homecare,Charges from Independent Providers,96.46,BETTER AT HOME IOW LTD
Revenue,Head of ASC & Community Wellbeing,5105604250,12.12.2014,Elderly Frail Homecare,Charges from Independent Providers,511.98,BETTER AT HOME IOW LTD
Revenue,Head of ASC & Community Wellbeing,5105604252,12.12.2014,Elderly Frail Homecare,Charges from Independent Providers,326.48,BETTER AT HOME IOW LTD
Revenue,Head of ASC & Community Wellbeing,5105604244,12.12.2014,Elderly Frail Homecare,Charges from Independent Providers,964.60,BETTER AT HOME IOW LTD
Revenue,Head of ASC & Community Wellbeing,5105604247,12.12.2014,Elderly Frail Homecare,Charges from Independent Providers,"1,038.80",BETTER AT HOME IOW LTD
Revenue,Head of ASC & Community Wellbeing,5105604246,12.12.2014,Elderly Frail Homecare,Charges from Independent Providers,994.28,BETTER AT HOME IOW LTD
Revenue,Head of ASC & Community Wellbeing,5105604248,12.12.2014,Elderly Frail Homecare,Charges from Independent Providers,"1,038.80",BETTER AT HOME IOW LTD
Revenue,Head of ASC & Community Wellbeing,5105604249,12.12.2014,Elderly Frail Homecare,Charges from Independent Providers,415.52,BETTER AT HOME IOW LTD
Revenue,Head of ASC & Community Wellbeing,5105604242,12.12.2014,Elderly Frail Homecare,Charges from Independent Providers,"1,380.12",BETTER AT HOME IOW LTD
Revenue,Head of ASC & Community Wellbeing,5105604243,12.12.2014,Elderly Frail Homecare,Charges from Independent Providers,"1,869.84",BETTER AT HOME IOW LTD
Revenue,Head of ASC & Community Wellbeing,5105604293,12.12.2014,Elderly Frail Homecare,Charges from Independent Providers,667.80,BETTER AT HOME IOW LTD
Revenue,Head of ASC & Community Wellbeing,5105604245,12.12.2014,Elderly Frail Homecare,Charges from Independent Providers,690.06,BETTER AT HOME IOW LTD
Revenue,Head of ASC & Community Wellbeing,5105604299,12.12.2014,Elderly Frail Homecare,Charges from Independent Providers,"1,023.96",BETTER AT HOME IOW LTD
Revenue,Head of ASC & Community Wellbeing,5105604305,12.12.2014,Elderly Frail Homecare,Charges from Independent Providers,29.68,BETTER AT HOME IOW LTD
Revenue,Head of ASC & Community Wellbeing,5105604306,12.12.2014,Elderly Frail Homecare,Charges from Independent Providers,237.44,BETTER AT HOME IOW LTD
Revenue,Head of ASC & Community Wellbeing,5105604290,12.12.2014,Elderly Mentally Ill Homecare,Charges from Independent Providers,"1,402.38",BETTER AT HOME IOW LTD
Revenue,Head of ASC & Community Wellbeing,5105604291,12.12.2014,Elderly Mentally Ill Homecare,Charges from Independent Providers,415.52,BETTER AT HOME IOW LTD
Revenue,Head of ASC & Community Wellbeing,5105604276,12.12.2014,Elderly Mentally Ill Homecare,Charges from Independent Providers,623.28,BETTER AT HOME IOW LTD
Revenue,Head of ASC & Community Wellbeing,5105605544,19.12.2014,Elderly Mentally Ill Homecare,Charges from Independent Providers,178.08,BETTER AT HOME IOW LTD
Revenue,Head of ASC & Community Wellbeing,5105604256,12.12.2014,Mental Health Homecare,Charges from Independent Providers,96.46,BETTER AT HOME IOW LTD
Revenue,Head of ASC & Community Wellbeing,5105603553,10.12.2014,Physical Disability Homecare,Charges from Independent Providers,115.01,BETTER AT HOME IOW LTD
Revenue,Head of ASC & Community Wellbeing,5105604294,12.12.2014,Physical Disability Homecare,Charges from Independent Providers,430.36,BETTER AT HOME IOW LTD
Revenue,Head of ASC & Community Wellbeing,5105604281,12.12.2014,Physical Disability Homecare,Charges from Independent Providers,415.52,BETTER AT HOME IOW LTD
Revenue,Head of ASC & Community Wellbeing,5105604279,12.12.2014,Physical Disability Homecare,Charges from Independent Providers,89.04,BETTER AT HOME IOW LTD
Revenue,Head of ASC & Community Wellbeing,5105604284,12.12.2014,Physical Disability Homecare,Charges from Independent Providers,259.70,BETTER AT HOME IOW LTD
Revenue,Head of ASC & Community Wellbeing,5105604282,12.12.2014,Physical Disability Homecare,Charges from Independent Providers,311.64,BETTER AT HOME IOW LTD
Revenue,Head of HR & Organisational Change,5105605935,24.12.2014,ICT Desktop Experience project,Training,"1,500.00",BEVAN YOUNG ASSOCIATES
Revenue,Director of Childrens Services,5105603660,12.12.2014,Core Programmes,Training,750.00,BEVAN YOUNG ASSOCIATES
Revenue,Director of Childrens Services,5105603660,12.12.2014,Core Programmes,Training,750.00,BEVAN YOUNG ASSOCIATES
Revenue,Director of Childrens Services,5105603660,12.12.2014,Core Programmes,Training,750.00,BEVAN YOUNG ASSOCIATES
Revenue,Head of Economy & Tourism,5105606146,24.12.2014,Public Libraries Central,Computer Maintenance,65.00,BIBLIOTHECA LTD
Revenue,Head of Economy & Tourism,5105606236,24.12.2014,Public Libraries Central,Stationery,170.38,BIBLIOTHECA LTD
Revenue,Head of HR & Organisational Change,5105603469,10.12.2014,"Civic Centre,Sandown","Refuse Collection, Disposal and Recycling Costs",-42.60,BIFFA WASTE SERVICES LTD
Revenue,Head of HR & Organisational Change,5105606488,24.12.2014,"Civic Centre,Sandown","Refuse Collection, Disposal and Recycling Costs",47.72,BIFFA WASTE SERVICES LTD
Revenue,Head of HR & Organisational Change,5105606491,24.12.2014,"Civic Centre,Sandown","Refuse Collection, Disposal and Recycling Costs",92.48,BIFFA WASTE SERVICES LTD
Revenue,Head of HR & Organisational Change,5105698617,10.12.2014,"Civic Centre,Sandown","Refuse Collection, Disposal and Recycling Costs",42.60,BIFFA WASTE SERVICES LTD
Revenue,Head of HR & Organisational Change,5105698648,12.12.2014,"Civic Centre,Sandown","Refuse Collection, Disposal and Recycling Costs",92.48,BIFFA WASTE SERVICES LTD
Revenue,Head of HR & Organisational Change,5105603270,10.12.2014,"Bugle House,Newport","Refuse Collection, Disposal and Recycling Costs",151.64,BIFFA WASTE SERVICES LTD
Revenue,Head of HR & Organisational Change,5105602832,17.12.2014,"Bugle House,Newport","Refuse Collection, Disposal and Recycling Costs",151.64,BIFFA WASTE SERVICES LTD
Revenue,Head of HR & Organisational Change,5105603270,10.12.2014,"Westridge, Ryde","Refuse Collection, Disposal and Recycling Costs",89.63,BIFFA WASTE SERVICES LTD
Revenue,Head of HR & Organisational Change,5105602832,17.12.2014,"Westridge, Ryde","Refuse Collection, Disposal and Recycling Costs",95.37,BIFFA WASTE SERVICES LTD
Revenue,Head of ASC & Community Wellbeing,5105602832,17.12.2014,S75 Integrated Community Equipment Store,"Refuse Collection, Disposal and Recycling Costs",132.42,BIFFA WASTE SERVICES LTD
Revenue,Head of ASC & Community Wellbeing,5105603270,10.12.2014,S75 Integrated Community Equipment Store,"Refuse Collection, Disposal and Recycling Costs",213.75,BIFFA WASTE SERVICES LTD
Revenue,Head of ASC & Community Wellbeing,5105602832,17.12.2014,31 Carter Avenue,"Refuse Collection, Disposal and Recycling Costs",90.76,BIFFA WASTE SERVICES LTD
Revenue,Head of ASC & Community Wellbeing,5105603270,10.12.2014,31 Carter Avenue,"Refuse Collection, Disposal and Recycling Costs",82.60,BIFFA WASTE SERVICES LTD
Revenue,Head of ASC & Community Wellbeing,5105605078,17.12.2014,31 Carter Avenue,"Refuse Collection, Disposal and Recycling Costs",-8.16,BIFFA WASTE SERVICES LTD
Revenue,Head of ASC & Community Wellbeing,5105603270,10.12.2014,Overbrook,"Refuse Collection, Disposal and Recycling Costs",106.67,BIFFA WASTE SERVICES LTD
Revenue,Head of ASC & Community Wellbeing,5105602832,17.12.2014,Overbrook,"Refuse Collection, Disposal and Recycling Costs",113.52,BIFFA WASTE SERVICES LTD
Revenue,Head of ASC & Community Wellbeing,5105602832,17.12.2014,Seagulls,"Refuse Collection, Disposal and Recycling Costs",82.60,BIFFA WASTE SERVICES LTD
Revenue,Head of ASC & Community Wellbeing,5105603270,10.12.2014,Seagulls,"Refuse Collection, Disposal and Recycling Costs",82.60,BIFFA WASTE SERVICES LTD
Revenue,Head of ASC & Community Wellbeing,5105603270,10.12.2014,Plean Dene,"Refuse Collection, Disposal and Recycling Costs",160.44,BIFFA WASTE SERVICES LTD
Revenue,Head of ASC & Community Wellbeing,5105602832,17.12.2014,Plean Dene,"Refuse Collection, Disposal and Recycling Costs",160.44,BIFFA WASTE SERVICES LTD
Revenue,Head of ASC & Community Wellbeing,5105602832,17.12.2014,Saxonbury,"Refuse Collection, Disposal and Recycling Costs",78.20,BIFFA WASTE SERVICES LTD
Revenue,Head of ASC & Community Wellbeing,5105603270,10.12.2014,Saxonbury,"Refuse Collection, Disposal and Recycling Costs",78.20,BIFFA WASTE SERVICES LTD
Revenue,Head of ASC & Community Wellbeing,5105603270,10.12.2014,40 Venner Avenue,"Refuse Collection, Disposal and Recycling Costs",4.76,BIFFA WASTE SERVICES LTD
Revenue,Head of ASC & Community Wellbeing,5105602832,17.12.2014,40 Venner Avenue,"Refuse Collection, Disposal and Recycling Costs",4.76,BIFFA WASTE SERVICES LTD
Revenue,Head of ASC & Community Wellbeing,5105602832,17.12.2014,Highmead,"Refuse Collection, Disposal and Recycling Costs",53.41,BIFFA WASTE SERVICES LTD
Revenue,Head of ASC & Community Wellbeing,5105603270,10.12.2014,Highmead,"Refuse Collection, Disposal and Recycling Costs",53.41,BIFFA WASTE SERVICES LTD
Revenue,Head of ASC & Community Wellbeing,5105603270,10.12.2014,The Laurels,"Refuse Collection, Disposal and Recycling Costs",53.41,BIFFA WASTE SERVICES LTD
Revenue,Head of ASC & Community Wellbeing,5105602832,17.12.2014,The Laurels,"Refuse Collection, Disposal and Recycling Costs",53.41,BIFFA WASTE SERVICES LTD
Revenue,Head of Economy & Tourism,5105602832,17.12.2014,17 Fairlee Road,"Refuse Collection, Disposal and Recycling Costs",112.00,BIFFA WASTE SERVICES LTD
Revenue,Head of ASC & Community Wellbeing,5105605874,24.12.2014,Adelaide Resource Centre,"Refuse Collection, Disposal and Recycling Costs","1,319.63",BIFFA WASTE SERVICES LTD
Revenue,Head of ASC & Community Wellbeing,5105606313,24.12.2014,Adelaide Resource Centre,"Refuse Collection, Disposal and Recycling Costs",171.60,BIFFA WASTE SERVICES LTD
Revenue,Head of ASC & Community Wellbeing,5105604893,19.12.2014,Gouldings Resource Centre,"Refuse Collection, Disposal and Recycling Costs",284.16,BIFFA WASTE SERVICES LTD
Revenue,Head of ASC & Community Wellbeing,5105604889,19.12.2014,Gouldings Resource Centre,"Refuse Collection, Disposal and Recycling Costs",91.60,BIFFA WASTE SERVICES LTD
Revenue,Head of ASC & Community Wellbeing,5105602832,17.12.2014,Westminster House,"Refuse Collection, Disposal and Recycling Costs",43.68,BIFFA WASTE SERVICES LTD
Revenue,Head of ASC & Community Wellbeing,5105603270,10.12.2014,Westminster House,"Refuse Collection, Disposal and Recycling Costs",43.68,BIFFA WASTE SERVICES LTD
Revenue,Head of Economy & Tourism,5105602832,17.12.2014,Leisure Management & Admin,"Refuse Collection, Disposal and Recycling Costs",151.64,BIFFA WASTE SERVICES LTD
Revenue,Head of Economy & Tourism,5105603270,10.12.2014,Leisure Management & Admin,"Refuse Collection, Disposal and Recycling Costs",151.64,BIFFA WASTE SERVICES LTD
Revenue,Head of Economy & Tourism,5105602832,17.12.2014,Public Libraries Central,"Refuse Collection, Disposal and Recycling Costs",760.44,BIFFA WASTE SERVICES LTD
Revenue,Head of Economy & Tourism,5105603270,10.12.2014,Public Libraries Central,"Refuse Collection, Disposal and Recycling Costs",42.88,BIFFA WASTE SERVICES LTD
Revenue,Director of Childrens Services,5105603270,10.12.2014,Learning & Development Running Costs,"Refuse Collection, Disposal and Recycling Costs",41.48,BIFFA WASTE SERVICES LTD
Revenue,Director of Childrens Services,5105602832,17.12.2014,Learning & Development Running Costs,"Refuse Collection, Disposal and Recycling Costs",41.48,BIFFA WASTE SERVICES LTD
Revenue,Head of Economy & Tourism,5105603270,10.12.2014,Cothey Bottom Store RYDE,"Refuse Collection, Disposal and Recycling Costs",6.05,BIFFA WASTE SERVICES LTD
Revenue,Head of Economy & Tourism,5105602832,17.12.2014,Dinosaur Isle Museum (Sandown Geology),"Refuse Collection, Disposal and Recycling Costs",16.33,BIFFA WASTE SERVICES LTD
Revenue,Head of Economy & Tourism,5105603270,10.12.2014,Dinosaur Isle Museum (Sandown Geology),"Refuse Collection, Disposal and Recycling Costs",44.84,BIFFA WASTE SERVICES LTD
Revenue,Head of Economy & Tourism,5105602832,17.12.2014,The Heights,"Refuse Collection, Disposal and Recycling Costs",368.61,BIFFA WASTE SERVICES LTD
Revenue,Head of Economy & Tourism,5105603270,10.12.2014,The Heights,"Refuse Collection, Disposal and Recycling Costs",323.84,BIFFA WASTE SERVICES LTD
Revenue,Head of Economy & Tourism,5105602832,17.12.2014,Medina Leisure Centre,"Refuse Collection, Disposal and Recycling Costs",297.24,BIFFA WASTE SERVICES LTD
Revenue,Head of Economy & Tourism,5105603270,10.12.2014,Medina Leisure Centre,"Refuse Collection, Disposal and Recycling Costs",267.87,BIFFA WASTE SERVICES LTD
Revenue,Head of Economy & Tourism,5105603270,10.12.2014,Westridge Squash Courts,"Refuse Collection, Disposal and Recycling Costs",6.06,BIFFA WASTE SERVICES LTD
Revenue,Head of Economy & Tourism,5105602832,17.12.2014,Westridge Squash Courts,"Refuse Collection, Disposal and Recycling Costs",4.76,BIFFA WASTE SERVICES LTD
Revenue,Head of Economy & Tourism,5105602832,17.12.2014,Ryde Harbour,"Refuse Collection, Disposal and Recycling Costs",88.69,BIFFA WASTE SERVICES LTD
Revenue,Head of Economy & Tourism,5105603270,10.12.2014,Ryde Harbour,"Refuse Collection, Disposal and Recycling Costs",53.80,BIFFA WASTE SERVICES LTD
Revenue,Head of Economy & Tourism,5105603270,10.12.2014,Seaclose Amusements,"Refuse Collection, Disposal and Recycling Costs",13.69,BIFFA WASTE SERVICES LTD
Revenue,Head of Economy & Tourism,5105602832,17.12.2014,Seaclose Amusements,"Refuse Collection, Disposal and Recycling Costs",13.69,BIFFA WASTE SERVICES LTD
Revenue,Director of Childrens Services,5105603270,10.12.2014,Family Information Zone,"Refuse Collection, Disposal and Recycling Costs",16.64,BIFFA WASTE SERVICES LTD
Revenue,Director of Childrens Services,5105602832,17.12.2014,Family Information Zone,"Refuse Collection, Disposal and Recycling Costs",16.64,BIFFA WASTE SERVICES LTD
Revenue,Director of Childrens Services,5105602832,17.12.2014,Specialist Service Business Admin,"Refuse Collection, Disposal and Recycling Costs",156.40,BIFFA WASTE SERVICES LTD
Revenue,Director of Childrens Services,5105603270,10.12.2014,Specialist Service Business Admin,"Refuse Collection, Disposal and Recycling Costs",156.40,BIFFA WASTE SERVICES LTD
Revenue,Director of Childrens Services,5105603270,10.12.2014,Beaulieu House,"Refuse Collection, Disposal and Recycling Costs",171.70,BIFFA WASTE SERVICES LTD
Revenue,Director of Childrens Services,5105602832,17.12.2014,Beaulieu House,"Refuse Collection, Disposal and Recycling Costs",171.70,BIFFA WASTE SERVICES LTD
Revenue,Director of Childrens Services,5105603270,10.12.2014,Parent Partnership,"Refuse Collection, Disposal and Recycling Costs",16.64,BIFFA WASTE SERVICES LTD
Revenue,Director of Childrens Services,5105602832,17.12.2014,Parent Partnership,"Refuse Collection, Disposal and Recycling Costs",16.64,BIFFA WASTE SERVICES LTD
Revenue,Director of Childrens Services,5105602832,17.12.2014,Education Participation Team,"Refuse Collection, Disposal and Recycling Costs",14.68,BIFFA WASTE SERVICES LTD
Revenue,Director of Childrens Services,5105603270,10.12.2014,Education Participation Team,"Refuse Collection, Disposal and Recycling Costs",3.08,BIFFA WASTE SERVICES LTD
Revenue,Head of Economy & Tourism,5105603270,10.12.2014,Ferry Management,"Refuse Collection, Disposal and Recycling Costs",82.60,BIFFA WASTE SERVICES LTD
Revenue,Head of Economy & Tourism,5105602832,17.12.2014,Ferry Management,"Refuse Collection, Disposal and Recycling Costs",82.60,BIFFA WASTE SERVICES LTD
Revenue,Head of Economy & Tourism,5105602832,17.12.2014,Fort Victoria,"Refuse Collection, Disposal and Recycling Costs",114.92,BIFFA WASTE SERVICES LTD
Revenue,Head of Economy & Tourism,5105603270,10.12.2014,Fort Victoria,"Refuse Collection, Disposal and Recycling Costs",96.56,BIFFA WASTE SERVICES LTD
Revenue,Head of Economy & Tourism,5105602832,17.12.2014,Newport Harbour Account,"Refuse Collection, Disposal and Recycling Costs",196.14,BIFFA WASTE SERVICES LTD
Revenue,Head of Economy & Tourism,5105602832,17.12.2014,Newport Harbour Account,"Refuse Collection, Disposal and Recycling Costs",179.90,BIFFA WASTE SERVICES LTD
Revenue,Head of Economy & Tourism,5105603270,10.12.2014,Newport Harbour Account,"Refuse Collection, Disposal and Recycling Costs",390.12,BIFFA WASTE SERVICES LTD
Revenue,Head of Economy & Tourism,5105603270,10.12.2014,Newport Harbour Account,"Refuse Collection, Disposal and Recycling Costs",160.44,BIFFA WASTE SERVICES LTD
Revenue,Chief Fire Officer,5105605869,24.12.2014,Fire Operations,"Refuse Collection, Disposal and Recycling Costs",107.20,BIFFA WASTE SERVICES LTD
Revenue,Chief Fire Officer,5105605870,24.12.2014,Fire Operations,"Refuse Collection, Disposal and Recycling Costs",23.04,BIFFA WASTE SERVICES LTD
Revenue,Chief Fire Officer,5105605872,19.12.2014,Fire Operations,"Refuse Collection, Disposal and Recycling Costs",52.80,BIFFA WASTE SERVICES LTD
Revenue,Chief Fire Officer,5105606229,24.12.2014,Fire Operations,"Refuse Collection, Disposal and Recycling Costs",152.80,BIFFA WASTE SERVICES LTD
Revenue,Chief Fire Officer,5105603018,12.12.2014,Fire Operations,"Refuse Collection, Disposal and Recycling Costs",23.04,BIFFA WASTE SERVICES LTD
Revenue,Head of Planning & Regulatory Services,5105603270,10.12.2014,Planning Business Support,"Refuse Collection, Disposal and Recycling Costs",268.90,BIFFA WASTE SERVICES LTD
Revenue,Head of Planning & Regulatory Services,5105602832,17.12.2014,Planning Business Support,"Refuse Collection, Disposal and Recycling Costs",138.04,BIFFA WASTE SERVICES LTD
Revenue,Head of Planning & Regulatory Services,5105603270,10.12.2014,Regulatory Management & Admin Support,"Refuse Collection, Disposal and Recycling Costs",78.20,BIFFA WASTE SERVICES LTD
Revenue,Head of Planning & Regulatory Services,5105602832,17.12.2014,Regulatory Management & Admin Support,"Refuse Collection, Disposal and Recycling Costs",96.56,BIFFA WASTE SERVICES LTD
Revenue,Head of Economy & Tourism,5105602832,17.12.2014,Crematorium,"Refuse Collection, Disposal and Recycling Costs",96.56,BIFFA WASTE SERVICES LTD
Revenue,Head of Economy & Tourism,5105603270,10.12.2014,Crematorium,"Refuse Collection, Disposal and Recycling Costs",78.20,BIFFA WASTE SERVICES LTD
Revenue,Director of Childrens Services,5105602964,05.12.2014,Leaving Care Costs,Support Children,65.00,REDACTED PERSONAL DATA
Revenue,Director of Childrens Services,5105603865,12.12.2014,Leaving Care Costs,Support Children,65.00,REDACTED PERSONAL DATA
Revenue,Director of Childrens Services,5105605497,19.12.2014,Leaving Care Costs,Support Children,130.00,REDACTED PERSONAL DATA
Revenue,Director of Childrens Services,5105603498,12.12.2014,Purchased Fostering,Charges from Independent Providers,"3,230.51",BLUE SKY FOSTERING LTD
Revenue,Director of Childrens Services,5105603572,12.12.2014,Purchased Fostering,Charges from Independent Providers,"3,230.51",BLUE SKY FOSTERING LTD
Revenue,Director of Childrens Services,5105603573,12.12.2014,Purchased Fostering,Charges from Independent Providers,"3,230.51",BLUE SKY FOSTERING LTD
Revenue,Chief Fire Officer,5105603426,10.12.2014,Fire Technical Support,Vehicle Maintenance Costs,125.82,BLUELINE GRAPHICS LTD
Revenue,Chief Fire Officer,5105603426,10.12.2014,Fire Technical Support,Vehicle Maintenance Costs,11.55,BLUELINE GRAPHICS LTD
Revenue,Director of Childrens Services,5105603640,19.12.2014,Beaulieu House,General Materials,33.50,BOC LTD
Revenue,Head of Economy & Tourism,5105603004,05.12.2014,Ferry Maintenance,Maintenance of Operational Equipment,150.30,BOC LTD
Revenue,Head of Economy & Tourism,5105603005,05.12.2014,Ferry Maintenance,Maintenance of Operational Equipment,108.60,BOC LTD
Revenue,Director of Childrens Services,5105604368,17.12.2014,Short Breaks,Charges from Independent Providers,520.00,BODSTER EQUINE ASSISTED LEARN CIC
Revenue,Head of ASC & Community Wellbeing,5105605680,19.12.2014,Plean Dene,Catering Purchases,5.48,BOOKER CASH & CARRY LTD
Revenue,Head of ASC & Community Wellbeing,5105605702,19.12.2014,Plean Dene,Catering Purchases,13.00,BOOKER CASH & CARRY LTD
Revenue,Head of ASC & Community Wellbeing,5105605255,19.12.2014,Plean Dene,Catering Purchases,13.50,BOOKER CASH & CARRY LTD
Revenue,Head of ASC & Community Wellbeing,5105606579,24.12.2014,Plean Dene,Catering Purchases,93.14,BOOKER CASH & CARRY LTD
Revenue,Head of ASC & Community Wellbeing,5105606129,24.12.2014,Plean Dene,Catering Purchases,6.69,BOOKER CASH & CARRY LTD
Revenue,Head of ASC & Community Wellbeing,5105606221,24.12.2014,Plean Dene,Catering Purchases,9.29,BOOKER CASH & CARRY LTD
Revenue,Head of ASC & Community Wellbeing,5105606211,24.12.2014,Plean Dene,Catering Purchases,212.69,BOOKER CASH & CARRY LTD
Revenue,Head of ASC & Community Wellbeing,5105606211,24.12.2014,Plean Dene,Catering Purchases,8.48,BOOKER CASH & CARRY LTD
Revenue,Head of ASC & Community Wellbeing,5105606579,24.12.2014,Plean Dene,Catering Purchases,5.98,BOOKER CASH & CARRY LTD
Revenue,Head of ASC & Community Wellbeing,5105602728,05.12.2014,Plean Dene,Catering Purchases,96.93,BOOKER CASH & CARRY LTD
Revenue,Head of ASC & Community Wellbeing,5105602734,03.12.2014,Plean Dene,Catering Purchases,184.29,BOOKER CASH & CARRY LTD
Revenue,Head of ASC & Community Wellbeing,5105603030,05.12.2014,Plean Dene,Catering Purchases,150.65,BOOKER CASH & CARRY LTD
Revenue,Head of ASC & Community Wellbeing,5105603030,05.12.2014,Plean Dene,Catering Purchases,3.98,BOOKER CASH & CARRY LTD
Revenue,Head of ASC & Community Wellbeing,5105602734,03.12.2014,Plean Dene,Catering Purchases,51.14,BOOKER CASH & CARRY LTD
Revenue,Head of ASC & Community Wellbeing,5105603192,10.12.2014,Plean Dene,Catering Purchases,15.77,BOOKER CASH & CARRY LTD
Revenue,Head of ASC & Community Wellbeing,5105603179,10.12.2014,Plean Dene,Catering Purchases,13.49,BOOKER CASH & CARRY LTD
Revenue,Head of ASC & Community Wellbeing,5105603177,10.12.2014,Plean Dene,Catering Purchases,28.55,BOOKER CASH & CARRY LTD
Revenue,Head of ASC & Community Wellbeing,5105603462,10.12.2014,Plean Dene,Catering Purchases,144.86,BOOKER CASH & CARRY LTD
Revenue,Head of ASC & Community Wellbeing,5105603462,10.12.2014,Plean Dene,Catering Purchases,21.94,BOOKER CASH & CARRY LTD
Revenue,Head of ASC & Community Wellbeing,5105603179,10.12.2014,Plean Dene,Catering Purchases,1.69,BOOKER CASH & CARRY LTD
Revenue,Head of ASC & Community Wellbeing,5105603939,12.12.2014,Plean Dene,Catering Purchases,37.49,BOOKER CASH & CARRY LTD
Revenue,Head of ASC & Community Wellbeing,5105604054,12.12.2014,Plean Dene,Catering Purchases,142.37,BOOKER CASH & CARRY LTD
Revenue,Head of ASC & Community Wellbeing,5105604054,12.12.2014,Plean Dene,Catering Purchases,25.93,BOOKER CASH & CARRY LTD
Revenue,Head of ASC & Community Wellbeing,5105601647,05.12.2014,Plean Dene,Catering Purchases,96.91,BOOKER CASH & CARRY LTD
Revenue,Head of ASC & Community Wellbeing,5105601647,05.12.2014,Plean Dene,Catering Purchases,39.19,BOOKER CASH & CARRY LTD
Revenue,Managing Director & Head of Paid Service,5105606621,24.12.2014,Contraception,Payment to Private Contractors,236.50,BOOTS THE CHEMIST LTD (Ryde)
Revenue,Managing Director & Head of Paid Service,5105606621,24.12.2014,Contraception,Payment to Private Contractors,57.20,BOOTS THE CHEMIST LTD (Ryde)
Revenue,Managing Director & Head of Paid Service,5105606621,24.12.2014,Drug Misuse - Adults,Payment to Private Contractors,633.50,BOOTS THE CHEMIST LTD (Ryde)
Revenue,Managing Director & Head of Paid Service,5105606621,24.12.2014,Drug Misuse - Adults,Payment to Private Contractors,"1,004.00",BOOTS THE CHEMIST LTD (Ryde)
Revenue,Managing Director & Head of Paid Service,5105606617,24.12.2014,Drug Misuse - Adults,Payment to Private Contractors,73.50,BOOTS UK LTD (107 HIGH ST SANDOWN)
Revenue,Managing Director & Head of Paid Service,5105606617,24.12.2014,Drug Misuse - Adults,Payment to Private Contractors,296.00,BOOTS UK LTD (107 HIGH ST SANDOWN)
Revenue,Managing Director & Head of Paid Service,5105606618,24.12.2014,Contraception,Payment to Private Contractors,43.00,BOOTS UK LTD (COWES)
Revenue,Managing Director & Head of Paid Service,5105606618,24.12.2014,Contraception,Payment to Private Contractors,10.40,BOOTS UK LTD (COWES)
Revenue,Managing Director & Head of Paid Service,5105606618,24.12.2014,Drug Misuse - Adults,Payment to Private Contractors,252.00,BOOTS UK LTD (COWES)
Revenue,Managing Director & Head of Paid Service,5105604853,17.12.2014,Contraception,Payment to Private Contractors,107.50,BOOTS UK LTD (NEWPORT)
Revenue,Managing Director & Head of Paid Service,5105604853,17.12.2014,Contraception,Payment to Private Contractors,26.00,BOOTS UK LTD (NEWPORT)
Revenue,Managing Director & Head of Paid Service,5105604855,17.12.2014,Contraception,Payment to Private Contractors,86.00,BOOTS UK LTD (SANDOWN LARGE STORE)
Revenue,Managing Director & Head of Paid Service,5105604855,17.12.2014,Contraception,Payment to Private Contractors,20.80,BOOTS UK LTD (SANDOWN LARGE STORE)
Revenue,Managing Director & Head of Paid Service,5105604855,17.12.2014,Drug Misuse - Adults,Payment to Private Contractors,35.00,BOOTS UK LTD (SANDOWN LARGE STORE)
Revenue,Managing Director & Head of Paid Service,5105604855,17.12.2014,Drug Misuse - Adults,Payment to Private Contractors,208.00,BOOTS UK LTD (SANDOWN LARGE STORE)
Revenue,Managing Director & Head of Paid Service,5105600420,03.12.2014,Contraception,Payment to Private Contractors,10.40,BOOTS UK LTD (TOWER HOUSE)
Revenue,Managing Director & Head of Paid Service,5105600420,03.12.2014,Contraception,Payment to Private Contractors,43.00,BOOTS UK LTD (TOWER HOUSE)
Revenue,Managing Director & Head of Paid Service,5105604871,17.12.2014,Contraception,Payment to Private Contractors,43.00,BOOTS UK LTD (TOWER HOUSE)
Revenue,Managing Director & Head of Paid Service,5105604871,17.12.2014,Contraception,Payment to Private Contractors,10.40,BOOTS UK LTD (TOWER HOUSE)
Revenue,Managing Director & Head of Paid Service,5105600420,03.12.2014,Drug Misuse - Adults,Payment to Private Contractors,24.50,BOOTS UK LTD (TOWER HOUSE)
Revenue,Managing Director & Head of Paid Service,5105600420,03.12.2014,Drug Misuse - Adults,Payment to Private Contractors,78.00,BOOTS UK LTD (TOWER HOUSE)
Revenue,Managing Director & Head of Paid Service,5105604871,17.12.2014,Drug Misuse - Adults,Payment to Private Contractors,21.00,BOOTS UK LTD (TOWER HOUSE)
Revenue,Managing Director & Head of Paid Service,5105604871,17.12.2014,Drug Misuse - Adults,Payment to Private Contractors,40.00,BOOTS UK LTD (TOWER HOUSE)
Revenue,Managing Director & Head of Paid Service,5105604864,17.12.2014,Contraception,Payment to Private Contractors,107.50,BOOTS UK LTD (YLB BEMBRIDGE)
Revenue,Managing Director & Head of Paid Service,5105604864,17.12.2014,Contraception,Payment to Private Contractors,26.00,BOOTS UK LTD (YLB BEMBRIDGE)
Revenue,Managing Director & Head of Paid Service,5105604864,17.12.2014,Drug Misuse - Adults,Payment to Private Contractors,48.00,BOOTS UK LTD (YLB BEMBRIDGE)
Revenue,Director of Childrens Services,5105603190,10.12.2014,Adult Social Care - Workforce Development,Training,"2,500.00",BOURNEMOUTH UNIVERSITY
Revenue,Head of Economy & Tourism,5105606187,24.12.2014,Public Libraries Central,Computer Maintenance,475.00,BPH DATA LTD
Revenue,Head of Economy & Tourism,5105605730,19.12.2014,The Heights,Stock Purchases,92.72,BRAKE BROS LTD
Revenue,Head of ASC & Community Wellbeing,5105606053,24.12.2014,Leaseholds by LA,Accommodation Costs - Leaseholder Payments,746.81,BRAMBLE LETTINGS
Revenue,Head of ASC & Community Wellbeing,5105606053,24.12.2014,Leaseholds by LA,Accommodation Costs - Leaseholder Payments,746.81,BRAMBLE LETTINGS
Revenue,Head of ASC & Community Wellbeing,5105606053,24.12.2014,Leaseholds by LA,Accommodation Costs - Leaseholder Payments,746.81,BRAMBLE LETTINGS
Revenue,Head of ASC & Community Wellbeing,5105606053,24.12.2014,Leaseholds by LA,Accommodation Costs - Leaseholder Payments,746.81,BRAMBLE LETTINGS
Revenue,Head of ASC & Community Wellbeing,5105606053,24.12.2014,Leaseholds by LA,Accommodation Costs - Leaseholder Payments,746.81,BRAMBLE LETTINGS
Revenue,Head of ASC & Community Wellbeing,5105606053,24.12.2014,Leaseholds by LA,Accommodation Costs - Leaseholder Payments,588.38,BRAMBLE LETTINGS
Revenue,Head of ASC & Community Wellbeing,5105606053,24.12.2014,Leaseholds by LA,Accommodation Costs - Leaseholder Payments,588.38,BRAMBLE LETTINGS
Revenue,Head of ASC & Community Wellbeing,5105606053,24.12.2014,Leaseholds by LA,Accommodation Costs - Leaseholder Payments,588.38,BRAMBLE LETTINGS
Revenue,Head of ASC & Community Wellbeing,5105606053,24.12.2014,Leaseholds by LA,Accommodation Costs - Leaseholder Payments,588.38,BRAMBLE LETTINGS
Revenue,Head of ASC & Community Wellbeing,5105606053,24.12.2014,Leaseholds by LA,Accommodation Costs - Leaseholder Payments,588.38,BRAMBLE LETTINGS
Revenue,Head of ASC & Community Wellbeing,5105606053,24.12.2014,Leaseholds by LA,Accommodation Costs - Leaseholder Payments,746.81,BRAMBLE LETTINGS
Revenue,Head of ASC & Community Wellbeing,5105606053,24.12.2014,Leaseholds by LA,Accommodation Costs - Leaseholder Payments,588.38,BRAMBLE LETTINGS
Revenue,Head of ASC & Community Wellbeing,5105606053,24.12.2014,Leaseholds by LA,Accommodation Costs - Leaseholder Payments,746.81,BRAMBLE LETTINGS
Revenue,Head of ASC & Community Wellbeing,5105606053,24.12.2014,Leaseholds by LA,Accommodation Costs - Leaseholder Payments,769.43,BRAMBLE LETTINGS
Revenue,Head of ASC & Community Wellbeing,5105606053,24.12.2014,Leaseholds by LA,Accommodation Costs - Leaseholder Payments,746.81,BRAMBLE LETTINGS
Revenue,Head of ASC & Community Wellbeing,5105606053,24.12.2014,Leaseholds by LA,Accommodation Costs - Leaseholder Payments,746.81,BRAMBLE LETTINGS
Revenue,Head of ASC & Community Wellbeing,5105606053,24.12.2014,Leaseholds by LA,Accommodation Costs - Leaseholder Payments,746.81,BRAMBLE LETTINGS
Revenue,Head of ASC & Community Wellbeing,5105606053,24.12.2014,Leaseholds by LA,Accommodation Costs - Leaseholder Payments,746.81,BRAMBLE LETTINGS
Revenue,Head of ASC & Community Wellbeing,5105606053,24.12.2014,Leaseholds by LA,Accommodation Costs - Leaseholder Payments,746.81,BRAMBLE LETTINGS
Revenue,Head of ASC & Community Wellbeing,5105606053,24.12.2014,Leaseholds by LA,Accommodation Costs - Leaseholder Payments,746.81,BRAMBLE LETTINGS
Revenue,Head of ASC & Community Wellbeing,5105606053,24.12.2014,Leaseholds by LA,Accommodation Costs - Leaseholder Payments,746.81,BRAMBLE LETTINGS
Revenue,Head of ASC & Community Wellbeing,5105606053,24.12.2014,Leaseholds by LA,Accommodation Costs - Leaseholder Payments,746.81,BRAMBLE LETTINGS
Revenue,Director of Childrens Services,5105606555,24.12.2014,Independ. & Non-Maint. Special Schls & Independ. Specialist Provision,Charges from Independent Providers,"18,483.00",BRECKENBROUGH SCHOOL LTD
Revenue,Director of Childrens Services,5105606550,24.12.2014,Independ. & Non-Maint. Special Schls & Independ. Specialist Provision,Charges from Independent Providers,850.00,BRECKENBROUGH SCHOOL LTD
Revenue,Head of ASC & Community Wellbeing,5105602315,03.12.2014,Elderly Frail Residential Care,Charges from Independent Providers,"2,048.76",BRENDONCARE FOUNDATION
Revenue,Head of ASC & Community Wellbeing,5105607170,24.12.2014,Elderly Frail Residential Care,Charges from Independent Providers,"2,048.76",BRENDONCARE FOUNDATION
Revenue,Head of ASC & Community Wellbeing,5105601829,03.12.2014,Elderly Frail Residential Care,Charges from Independent Providers,"2,093.84",BRIGHSTONE CARE LTD
Revenue,Head of ASC & Community Wellbeing,5105601829,03.12.2014,Elderly Frail Residential Care,Charges from Independent Providers,"1,700.44",BRIGHSTONE CARE LTD
Revenue,Head of ASC & Community Wellbeing,5105606689,24.12.2014,Elderly Frail Residential Care,Charges from Independent Providers,"2,093.84",BRIGHSTONE CARE LTD
Revenue,Head of ASC & Community Wellbeing,5105606689,24.12.2014,Elderly Frail Residential Care,Charges from Independent Providers,"1,700.44",BRIGHSTONE CARE LTD
Revenue,Head of ASC & Community Wellbeing,5105601829,03.12.2014,Elderly Mentally Ill Residential Care,Charges from Independent Providers,"2,093.84",BRIGHSTONE CARE LTD
Revenue,Head of ASC & Community Wellbeing,5105601829,03.12.2014,Elderly Mentally Ill Residential Care,Charges from Independent Providers,"1,781.36",BRIGHSTONE CARE LTD
Revenue,Head of ASC & Community Wellbeing,5105606689,24.12.2014,Elderly Mentally Ill Residential Care,Charges from Independent Providers,"1,781.36",BRIGHSTONE CARE LTD
Revenue,Head of ASC & Community Wellbeing,5105606689,24.12.2014,Elderly Mentally Ill Residential Care,Charges from Independent Providers,"2,093.84",BRIGHSTONE CARE LTD
Revenue,Head of ASC & Community Wellbeing,5105601829,03.12.2014,REDACTED PERSONAL DATA,Order Settlement to Bal Sht GL,657.72,BRIGHSTONE CARE LTD
Revenue,Head of ASC & Community Wellbeing,5105601829,03.12.2014,REDACTED PERSONAL DATA,Order Settlement to Bal Sht GL,"1,781.36",BRIGHSTONE CARE LTD
Revenue,Head of ASC & Community Wellbeing,5105603971,17.12.2014,Overbrook,Grounds Maintenance,48.00,BRIGHSTONE LANDSCAPING LTD
Revenue,Head of ASC & Community Wellbeing,5105603971,17.12.2014,Seagulls,Grounds Maintenance,48.00,BRIGHSTONE LANDSCAPING LTD
Revenue,Head of ASC & Community Wellbeing,5105603971,17.12.2014,Plean Dene,Grounds Maintenance,387.49,BRIGHSTONE LANDSCAPING LTD
Revenue,Head of ASC & Community Wellbeing,5105603971,17.12.2014,Saxonbury,Grounds Maintenance,48.00,BRIGHSTONE LANDSCAPING LTD
Revenue,Head of ASC & Community Wellbeing,5105603971,17.12.2014,40 Venner Avenue,Grounds Maintenance,48.00,BRIGHSTONE LANDSCAPING LTD
Revenue,Head of ASC & Community Wellbeing,5105603971,17.12.2014,Highmead,Grounds Maintenance,126.00,BRIGHSTONE LANDSCAPING LTD
Revenue,Head of ASC & Community Wellbeing,5105603971,17.12.2014,The Laurels,Grounds Maintenance,126.00,BRIGHSTONE LANDSCAPING LTD
Revenue,Head of Economy & Tourism,5105602501,03.12.2014,Play Areas Health & Safety work,Payment to Private Contractors,458.78,BRIGHSTONE LANDSCAPING LTD
Revenue,Head of Economy & Tourism,5105602749,03.12.2014,Beach Cleaning,Payment to Private Contractors,"1,045.00",BRIGHSTONE LANDSCAPING LTD
Revenue,Head of Economy & Tourism,5105606627,24.12.2014,Beach Cleaning,Payment to Private Contractors,220.00,BRIGHSTONE LANDSCAPING LTD
Revenue,Head of Economy & Tourism,5105606141,24.12.2014,Beach Cleaning,Beach Cleansing Contractors,"3,349.18",BRIGHSTONE LANDSCAPING LTD
Revenue,Director of Childrens Services,5105605953,24.12.2014,Adult Community Learning,Licences,115.00,BRITISH COMPUTER SOCIETY
Revenue,Head of Economy & Tourism,5105605740,19.12.2014,Beach Safety & Inspection / Beach Awards,Professional Subscriptions,100.00,BRITISH DESTINATIONS
Revenue,Head of Economy & Tourism,5105606264,24.12.2014,Transport Fleet Administration,Vehicle Fuel Costs,540.82,BROADWAY GARAGE
Revenue,Chief Fire Officer,5105603968,12.12.2014,Fire Technical Support,Vehicle Fuel Costs,41.37,BROADWAY GARAGE
Revenue,Corporate Items,5105602754,03.12.2014,Insurance Suspense - Claims Outstanding,Order Settlement to Bal Sht GL,"31,950.73",BROWNE JACOBSON
Revenue,Corporate Items,5105602754,03.12.2014,Insurance Suspense - Claims Outstanding,Order Settlement to Bal Sht GL,"1,700.34",BROWNE JACOBSON
Revenue,Corporate Items,5105602588,05.12.2014,Insurance Suspense - Claims Outstanding,Order Settlement to Bal Sht GL,644.00,BROWNE JACOBSON
Revenue,Head of Economy & Tourism,5105603591,12.12.2014,Parks/ Gardens Inspectors,Operational Equipment,45.20,BROXAP LTD
Revenue,Head of ASC & Community Wellbeing,5105605692,19.12.2014,My Life A Full Life Programme Delivery,Conference Expenses,300.00,BRUNEL UNIVERSITY
Revenue,Head of ASC & Community Wellbeing,5105603505,10.12.2014,Gouldings Resource Centre,Fixed Telephones,743.18,BT FINANCE
Revenue,Head of ASC & Community Wellbeing,5105603505,10.12.2014,Gouldings Resource Centre,Fixed Telephones,25.00,BT FINANCE
Revenue,Director of Childrens Services,5105602620,19.12.2014,Youth Offending Team,Fixed Telephones,136.41,BT FINANCE
Revenue,Director of Childrens Services,5105602620,19.12.2014,Youth Offending Team,Fixed Telephones,25.00,BT FINANCE
Capital,Head of Planning & Regulatory Services,5105604034,12.12.2014,Parks and Gardens Capital,Payment to Contractors - Capital,"141,051.40",BT PLC
Revenue,Chief Fire Officer,5105603627,10.12.2014,Deputy Chief Fire Office,Professional Subscriptions,"1,725.00",BUCKINGHAMSHIRE & MILTON KEYNES
Revenue,Head of ASC & Community Wellbeing,5105601850,03.12.2014,Elderly Frail Residential Care,Charges from Independent Providers,"2,093.84",BUCKLAND CARE LTD
Revenue,Head of ASC & Community Wellbeing,5105601850,03.12.2014,Elderly Frail Residential Care,Charges from Independent Providers,"2,093.84",BUCKLAND CARE LTD
Revenue,Head of ASC & Community Wellbeing,5105601850,03.12.2014,Elderly Frail Residential Care,Charges from Independent Providers,"1,700.44",BUCKLAND CARE LTD
Revenue,Head of ASC & Community Wellbeing,5105601850,03.12.2014,Elderly Frail Residential Care,Charges from Independent Providers,"1,700.44",BUCKLAND CARE LTD
Revenue,Head of ASC & Community Wellbeing,5105601850,03.12.2014,Elderly Frail Residential Care,Charges from Independent Providers,"2,093.84",BUCKLAND CARE LTD
Revenue,Head of ASC & Community Wellbeing,5105601850,03.12.2014,Elderly Frail Residential Care,Charges from Independent Providers,"1,700.44",BUCKLAND CARE LTD
Revenue,Head of ASC & Community Wellbeing,5105601850,03.12.2014,Elderly Frail Residential Care,Charges from Independent Providers,"2,093.84",BUCKLAND CARE LTD
Revenue,Head of ASC & Community Wellbeing,5105601850,03.12.2014,Elderly Frail Residential Care,Charges from Independent Providers,"2,093.84",BUCKLAND CARE LTD
Revenue,Head of ASC & Community Wellbeing,5105606709,24.12.2014,Elderly Frail Residential Care,Charges from Independent Providers,"2,093.84",BUCKLAND CARE LTD
Revenue,Head of ASC & Community Wellbeing,5105606709,24.12.2014,Elderly Frail Residential Care,Charges from Independent Providers,"2,093.84",BUCKLAND CARE LTD
Revenue,Head of ASC & Community Wellbeing,5105606709,24.12.2014,Elderly Frail Residential Care,Charges from Independent Providers,"2,093.84",BUCKLAND CARE LTD
Revenue,Head of ASC & Community Wellbeing,5105606709,24.12.2014,Elderly Frail Residential Care,Charges from Independent Providers,"2,093.84",BUCKLAND CARE LTD
Revenue,Head of ASC & Community Wellbeing,5105606709,24.12.2014,Elderly Frail Residential Care,Charges from Independent Providers,"1,700.44",BUCKLAND CARE LTD
Revenue,Head of ASC & Community Wellbeing,5105606709,24.12.2014,Elderly Frail Residential Care,Charges from Independent Providers,"1,700.44",BUCKLAND CARE LTD
Revenue,Head of ASC & Community Wellbeing,5105606709,24.12.2014,Elderly Frail Residential Care,Charges from Independent Providers,"1,700.44",BUCKLAND CARE LTD
Revenue,Head of ASC & Community Wellbeing,5105606709,24.12.2014,Elderly Frail Residential Care,Charges from Independent Providers,"2,093.84",BUCKLAND CARE LTD
Revenue,Head of ASC & Community Wellbeing,5105601850,03.12.2014,Elderly Mentally Ill Residential Care,Charges from Independent Providers,"1,781.36",BUCKLAND CARE LTD
Revenue,Head of ASC & Community Wellbeing,5105601850,03.12.2014,Elderly Mentally Ill Residential Care,Charges from Independent Providers,"1,781.36",BUCKLAND CARE LTD
Revenue,Head of ASC & Community Wellbeing,5105601850,03.12.2014,Elderly Mentally Ill Residential Care,Charges from Independent Providers,"2,093.84",BUCKLAND CARE LTD
Revenue,Head of ASC & Community Wellbeing,5105601850,03.12.2014,Elderly Mentally Ill Residential Care,Charges from Independent Providers,"2,093.84",BUCKLAND CARE LTD
Revenue,Head of ASC & Community Wellbeing,5105601850,03.12.2014,Elderly Mentally Ill Residential Care,Charges from Independent Providers,"2,093.84",BUCKLAND CARE LTD
Revenue,Head of ASC & Community Wellbeing,5105601850,03.12.2014,Elderly Mentally Ill Residential Care,Charges from Independent Providers,"1,781.36",BUCKLAND CARE LTD
Revenue,Head of ASC & Community Wellbeing,5105601850,03.12.2014,Elderly Mentally Ill Residential Care,Charges from Independent Providers,"2,093.84",BUCKLAND CARE LTD
Revenue,Head of ASC & Community Wellbeing,5105601850,03.12.2014,Elderly Mentally Ill Residential Care,Charges from Independent Providers,"2,093.84",BUCKLAND CARE LTD
Revenue,Head of ASC & Community Wellbeing,5105601850,03.12.2014,Elderly Mentally Ill Residential Care,Charges from Independent Providers,"2,093.84",BUCKLAND CARE LTD
Revenue,Head of ASC & Community Wellbeing,5105601850,03.12.2014,Elderly Mentally Ill Residential Care,Charges from Independent Providers,"2,093.84",BUCKLAND CARE LTD
Revenue,Head of ASC & Community Wellbeing,5105601850,03.12.2014,Elderly Mentally Ill Residential Care,Charges from Independent Providers,"1,781.36",BUCKLAND CARE LTD
Revenue,Head of ASC & Community Wellbeing,5105601850,03.12.2014,Elderly Mentally Ill Residential Care,Charges from Independent Providers,"1,781.36",BUCKLAND CARE LTD
Revenue,Head of ASC & Community Wellbeing,5105601850,03.12.2014,Elderly Mentally Ill Residential Care,Charges from Independent Providers,"1,781.36",BUCKLAND CARE LTD
Revenue,Head of ASC & Community Wellbeing,5105606709,24.12.2014,Elderly Mentally Ill Residential Care,Charges from Independent Providers,"1,781.36",BUCKLAND CARE LTD
Revenue,Head of ASC & Community Wellbeing,5105606709,24.12.2014,Elderly Mentally Ill Residential Care,Charges from Independent Providers,"1,781.36",BUCKLAND CARE LTD
Revenue,Head of ASC & Community Wellbeing,5105606709,24.12.2014,Elderly Mentally Ill Residential Care,Charges from Independent Providers,"2,093.84",BUCKLAND CARE LTD
Revenue,Head of ASC & Community Wellbeing,5105606709,24.12.2014,Elderly Mentally Ill Residential Care,Charges from Independent Providers,"1,781.36",BUCKLAND CARE LTD
Revenue,Head of ASC & Community Wellbeing,5105606709,24.12.2014,Elderly Mentally Ill Residential Care,Charges from Independent Providers,"2,093.84",BUCKLAND CARE LTD
Revenue,Head of ASC & Community Wellbeing,5105606709,24.12.2014,Elderly Mentally Ill Residential Care,Charges from Independent Providers,"2,093.84",BUCKLAND CARE LTD
Revenue,Head of ASC & Community Wellbeing,5105606709,24.12.2014,Elderly Mentally Ill Residential Care,Charges from Independent Providers,"2,093.84",BUCKLAND CARE LTD
Revenue,Head of ASC & Community Wellbeing,5105606709,24.12.2014,Elderly Mentally Ill Residential Care,Charges from Independent Providers,"1,781.36",BUCKLAND CARE LTD
Revenue,Head of ASC & Community Wellbeing,5105606709,24.12.2014,Elderly Mentally Ill Residential Care,Charges from Independent Providers,"2,093.84",BUCKLAND CARE LTD
Revenue,Head of ASC & Community Wellbeing,5105606709,24.12.2014,Elderly Mentally Ill Residential Care,Charges from Independent Providers,"2,093.84",BUCKLAND CARE LTD
Revenue,Head of ASC & Community Wellbeing,5105606709,24.12.2014,Elderly Mentally Ill Residential Care,Charges from Independent Providers,"1,781.36",BUCKLAND CARE LTD
Revenue,Head of ASC & Community Wellbeing,5105606709,24.12.2014,Elderly Mentally Ill Residential Care,Charges from Independent Providers,"1,781.36",BUCKLAND CARE LTD
Revenue,Head of ASC & Community Wellbeing,5105606709,24.12.2014,REDACTED PERSONAL DATA,Order Settlement to Bal Sht GL,"1,781.36",BUCKLAND CARE LTD
Revenue,Head of ASC & Community Wellbeing,5105601850,03.12.2014,REDACTED PERSONAL DATA,Order Settlement to Bal Sht GL,"1,781.36",BUCKLAND CARE LTD
Revenue,Head of ASC & Community Wellbeing,5105601836,03.12.2014,Elderly Frail Nursing Island,Charges from Independent Providers,"2,780.40",BUCKLAND CARE LTD
Revenue,Head of ASC & Community Wellbeing,5105601836,03.12.2014,Elderly Frail Nursing Island,Charges from Independent Providers,"2,780.40",BUCKLAND CARE LTD
Revenue,Head of ASC & Community Wellbeing,5105601836,03.12.2014,Elderly Frail Nursing Island,Charges from Independent Providers,"2,780.40",BUCKLAND CARE LTD
Revenue,Head of ASC & Community Wellbeing,5105601836,03.12.2014,Elderly Frail Nursing Island,Charges from Independent Providers,"2,780.40",BUCKLAND CARE LTD
Revenue,Head of ASC & Community Wellbeing,5105601836,03.12.2014,Elderly Frail Nursing Island,Charges from Independent Providers,"2,780.40",BUCKLAND CARE LTD
Revenue,Head of ASC & Community Wellbeing,5105601836,03.12.2014,Elderly Frail Nursing Island,Charges from Independent Providers,"2,780.40",BUCKLAND CARE LTD
Revenue,Head of ASC & Community Wellbeing,5105601836,03.12.2014,Elderly Frail Nursing Island,Charges from Independent Providers,"2,780.40",BUCKLAND CARE LTD
Revenue,Head of ASC & Community Wellbeing,5105601836,03.12.2014,Elderly Frail Nursing Island,Charges from Independent Providers,"2,780.40",BUCKLAND CARE LTD
Revenue,Head of ASC & Community Wellbeing,5105601836,03.12.2014,Elderly Frail Nursing Island,Charges from Independent Providers,"2,780.40",BUCKLAND CARE LTD
Revenue,Head of ASC & Community Wellbeing,5105601836,03.12.2014,Elderly Frail Nursing Island,Charges from Independent Providers,"2,780.40",BUCKLAND CARE LTD
Revenue,Head of ASC & Community Wellbeing,5105606696,24.12.2014,Elderly Frail Nursing Island,Charges from Independent Providers,"2,780.40",BUCKLAND CARE LTD
Revenue,Head of ASC & Community Wellbeing,5105606696,24.12.2014,Elderly Frail Nursing Island,Charges from Independent Providers,"2,780.40",BUCKLAND CARE LTD
Revenue,Head of ASC & Community Wellbeing,5105606696,24.12.2014,Elderly Frail Nursing Island,Charges from Independent Providers,"2,780.40",BUCKLAND CARE LTD
Revenue,Head of ASC & Community Wellbeing,5105606696,24.12.2014,Elderly Frail Nursing Island,Charges from Independent Providers,"2,780.40",BUCKLAND CARE LTD
Revenue,Head of ASC & Community Wellbeing,5105606696,24.12.2014,Elderly Frail Nursing Island,Charges from Independent Providers,"2,780.40",BUCKLAND CARE LTD
Revenue,Head of ASC & Community Wellbeing,5105606696,24.12.2014,Elderly Frail Nursing Island,Charges from Independent Providers,"2,780.40",BUCKLAND CARE LTD
Revenue,Head of ASC & Community Wellbeing,5105606696,24.12.2014,Elderly Frail Nursing Island,Charges from Independent Providers,"2,780.40",BUCKLAND CARE LTD
Revenue,Head of ASC & Community Wellbeing,5105606696,24.12.2014,Elderly Frail Nursing Island,Charges from Independent Providers,"2,780.40",BUCKLAND CARE LTD
Revenue,Head of ASC & Community Wellbeing,5105606696,24.12.2014,Elderly Frail Nursing Island,Charges from Independent Providers,"2,780.40",BUCKLAND CARE LTD
Revenue,Head of ASC & Community Wellbeing,5105606696,24.12.2014,Elderly Frail Nursing Island,Charges from Independent Providers,"2,780.40",BUCKLAND CARE LTD
Revenue,Head of ASC & Community Wellbeing,5105601836,03.12.2014,Elderly Mentally Ill Nursing Island,Charges from Independent Providers,"2,780.40",BUCKLAND CARE LTD
Revenue,Head of ASC & Community Wellbeing,5105601836,03.12.2014,Elderly Mentally Ill Nursing Island,Charges from Independent Providers,"2,780.40",BUCKLAND CARE LTD
Revenue,Head of ASC & Community Wellbeing,5105606696,24.12.2014,Elderly Mentally Ill Nursing Island,Charges from Independent Providers,"2,780.40",BUCKLAND CARE LTD
Revenue,Head of ASC & Community Wellbeing,5105606696,24.12.2014,Elderly Mentally Ill Nursing Island,Charges from Independent Providers,"2,780.40",BUCKLAND CARE LTD
Revenue,Head of ASC & Community Wellbeing,5105601836,03.12.2014,Elderly Mentally Ill Nursing Island,Regular Respite Care,"2,780.40",BUCKLAND CARE LTD
Revenue,Head of ASC & Community Wellbeing,5105606696,24.12.2014,Elderly Mentally Ill Nursing Island,Regular Respite Care,"2,780.40",BUCKLAND CARE LTD
Revenue,Head of ASC & Community Wellbeing,5105601836,03.12.2014,Physical Disability Nursing Island,Charges from Independent Providers,"2,780.40",BUCKLAND CARE LTD
Revenue,Head of ASC & Community Wellbeing,5105601836,03.12.2014,Funded Nursing Care Island,Charges from Independent Providers,443.80,BUCKLAND CARE LTD
Revenue,Head of ASC & Community Wellbeing,5105601836,03.12.2014,Funded Nursing Care Island,Charges from Independent Providers,443.80,BUCKLAND CARE LTD
Revenue,Head of ASC & Community Wellbeing,5105601836,03.12.2014,Funded Nursing Care Island,Charges from Independent Providers,443.80,BUCKLAND CARE LTD
Revenue,Head of ASC & Community Wellbeing,5105601836,03.12.2014,Funded Nursing Care Island,Charges from Independent Providers,443.80,BUCKLAND CARE LTD
Revenue,Head of ASC & Community Wellbeing,5105601836,03.12.2014,Funded Nursing Care Island,Charges from Independent Providers,443.80,BUCKLAND CARE LTD
Revenue,Head of ASC & Community Wellbeing,5105601836,03.12.2014,Funded Nursing Care Island,Charges from Independent Providers,443.80,BUCKLAND CARE LTD
Revenue,Head of ASC & Community Wellbeing,5105601836,03.12.2014,Funded Nursing Care Island,Charges from Independent Providers,443.80,BUCKLAND CARE LTD
Revenue,Head of ASC & Community Wellbeing,5105601836,03.12.2014,Funded Nursing Care Island,Charges from Independent Providers,443.80,BUCKLAND CARE LTD
Revenue,Head of ASC & Community Wellbeing,5105601836,03.12.2014,Funded Nursing Care Island,Charges from Independent Providers,443.80,BUCKLAND CARE LTD
Revenue,Head of ASC & Community Wellbeing,5105601836,03.12.2014,Funded Nursing Care Island,Charges from Independent Providers,443.80,BUCKLAND CARE LTD
Revenue,Head of ASC & Community Wellbeing,5105601836,03.12.2014,Funded Nursing Care Island,Charges from Independent Providers,443.80,BUCKLAND CARE LTD
Revenue,Head of ASC & Community Wellbeing,5105601836,03.12.2014,Funded Nursing Care Island,Charges from Independent Providers,443.80,BUCKLAND CARE LTD
Revenue,Head of ASC & Community Wellbeing,5105601836,03.12.2014,Funded Nursing Care Island,Charges from Independent Providers,443.80,BUCKLAND CARE LTD
Revenue,Head of ASC & Community Wellbeing,5105606696,24.12.2014,Funded Nursing Care Island,Charges from Independent Providers,443.80,BUCKLAND CARE LTD
Revenue,Head of ASC & Community Wellbeing,5105606696,24.12.2014,Funded Nursing Care Island,Charges from Independent Providers,443.80,BUCKLAND CARE LTD
Revenue,Head of ASC & Community Wellbeing,5105606696,24.12.2014,Funded Nursing Care Island,Charges from Independent Providers,443.80,BUCKLAND CARE LTD
Revenue,Head of ASC & Community Wellbeing,5105606696,24.12.2014,Funded Nursing Care Island,Charges from Independent Providers,443.80,BUCKLAND CARE LTD
Revenue,Head of ASC & Community Wellbeing,5105605959,24.12.2014,Funded Nursing Care Island,Charges from Independent Providers,396.25,BUCKLAND CARE LTD
Revenue,Head of ASC & Community Wellbeing,5105606696,24.12.2014,Funded Nursing Care Island,Charges from Independent Providers,443.80,BUCKLAND CARE LTD
Revenue,Head of ASC & Community Wellbeing,5105606696,24.12.2014,Funded Nursing Care Island,Charges from Independent Providers,443.80,BUCKLAND CARE LTD
Revenue,Head of ASC & Community Wellbeing,5105606696,24.12.2014,Funded Nursing Care Island,Charges from Independent Providers,443.80,BUCKLAND CARE LTD
Revenue,Head of ASC & Community Wellbeing,5105606696,24.12.2014,Funded Nursing Care Island,Charges from Independent Providers,443.80,BUCKLAND CARE LTD
Revenue,Head of ASC & Community Wellbeing,5105606696,24.12.2014,Funded Nursing Care Island,Charges from Independent Providers,443.80,BUCKLAND CARE LTD
Revenue,Head of ASC & Community Wellbeing,5105606696,24.12.2014,Funded Nursing Care Island,Charges from Independent Providers,443.80,BUCKLAND CARE LTD
Revenue,Head of ASC & Community Wellbeing,5105606696,24.12.2014,Funded Nursing Care Island,Charges from Independent Providers,443.80,BUCKLAND CARE LTD
Revenue,Head of ASC & Community Wellbeing,5105606696,24.12.2014,Funded Nursing Care Island,Charges from Independent Providers,443.80,BUCKLAND CARE LTD
Revenue,Head of ASC & Community Wellbeing,5105606696,24.12.2014,REDACTED PERSONAL DATA,Order Settlement to Bal Sht GL,"2,336.60",BUCKLAND CARE LTD
Revenue,Head of ASC & Community Wellbeing,5105601836,03.12.2014,REDACTED PERSONAL DATA,Order Settlement to Bal Sht GL,"2,336.60",BUCKLAND CARE LTD
Revenue,Head of ASC & Community Wellbeing,5105606696,24.12.2014,REDACTED PERSONAL DATA,Order Settlement to Bal Sht GL,"2,336.60",BUCKLAND CARE LTD
Revenue,Head of ASC & Community Wellbeing,5105601836,03.12.2014,REDACTED PERSONAL DATA,Order Settlement to Bal Sht GL,"2,336.60",BUCKLAND CARE LTD
Revenue,Head of ASC & Community Wellbeing,5105606696,24.12.2014,REDACTED PERSONAL DATA,Order Settlement to Bal Sht GL,"2,336.60",BUCKLAND CARE LTD
Revenue,Head of ASC & Community Wellbeing,5105601836,03.12.2014,REDACTED PERSONAL DATA,Order Settlement to Bal Sht GL,"2,336.60",BUCKLAND CARE LTD
Revenue,Head of ASC & Community Wellbeing,5105603189,17.12.2014,Plean Dene,Consumable Cleaning Materials,153.14,BUNZL CLEANING & HYGIENE SUPPLIES LTD
Revenue,Head of ASC & Community Wellbeing,5105602149,03.12.2014,Elderly Frail Nursing Mainland,Charges from Independent Providers,"1,841.84",BUPA CARE HOME (BNH) LTD
Revenue,Head of ASC & Community Wellbeing,5105607007,24.12.2014,Elderly Frail Nursing Mainland,Charges from Independent Providers,"1,841.84",BUPA CARE HOME (BNH) LTD
Revenue,Head of Finance & S151 Officer,5105603605,10.12.2014,Project Manager Waste Strategy,Consultants Fees,"10,853.50",BURGES SALMON LLP
Revenue,Head of ASC & Community Wellbeing,5105604006,12.12.2014,Overbrook,Operational Equipment,133.33,BUYWISE
Revenue,Head of ASC & Community Wellbeing,5105604006,12.12.2014,Overbrook,Operational Equipment,16.66,BUYWISE
Revenue,Chief Fire Officer,5105606423,24.12.2014,Deputy Chief Fire Office,Prop Svs only - Day to day mtce,"1,666.66",BUYWISE
Revenue,Head of HR & Organisational Change,5105602490,05.12.2014,"County Hall,Newport",Grounds Maintenance,357.20,C & J GROUND MAINTENANCE
Revenue,Head of Economy & Tourism,5105602802,05.12.2014,Properties  - Other Properties,Grounds Maintenance,168.80,C & J GROUND MAINTENANCE
Revenue,Head of Economy & Tourism,5105602764,03.12.2014,Properties  - Other Properties,Grounds Maintenance,159.16,C & J GROUND MAINTENANCE
Revenue,Head of Economy & Tourism,5105602796,05.12.2014,Properties  - Other Properties,Grounds Maintenance,147.40,C & J GROUND MAINTENANCE
Revenue,Head of Economy & Tourism,5105602743,03.12.2014,Properties  - Other Properties,Grounds Maintenance,695.00,C & J GROUND MAINTENANCE
Revenue,Head of Economy & Tourism,5105605906,24.12.2014,Properties  - Other Properties,Grounds Maintenance,575.00,C & J GROUND MAINTENANCE
Revenue,Head of ASC & Community Wellbeing,5105605917,19.12.2014,Mental Health Day Services,Professional Services,185.00,C & J GROUND MAINTENANCE
Revenue,Head of ASC & Community Wellbeing,5105604010,12.12.2014,Mental Health Day Services,Professional Services,140.00,C & J GROUND MAINTENANCE
Revenue,Head of Economy & Tourism,5105603930,17.12.2014,Off-Street Parking Operations,Payment to Private Contractors,"4,910.00",C & J GROUND MAINTENANCE
Revenue,Director of Childrens Services,5105605480,19.12.2014,In-house Fostering,Boarding Out Allowances,33.00,REDACTED PERSONAL DATA
Revenue,Director of Childrens Services,5105602947,05.12.2014,In-house Fostering,Boarding Out Allowances,16.50,REDACTED PERSONAL DATA
Revenue,Director of Childrens Services,5105603848,12.12.2014,In-house Fostering,Boarding Out Allowances,16.50,REDACTED PERSONAL DATA
Revenue,Director of Childrens Services,5105603825,12.12.2014,Children placed with Family&Friends,Boarding Out Allowances,278.50,REDACTED PERSONAL DATA
Revenue,Director of Childrens Services,5105602923,05.12.2014,Children placed with Family&Friends,Boarding Out Allowances,278.50,REDACTED PERSONAL DATA
Revenue,Director of Childrens Services,5105605457,19.12.2014,Children placed with Family&Friends,Boarding Out Allowances,557.00,REDACTED PERSONAL DATA
Revenue,Director of Childrens Services,5105605434,19.12.2014,Special Guardianship Order Costs,Support Children,251.58,REDACTED PERSONAL DATA
Revenue,Director of Childrens Services,5105602901,05.12.2014,Special Guardianship Order Costs,Support Children,125.79,REDACTED PERSONAL DATA
Revenue,Director of Childrens Services,5105603802,12.12.2014,Special Guardianship Order Costs,Support Children,125.79,REDACTED PERSONAL DATA
Revenue,Director of Childrens Services,5105603854,12.12.2014,Children placed with Family&Friends,Boarding Out Allowances,140.33,REDACTED PERSONAL DATA
Revenue,Director of Childrens Services,5105602953,05.12.2014,Children placed with Family&Friends,Boarding Out Allowances,140.33,REDACTED PERSONAL DATA
Revenue,Director of Childrens Services,5105605486,19.12.2014,Children placed with Family&Friends,Boarding Out Allowances,280.66,REDACTED PERSONAL DATA
Revenue,Head of ASC & Community Wellbeing,5105606303,24.12.2014,No-Barriers,Training,160.00,REDACTED PERSONAL DATA
Revenue,Director of Childrens Services,5105603835,12.12.2014,Adoption Costs,Support Children,125.79,REDACTED PERSONAL DATA
Revenue,Director of Childrens Services,5105603835,12.12.2014,Adoption Costs,Support Children,132.69,REDACTED PERSONAL DATA
Revenue,Director of Childrens Services,5105602933,05.12.2014,Adoption Costs,Support Children,125.79,REDACTED PERSONAL DATA
Revenue,Director of Childrens Services,5105602933,05.12.2014,Adoption Costs,Support Children,132.69,REDACTED PERSONAL DATA
Revenue,Director of Childrens Services,5105605467,19.12.2014,Adoption Costs,Support Children,251.58,REDACTED PERSONAL DATA
Revenue,Director of Childrens Services,5105605467,19.12.2014,Adoption Costs,Support Children,265.38,REDACTED PERSONAL DATA
Revenue,Head of Exchequer Services,5105606091,24.12.2014,Staff Benefits,Payment to Private Contractors,166.50,REDACTED PERSONAL DATA
Revenue,Director of Childrens Services,5105603885,12.12.2014,Children placed with Family&Friends,Boarding Out Allowances,199.00,REDACTED PERSONAL DATA
Revenue,Director of Childrens Services,5105602984,05.12.2014,Children placed with Family&Friends,Boarding Out Allowances,199.00,REDACTED PERSONAL DATA
Revenue,Director of Childrens Services,5105605517,19.12.2014,Children placed with Family&Friends,Boarding Out Allowances,398.00,REDACTED PERSONAL DATA
Revenue,Director of Childrens Services,5105605449,19.12.2014,Special Guardianship Order Costs,Support Children,251.58,REDACTED PERSONAL DATA
Revenue,Director of Childrens Services,5105603817,12.12.2014,Special Guardianship Order Costs,Support Children,125.79,REDACTED PERSONAL DATA
Revenue,Director of Childrens Services,5105602915,05.12.2014,Special Guardianship Order Costs,Support Children,125.79,REDACTED PERSONAL DATA
Revenue,Director of Childrens Services,5105605438,19.12.2014,Adoption Costs,Support Children,336.78,REDACTED PERSONAL DATA
Revenue,Director of Childrens Services,5105605438,19.12.2014,Adoption Costs,Support Children,336.78,REDACTED PERSONAL DATA
Revenue,Director of Childrens Services,5105603806,12.12.2014,Adoption Costs,Support Children,168.39,REDACTED PERSONAL DATA
Revenue,Director of Childrens Services,5105603806,12.12.2014,Adoption Costs,Support Children,168.39,REDACTED PERSONAL DATA
Revenue,Director of Childrens Services,5105602905,05.12.2014,Adoption Costs,Support Children,168.39,REDACTED PERSONAL DATA
Revenue,Director of Childrens Services,5105602905,05.12.2014,Adoption Costs,Support Children,168.39,REDACTED PERSONAL DATA
Revenue,Director of Childrens Services,5105605506,19.12.2014,Special Guardianship Order Costs,Support Children,233.60,REDACTED PERSONAL DATA
Revenue,Director of Childrens Services,5105602973,05.12.2014,Special Guardianship Order Costs,Support Children,116.80,REDACTED PERSONAL DATA
Revenue,Director of Childrens Services,5105603874,12.12.2014,Special Guardianship Order Costs,Support Children,116.80,REDACTED PERSONAL DATA
Revenue,Director of Childrens Services,5105605431,19.12.2014,In-house Fostering,Boarding Out Allowances,10.00,REDACTED PERSONAL DATA
Revenue,Director of Childrens Services,5105605765,19.12.2014,In-house Fostering,Boarding Out Allowances,10.00,REDACTED PERSONAL DATA
Revenue,Director of Childrens Services,5105605431,19.12.2014,In-house Fostering,Boarding Out Allowances,398.00,REDACTED PERSONAL DATA
Revenue,Director of Childrens Services,5105605431,19.12.2014,In-house Fostering,Boarding Out Allowances,490.00,REDACTED PERSONAL DATA
Revenue,Director of Childrens Services,5105602898,05.12.2014,In-house Fostering,Boarding Out Allowances,242.08,REDACTED PERSONAL DATA
Revenue,Director of Childrens Services,5105602898,05.12.2014,In-house Fostering,Boarding Out Allowances,10.00,REDACTED PERSONAL DATA
Revenue,Director of Childrens Services,5105602898,05.12.2014,In-house Fostering,Boarding Out Allowances,199.00,REDACTED PERSONAL DATA
Revenue,Director of Childrens Services,5105602898,05.12.2014,In-house Fostering,Boarding Out Allowances,245.00,REDACTED PERSONAL DATA
Revenue,Director of Childrens Services,5105603799,12.12.2014,In-house Fostering,Boarding Out Allowances,10.00,REDACTED PERSONAL DATA
Revenue,Director of Childrens Services,5105603799,12.12.2014,In-house Fostering,Boarding Out Allowances,199.00,REDACTED PERSONAL DATA
Revenue,Director of Childrens Services,5105603799,12.12.2014,In-house Fostering,Boarding Out Allowances,245.00,REDACTED PERSONAL DATA
Revenue,Director of Childrens Services,5105603799,12.12.2014,In-house Fostering,Boarding Out Allowances,242.08,REDACTED PERSONAL DATA
Revenue,Director of Childrens Services,5105605431,19.12.2014,In-house Fostering,Boarding Out Allowances,484.16,REDACTED PERSONAL DATA
Revenue,Director of Childrens Services,5105605408,19.12.2014,In-house Fostering,Boarding Out Allowances,30.00,REDACTED PERSONAL DATA
Revenue,Director of Childrens Services,5105605408,19.12.2014,In-house Fostering,Boarding Out Allowances,280.66,REDACTED PERSONAL DATA
Revenue,Director of Childrens Services,5105605408,19.12.2014,In-house Fostering,Boarding Out Allowances,484.16,REDACTED PERSONAL DATA
Revenue,Director of Childrens Services,5105602874,05.12.2014,In-house Fostering,Boarding Out Allowances,140.33,REDACTED PERSONAL DATA
Revenue,Director of Childrens Services,5105602874,05.12.2014,In-house Fostering,Boarding Out Allowances,242.08,REDACTED PERSONAL DATA
Revenue,Director of Childrens Services,5105602874,05.12.2014,In-house Fostering,Boarding Out Allowances,199.00,REDACTED PERSONAL DATA
Revenue,Director of Childrens Services,5105602874,05.12.2014,In-house Fostering,Boarding Out Allowances,15.00,REDACTED PERSONAL DATA
Revenue,Director of Childrens Services,5105603775,12.12.2014,In-house Fostering,Boarding Out Allowances,15.00,REDACTED PERSONAL DATA
Revenue,Director of Childrens Services,5105603775,12.12.2014,In-house Fostering,Boarding Out Allowances,140.33,REDACTED PERSONAL DATA
Revenue,Director of Childrens Services,5105603775,12.12.2014,In-house Fostering,Boarding Out Allowances,242.08,REDACTED PERSONAL DATA
Revenue,Director of Childrens Services,5105603775,12.12.2014,In-house Fostering,Boarding Out Allowances,199.00,REDACTED PERSONAL DATA
Revenue,Director of Childrens Services,5105605408,19.12.2014,In-house Fostering,Boarding Out Allowances,398.00,REDACTED PERSONAL DATA
Revenue,Director of Childrens Services,5105603794,12.12.2014,Children placed with Family&Friends,Boarding Out Allowances,199.00,REDACTED PERSONAL DATA
Revenue,Director of Childrens Services,5105603794,12.12.2014,Children placed with Family&Friends,Boarding Out Allowances,100.00,REDACTED PERSONAL DATA
Revenue,Director of Childrens Services,5105602893,05.12.2014,Children placed with Family&Friends,Boarding Out Allowances,199.00,REDACTED PERSONAL DATA
Revenue,Director of Childrens Services,5105602893,05.12.2014,Children placed with Family&Friends,Boarding Out Allowances,100.00,REDACTED PERSONAL DATA
Revenue,Director of Childrens Services,5105605426,19.12.2014,Children placed with Family&Friends,Boarding Out Allowances,398.00,REDACTED PERSONAL DATA
Revenue,Director of Childrens Services,5105605426,19.12.2014,Children placed with Family&Friends,Boarding Out Allowances,200.00,REDACTED PERSONAL DATA
Revenue,Head of Economy & Tourism,5105603696,12.12.2014,Rights of Way Operations,Payment to Private Contractors,439.52,C N SERVICES
Revenue,Head of Economy & Tourism,5105605985,24.12.2014,Other Grounds Maintenance,Payment to Private Contractors,"1,038.09",C N SERVICES
Revenue,Head of Economy & Tourism,5105606230,24.12.2014,Play Areas Health & Safety work,Payment to Private Contractors,748.00,C N SERVICES
Revenue,Head of Economy & Tourism,5105603024,05.12.2014,Public Seats  (incl.Dedicated Seats),Payment to Private Contractors,107.00,C N SERVICES
Revenue,Head of Economy & Tourism,5105603943,12.12.2014,Public Seats  (incl.Dedicated Seats),Payment to Private Contractors,87.75,C N SERVICES
Revenue,Head of Economy & Tourism,5105602763,03.12.2014,Beach Safety & Inspection / Beach Awards,Payment to Private Contractors,100.50,C N SERVICES
Revenue,Head of Economy & Tourism,5105603942,12.12.2014,Public Shelters - Ryde,Payment to Private Contractors,40.00,C N SERVICES
Revenue,Head of Economy & Tourism,5105602699,03.12.2014,Allotments,Payment to Private Contractors,60.00,C N SERVICES
Revenue,Head of Planning & Regulatory Services,5105603699,12.12.2014,Coast Protection,Payment to Private Contractors,589.33,C N SERVICES
Revenue,Head of Planning & Regulatory Services,5105603697,12.12.2014,Coast Protection,Payment to Private Contractors,635.25,C N SERVICES
Revenue,Head of Planning & Regulatory Services,5105603694,12.12.2014,Coast Protection,Payment to Private Contractors,68.25,C N SERVICES
Revenue,Head of Economy & Tourism,5105606232,24.12.2014,Crematorium,Operational Equipment,157.87,C N SERVICES
Capital,Head of Economy & Tourism,5105602697,05.12.2014,Cemeteries,Payment to Contractors - Capital,295.58,C N SERVICES
Capital,Head of Economy & Tourism,5105602692,03.12.2014,Rights Of Way Capital Programme,Payment to Contractors - Capital,335.00,C N SERVICES
Revenue,Director of Childrens Services,5105602907,05.12.2014,In-house Fostering,Boarding Out Allowances,140.33,REDACTED PERSONAL DATA
Revenue,Director of Childrens Services,5105602907,05.12.2014,In-house Fostering,Boarding Out Allowances,10.00,REDACTED PERSONAL DATA
Revenue,Director of Childrens Services,5105603808,12.12.2014,In-house Fostering,Boarding Out Allowances,140.33,REDACTED PERSONAL DATA
Revenue,Director of Childrens Services,5105603808,12.12.2014,In-house Fostering,Boarding Out Allowances,10.00,REDACTED PERSONAL DATA
Revenue,Director of Childrens Services,5105603879,12.12.2014,Children placed with Family&Friends,Boarding Out Allowances,199.00,REDACTED PERSONAL DATA
Revenue,Director of Childrens Services,5105602978,05.12.2014,Children placed with Family&Friends,Boarding Out Allowances,199.00,REDACTED PERSONAL DATA
Revenue,Director of Childrens Services,5105605511,19.12.2014,Children placed with Family&Friends,Boarding Out Allowances,398.00,REDACTED PERSONAL DATA
Revenue,Director of Childrens Services,5105605461,19.12.2014,Special Guardianship Order Costs,Support Children,322.98,REDACTED PERSONAL DATA
Revenue,Director of Childrens Services,5105602927,05.12.2014,Special Guardianship Order Costs,Support Children,161.49,REDACTED PERSONAL DATA
Revenue,Director of Childrens Services,5105603829,12.12.2014,Special Guardianship Order Costs,Support Children,161.49,REDACTED PERSONAL DATA
Revenue,Head of ASC & Community Wellbeing,5105601792,03.12.2014,Learning Disability Residential Care,Charges from Independent Providers,"1,894.76",REDACTED PERSONAL DATA
Revenue,Head of ASC & Community Wellbeing,5105606652,24.12.2014,Learning Disability Residential Care,Charges from Independent Providers,"1,894.76",REDACTED PERSONAL DATA
Revenue,Director of Childrens Services,5105603800,12.12.2014,Adoption Costs,Support Children,132.69,REDACTED PERSONAL DATA
Revenue,Director of Childrens Services,5105602899,05.12.2014,Adoption Costs,Support Children,132.69,REDACTED PERSONAL DATA
Revenue,Director of Childrens Services,5105605432,19.12.2014,Adoption Costs,Support Children,265.38,REDACTED PERSONAL DATA
Revenue,Head of HR & Organisational Change,5105603722,12.12.2014,ICT Contracts,Computer Maintenance,"2,757.76",CABLE & WIRELESS WORLDWIDE
Revenue,Head of ASC & Community Wellbeing,5105605734,19.12.2014,Adult Social Care Enterprise House,Office Equipment,"2,385.00",CALL VISIONTECHNOLOGIES LTD
Revenue,Director of Childrens Services,5105602642,05.12.2014,Learning & Development Running Costs,Gas,376.74,CALOR GAS LIMITED
Revenue,Head of Economy & Tourism,5105602491,03.12.2014,Transport Administration,Payment to Private Contractors,13.75,CALOR GAS LIMITED
Revenue,Director of Childrens Services,5105602820,05.12.2014,Purchased Residential,Charges from Independent Providers,"22,149.50",CAMBIAN ASPERGER SYNDROME SERVICES LTD
Revenue,Director of Childrens Services,5105602523,17.12.2014,Independ. & Non-Maint. Special Schls & Independ. Specialist Provision,Charges from Independent Providers,"43,430.33",CAMBIAN ASPERGER SYNDROME SERVICES LTD
Revenue,Director of Childrens Services,5105602820,05.12.2014,Independ. & Non-Maint. Special Schls & Independ. Specialist Provision,Charges from Independent Providers,"22,149.50",CAMBIAN ASPERGER SYNDROME SERVICES LTD
Revenue,Head of HR & Organisational Change,5105603094,10.12.2014,Shared Services Manager,Cleaning Contracts,5.20,CANNON HYGIENE
Revenue,Head of HR & Organisational Change,5105605301,19.12.2014,Shared Services Manager,Cleaning Contracts,5.20,CANNON HYGIENE
Revenue,Head of HR & Organisational Change,5105605301,19.12.2014,"Enterprise House, Newport",Cleaning Contracts,12.09,CANNON HYGIENE
Revenue,Head of HR & Organisational Change,5105603094,10.12.2014,"Enterprise House, Newport",Cleaning Contracts,12.09,CANNON HYGIENE
Revenue,Head of HR & Organisational Change,5105603094,10.12.2014,"County Hall,Newport",Cleaning Contracts,100.66,CANNON HYGIENE
Revenue,Head of HR & Organisational Change,5105605301,19.12.2014,"County Hall,Newport",Cleaning Contracts,100.66,CANNON HYGIENE
Revenue,Head of HR & Organisational Change,5105605301,19.12.2014,"Civic Centre,Sandown",Cleaning Contracts,11.05,CANNON HYGIENE
Revenue,Head of HR & Organisational Change,5105603094,10.12.2014,"Civic Centre,Sandown",Cleaning Contracts,11.05,CANNON HYGIENE
Revenue,Head of HR & Organisational Change,5105603094,10.12.2014,"Bugle House,Newport",Cleaning Contracts,4.16,CANNON HYGIENE
Revenue,Head of HR & Organisational Change,5105605301,19.12.2014,"Bugle House,Newport",Cleaning Contracts,4.16,CANNON HYGIENE
Revenue,Head of ASC & Community Wellbeing,5105605301,19.12.2014,Downside Community & Learning Centre,Cleaning Contracts,12.35,CANNON HYGIENE
Revenue,Head of ASC & Community Wellbeing,5105603094,10.12.2014,Downside Community & Learning Centre,Cleaning Contracts,12.35,CANNON HYGIENE
Revenue,Head of ASC & Community Wellbeing,5105603094,10.12.2014,31 Carter Avenue,Professional Services,1.04,CANNON HYGIENE
Revenue,Head of ASC & Community Wellbeing,5105605301,19.12.2014,31 Carter Avenue,Professional Services,1.04,CANNON HYGIENE
Revenue,Head of ASC & Community Wellbeing,5105603969,12.12.2014,31 Carter Avenue,Professional Services,10.00,CANNON HYGIENE
Revenue,Head of ASC & Community Wellbeing,5105605301,19.12.2014,Overbrook,Professional Services,43.94,CANNON HYGIENE
Revenue,Head of ASC & Community Wellbeing,5105603094,10.12.2014,Overbrook,Professional Services,43.94,CANNON HYGIENE
Revenue,Head of ASC & Community Wellbeing,5105603094,10.12.2014,Seagulls,Professional Services,1.04,CANNON HYGIENE
Revenue,Head of ASC & Community Wellbeing,5105605301,19.12.2014,Seagulls,Professional Services,1.04,CANNON HYGIENE
Revenue,Head of ASC & Community Wellbeing,5105603969,12.12.2014,Seagulls,Professional Services,6.00,CANNON HYGIENE
Revenue,Head of ASC & Community Wellbeing,5105605301,19.12.2014,Plean Dene,Professional Services,109.03,CANNON HYGIENE
Revenue,Head of ASC & Community Wellbeing,5105603094,10.12.2014,Plean Dene,Professional Services,109.03,CANNON HYGIENE
Revenue,Head of ASC & Community Wellbeing,5105603094,10.12.2014,Saxonbury,Professional Services,116.22,CANNON HYGIENE
Revenue,Head of ASC & Community Wellbeing,5105605301,19.12.2014,Saxonbury,Professional Services,113.88,CANNON HYGIENE
Revenue,Head of ASC & Community Wellbeing,5105603969,12.12.2014,Saxonbury,Professional Services,4.80,CANNON HYGIENE
Revenue,Head of ASC & Community Wellbeing,5105605301,19.12.2014,Highmead,Professional Services,30.11,CANNON HYGIENE
Revenue,Head of ASC & Community Wellbeing,5105603094,10.12.2014,Highmead,Professional Services,30.11,CANNON HYGIENE
Revenue,Head of ASC & Community Wellbeing,5105603094,10.12.2014,The Laurels,Professional Services,30.12,CANNON HYGIENE
Revenue,Head of ASC & Community Wellbeing,5105605301,19.12.2014,The Laurels,Professional Services,30.12,CANNON HYGIENE
Revenue,Head of Economy & Tourism,5105605301,19.12.2014,"Barrack Block, Sandown",Cleaning Contracts,4.16,CANNON HYGIENE
Revenue,Head of Economy & Tourism,5105603094,10.12.2014,"Barrack Block, Sandown",Cleaning Contracts,4.16,CANNON HYGIENE
Revenue,Head of ASC & Community Wellbeing,5105603094,10.12.2014,Adelaide Resource Centre,Cleaning Contracts,35.01,CANNON HYGIENE
Revenue,Head of ASC & Community Wellbeing,5105605301,19.12.2014,Adelaide Resource Centre,Cleaning Contracts,35.01,CANNON HYGIENE
Revenue,Head of ASC & Community Wellbeing,5105605301,19.12.2014,Westminster House,Cleaning Contracts,49.23,CANNON HYGIENE
Revenue,Head of ASC & Community Wellbeing,5105603094,10.12.2014,Westminster House,Cleaning Contracts,49.22,CANNON HYGIENE
Revenue,Head of ASC & Community Wellbeing,5105603094,10.12.2014,Mental Health Day Services,Cleaning Contracts,4.16,CANNON HYGIENE
Revenue,Head of ASC & Community Wellbeing,5105603094,10.12.2014,Mental Health Day Services,Cleaning Contracts,2.08,CANNON HYGIENE
Revenue,Head of ASC & Community Wellbeing,5105605301,19.12.2014,Mental Health Day Services,Cleaning Contracts,2.08,CANNON HYGIENE
Revenue,Head of ASC & Community Wellbeing,5105605301,19.12.2014,Mental Health Day Services,Cleaning Contracts,4.16,CANNON HYGIENE
Revenue,Head of Economy & Tourism,5105605301,19.12.2014,Library HQ,Cleaning Contracts,2.08,CANNON HYGIENE
Revenue,Head of Economy & Tourism,5105603094,10.12.2014,Library HQ,Cleaning Contracts,2.08,CANNON HYGIENE
Revenue,Head of Economy & Tourism,5105603094,10.12.2014,Freshwater West Wight Library,Cleaning Contracts,1.04,CANNON HYGIENE
Revenue,Head of Economy & Tourism,5105605301,19.12.2014,Freshwater West Wight Library,Cleaning Contracts,1.04,CANNON HYGIENE
Revenue,Head of Economy & Tourism,5105605301,19.12.2014,Newport Library,Cleaning Contracts,10.96,CANNON HYGIENE
Revenue,Head of Economy & Tourism,5105603094,10.12.2014,Newport Library,Cleaning Contracts,10.96,CANNON HYGIENE
Revenue,Head of Economy & Tourism,5105605301,19.12.2014,Ryde Library,Cleaning Contracts,1.04,CANNON HYGIENE
Revenue,Head of Economy & Tourism,5105603094,10.12.2014,Ryde Library,Cleaning Contracts,1.04,CANNON HYGIENE
Revenue,Head of Economy & Tourism,5105603094,10.12.2014,Sandown Library,Cleaning Contracts,1.04,CANNON HYGIENE
Revenue,Head of Economy & Tourism,5105605301,19.12.2014,Sandown Library,Cleaning Contracts,1.04,CANNON HYGIENE
